Workbook

Sheet Main
B10: 2020-04-07
B12: Sheet No. | C12: Template Name | D12: Summary
B13: 1 | C13: Future Intra | D13: For Intraday trading in F&O segment
B14: 2 | C14: Cash Intra | D14: For Intraday trading in cash market segment
B15: 3 | C15: Mid-cap Intra | D15: For Intraday trading in Mid-cap stocks
B16: 4 | C16: Bulk Deals | D16: Reveals Bulk Deals carried on NSE & BSE
B17: 5 | C17: Call Tracker
K27: `

Sheet Future Intra
M5: Back to Main Page
A6: FOR INTRA DAY TRADING | L6: =Main!B10 -> 2020-04-07
A9: Sr.no | B9: Sector | C9: Scrip | D9: CLOSE RATE | E9: Pivot Point | F9: Supports | I9: Resistances
B10: Sector | D10: Point | E10: Point | F10: S1 | G10: S2 | H10: S3 | I10: R1 | J10: R2 | K10: R3 | L10: HIGH | M10: LOW | N10: OI | O10: % Change in OI
A11: 1 | B11: Index | C11: BANKNIFTY | D11: 17175.80 | E11: 17492.30 | F11: 16758.50 | G11: 16341.20 | H11: 15607.40 | I11: 17909.60 | J11: 18643.40 | K11: 19060.70 | L11: 18226.1 | M11: 17075 | N11: 1050660 | O11: 11.63%
A12: 2 | B12: Index | C12: NIFTY | D12: 8084.50 | E12: 8153.17 | F12: 7976.33 | G12: 7868.17 | H12: 7691.33 | I12: 8261.33 | J12: 8438.17 | K12: 8546.33 | L12: 8330 | M12: 8045 | N12: 10933875 | O12: -0.69%
A13: 3 | B13: Index | C13: NIFTYIT | D13: 11710.00 | E13: 11777.33 | F13: 11534.67 | G13: 11359.33 | H13: 11116.67 | I13: 11952.67 | J13: 12195.33 | K13: 12370.67 | L13: 12020 | M13: 11602 | N13: 850 | O13: -55.26%
A14: 4 | B14: Cement | C14: ACC | D14: 961.75 | E14: 956.25 | F14: 942.50 | G14: 923.25 | H14: 909.50 | I14: 975.50 | J14: 989.25 | K14: 1008.50 | L14: 970 | M14: 937 | N14: 1848400 | O14: -8.06%
A15: 5 | B15: Others | C15: ADANIENT | D15: 129.75 | E15: 130.88 | F15: 127.32 | G15: 124.88 | H15: 121.32 | I15: 133.32 | J15: 136.88 | K15: 139.32 | L15: 134.45 | M15: 128.45 | N15: 16412000 | O15: 0.76%
A16: 6 | B16: Others | C16: ADANIPORTS | D16: 245.85 | E16: 245.88 | F16: 239.42 | G16: 232.98 | H16: 226.52 | I16: 252.32 | J16: 258.78 | K16: 265.22 | L16: 252.35 | M16: 239.45 | N16: 26490000 | O16: 4.28%
A17: 7 | B17: Power | C17: ADANIPOWER | D17: 26.95 | E17: 26.65 | F17: 26.25 | G17: 25.55 | H17: 25.15 | I17: 27.35 | J17: 27.75 | K17: 28.45 | L17: 27.05 | M17: 25.95 | N17: 51490000 | O17: 0.70%
A18: 8 | B18: Automobile | C18: AMARAJABAT | D18: 461.80 | E18: 465.32 | F18: 454.53 | G18: 447.27 | H18: 436.48 | I18: 472.58 | J18: 483.37 | K18: 490.63 | L18: 476.1 | M18: 458.05 | N18: 953600 | O18: -0.08%
A19: 9 | B19: Cement | C19: AMBUJACEM | D19: 153.35 | E19: 153.80 | F19: 151.75 | G19: 150.15 | H19: 148.10 | I19: 155.40 | J19: 157.45 | K19: 159.05 | L19: 155.85 | M19: 152.2 | N19: 18347500 | O19: 1.05%
A20: 10 | B20: Others | C20: APOLLOHOSP | D20: 1185.00 | E20: 1162.33 | F20: 1109.72 | G20: 1034.43 | H20: 981.82 | I20: 1237.62 | J20: 1290.23 | K20: 1365.52 | L20: 1214.95 | M20: 1087.05 | N20: 745000 | O20: -2.93%
A21: 11 | B21: Automobile | C21: APOLLOTYRE | D21: 78.00 | E21: 78.07 | F21: 76.73 | G21: 75.47 | H21: 74.13 | I21: 79.33 | J21: 80.67 | K21: 81.93 | L21: 79.4 | M21: 76.8 | N21: 4917000 | O21: -2.85%
A22: 12 | B22: Automobile | C22: ASHOKLEY | D22: 38.30 | E22: 39.03 | F22: 37.07 | G22: 35.83 | H22: 33.87 | I22: 40.27 | J22: 42.23 | K22: 43.47 | L22: 41 | M22: 37.8 | N22: 37664000 | O22: 6.13%
A23: 13 | B23: FMCG | C23: ASIANPAINT | D23: 1523.15 | E23: 1551.08 | F23: 1487.07 | G23: 1450.98 | H23: 1386.97 | I23: 1587.17 | J23: 1651.18 | K23: 1687.27 | L23: 1615.1 | M23: 1515 | N23: 5741400 | O23: -1.34%
A24: 14 | B24: Pharma | C24: AUROPHARMA | D24: 382.15 | E24: 376.10 | F24: 340.30 | G24: 298.45 | H24: 262.65 | I24: 417.95 | J24: 453.75 | K24: 495.60 | L24: 411.9 | M24: 334.25 | N24: 8124000 | O24: 4.81%
A25: 15 | B25: Banking | C25: AXISBANK | D25: 327.05 | E25: 338.25 | F25: 314.05 | G25: 301.05 | H25: 276.85 | I25: 351.25 | J25: 375.45 | K25: 388.45 | L25: 362.45 | M25: 325.25 | N25: 51272400 | O25: 0.35%
A26: 16 | B26: Automobile | C26: BAJAJ-AUTO | D26: 2042.65 | E26: 2020.62 | F26: 1987.03 | G26: 1931.42 | H26: 1897.83 | I26: 2076.23 | J26: 2109.82 | K26: 2165.43 | L26: 2054.2 | M26: 1965 | N26: 1347750 | O26: 3.59%
A27: 17 | B27: Finance | C27: BAJAJFINSV | D27: 4509.40 | E27: 4534.03 | F27: 4399.37 | G27: 4289.33 | H27: 4154.67 | I27: 4644.07 | J27: 4778.73 | K27: 4888.77 | L27: 4668.7 | M27: 4424 | N27: 664875 | O27: -0.30%
A28: 18 | B28: Finance | C28: BAJFINANCE | D28: 2217.85 | E28: 2248.55 | F28: 2148.30 | G28: 2078.75 | H28: 1978.50 | I28: 2318.10 | J28: 2418.35 | K28: 2487.90 | L28: 2348.8 | M28: 2179 | N28: 4625000 | O28: -4.09%
A29: 19 | B29: Automobile | C29: BALKRISIND | D29: 776.65 | E29: 781.83 | F29: 766.82 | G29: 756.98 | H29: 741.97 | I29: 791.67 | J29: 806.68 | K29: 816.52 | L29: 796.85 | M29: 772 | N29: 627200 | O29: 1.55%
A30: 20 | B30: Banking | C30: BANDHANBNK | D30: 181.55 | E30: 186.15 | F30: 175.65 | G30: 169.75 | H30: 159.25 | I30: 192.05 | J30: 202.55 | K30: 208.45 | L30: 196.65 | M30: 180.25 | N30: 10081200 | O30: 2.46%
A31: 21 | B31: Banking | C31: BANKBARODA | D31: 48.00 | E31: 48.90 | F31: 46.80 | G31: 45.60 | H31: 43.50 | I31: 50.10 | J31: 52.20 | K31: 53.40 | L31: 51 | M31: 47.7 | N31: 29424600 | O31: 0.78%
A32: 22 | B32: FMCG | C32: BATAINDIA | D32: 1177.70 | E32: 1173.28 | F32: 1143.17 | G32: 1108.63 | H32: 1078.52 | I32: 1207.82 | J32: 1237.93 | K32: 1272.47 | L32: 1203.4 | M32: 1138.75 | N32: 1344200 | O32: 3.12%
A33: 23 | B33: Capital_Goods | C33: BEL | D33: 70.35 | E33: 70.22 | F33: 68.63 | G33: 66.92 | H33: 65.33 | I33: 71.93 | J33: 73.52 | K33: 75.23 | L33: 71.8 | M33: 68.5 | N33: 17316000 | O33: 4.19%
A34: 24 | B34: FMCG | C34: BERGEPAINT | D34: 449.40 | E34: 456.92 | F34: 436.83 | G34: 424.27 | H34: 404.18 | I34: 469.48 | J34: 489.57 | K34: 502.13 | L34: 477 | M34: 444.35 | N34: 4690400 | O34: 0.05%
A35: 25 | B35: Automobile | C35: BHARATFORG | D35: 219.80 | E35: 221.98 | F35: 213.47 | G35: 207.13 | H35: 198.62 | I35: 228.32 | J35: 236.83 | K35: 243.17 | L35: 230.5 | M35: 215.65 | N35: 6259500 | O35: 1.05%
A36: 26 | B36: Telecom | C36: BHARTIARTL | D36: 424.95 | E36: 424.12 | F36: 417.83 | G36: 410.72 | H36: 404.43 | I36: 431.23 | J36: 437.52 | K36: 444.63 | L36: 430.4 | M36: 417 | N36: 56064939 | O36: 1.23%
A37: 27 | B37: Capital_Goods | C37: BHEL | D37: 20.70 | E37: 20.65 | F37: 20.35 | G37: 20.00 | H37: 19.70 | I37: 21.00 | J37: 21.30 | K37: 21.65 | L37: 20.95 | M37: 20.3 | N37: 44345600 | O37: -3.24%
A38: 28 | B38: Pharma | C38: BIOCON | D38: 291.75 | E38: 288.72 | F38: 281.93 | G38: 272.12 | H38: 265.33 | I38: 298.53 | J38: 305.32 | K38: 315.13 | L38: 295.5 | M38: 278.9 | N38: 7555500 | O38: 6.59%
A39: 29 | B39: Automobile | C39: BOSCHLTD | D39: 8856.00 | E39: 8946.35 | F39: 8640.70 | G39: 8425.40 | H39: 8119.75 | I39: 9161.65 | J39: 9467.30 | K39: 9682.60 | L39: 9252 | M39: 8731.05 | N39: 119360 | O39: 10.11%
A40: 30 | B40: Oil_Gas | C40: BPCL | D40: 316.90 | E40: 310.35 | F40: 294.85 | G40: 272.80 | H40: 257.30 | I40: 332.40 | J40: 347.90 | K40: 369.95 | L40: 325.85 | M40: 288.3 | N40: 17573400 | O40: -1.38%
A41: 31 | B41: FMCG | C41: BRITANNIA | D41: 2570.90 | E41: 2551.13 | F41: 2488.52 | G41: 2406.13 | H41: 2343.52 | I41: 2633.52 | J41: 2696.13 | K41: 2778.52 | L41: 2613.75 | M41: 2468.75 | N41: 1071400 | O41: 5.04%
A42: 32 | B42: Pharma | C42: CADILAHC | D42: 275.45 | E42: 271.57 | F42: 263.23 | G42: 251.02 | H42: 242.68 | I42: 283.78 | J42: 292.12 | K42: 304.33 | L42: 279.9 | M42: 259.35 | N42: 2989800 | O42: 7.43%
A43: 33 | B43: Banking | C43: CANBK | D43: 84.40 | E43: 85.40 | F43: 81.80 | G43: 79.20 | H43: 75.60 | I43: 88.00 | J43: 91.60 | K43: 94.20 | L43: 89 | M43: 82.8 | N43: 7202000 | O43: 5.12%
A44: 34 | B44: Textile | C44: CENTURYTEX | D44: 286.70 | E44: 287.93 | F44: 277.12 | G44: 267.53 | H44: 256.72 | I44: 297.52 | J44: 308.33 | K44: 317.92 | L44: 298.75 | M44: 278.35 | N44: 1917000 | O44: -0.56%
A45: 35 | B45: Power | C45: CESC | D45: 423.40 | E45: 412.60 | F45: 397.25 | G45: 371.10 | H45: 355.75 | I45: 438.75 | J45: 454.10 | K45: 480.25 | L45: 427.95 | M45: 386.45 | N45: 1194400 | O45: -11.50%
A46: 36 | B46: Finance | C46: CHOLAFIN | D46: 125.60 | E46: 132.20 | F46: 116.90 | G46: 108.20 | H46: 92.90 | I46: 140.90 | J46: 156.20 | K46: 164.90 | L46: 147.5 | M46: 123.5 | N46: 3842500 | O46: 8.01%
A47: 37 | B47: Pharma | C47: CIPLA | D47: 449.40 | E47: 439.95 | F47: 426.70 | G47: 404.00 | H47: 390.75 | I47: 462.65 | J47: 475.90 | K47: 498.60 | L47: 453.2 | M47: 417.25 | N47: 9438050 | O47: 5.14%
A48: 38 | B48: Others | C48: COALINDIA | D48: 137.90 | E48: 136.77 | F48: 133.38 | G48: 128.87 | H48: 125.48 | I48: 141.28 | J48: 144.67 | K48: 149.18 | L48: 140.15 | M48: 132.25 | N48: 23525100 | O48: -1.19%
A49: 39 | B49: FMCG | C49: COLPAL | D49: 1255.15 | E49: 1253.85 | F49: 1217.70 | G49: 1180.25 | H49: 1144.10 | I49: 1291.30 | J49: 1327.45 | K49: 1364.90 | L49: 1290 | M49: 1216.4 | N49: 1587600 | O49: 11.23%
A50: 40 | B50: Others | C50: CONCOR | D50: 305.90 | E50: 313.25 | F50: 295.65 | G50: 285.40 | H50: 267.80 | I50: 323.50 | J50: 341.10 | K50: 351.35 | L50: 330.85 | M50: 303 | N50: 3694932 | O50: 4.32%
A51: 41 | B51: Capital_Goods | C51: CUMMINSIND | D51: 299.75 | E51: 303.43 | F51: 292.32 | G51: 284.88 | H51: 273.77 | I51: 310.87 | J51: 321.98 | K51: 329.42 | L51: 314.55 | M51: 296 | N51: 901800 | O51: 14.25%
A52: 42 | B52: FMCG | C52: DABUR | D52: 429.50 | E52: 434.75 | F52: 419.10 | G52: 408.70 | H52: 393.05 | I52: 445.15 | J52: 460.80 | K52: 471.20 | L52: 450.4 | M52: 424.35 | N52: 10797500 | O52: 1.05%
A53: 43 | B53: Pharma | C53: DIVISLAB | D53: 1909.55 | E53: 1896.65 | F53: 1844.45 | G53: 1779.35 | H53: 1727.15 | I53: 1961.75 | J53: 2013.95 | K53: 2079.05 | L53: 1948.85 | M53: 1831.55 | N53: 2126000 | O53: 7.94%
A54: 44 | B54: Realty | C54: DLF | D54: 131.90 | E54: 132.68 | F54: 129.77 | G54: 127.63 | H54: 124.72 | I54: 134.82 | J54: 137.73 | K54: 139.87 | L54: 135.6 | M54: 130.55 | N54: 25954500 | O54: -1.88%
A55: 45 | B55: Pharma | C55: DRREDDY | D55: 3158.00 | E55: 3142.02 | F55: 3055.43 | G55: 2952.87 | H55: 2866.28 | I55: 3244.58 | J55: 3331.17 | K55: 3433.73 | L55: 3228.6 | M55: 3039.45 | N55: 2321000 | O55: 2.31%
A56: 46 | B56: Automobile | C56: EICHERMOT | D56: 12657.60 | E56: 12779.53 | F56: 12463.07 | G56: 12268.53 | H56: 11952.07 | I56: 12974.07 | J56: 13290.53 | K56: 13485.07 | L56: 13096 | M56: 12585 | N56: 220080 | O56: -0.91%
A57: 47 | B57: Finance | C57: EQUITAS | D57: 37.15 | E57: 38.05 | F57: 35.30 | G57: 33.45 | H57: 30.70 | I57: 39.90 | J57: 42.65 | K57: 44.50 | L57: 40.8 | M57: 36.2 | N57: 6046600 | O57: -3.44%
A58: 48 | B58: Automobile | C58: ESCORTS | D58: 590.40 | E58: 585.20 | F58: 566.20 | G58: 542.00 | H58: 523.00 | I58: 609.40 | J58: 628.40 | K58: 652.60 | L58: 604.2 | M58: 561 | N58: 1701700 | O58: -7.03%
A59: 49 | B59: Automobile | C59: EXIDEIND | D59: 129.25 | E59: 130.05 | F59: 127.40 | G59: 125.55 | H59: 122.90 | I59: 131.90 | J59: 134.55 | K59: 136.40 | L59: 132.7 | M59: 128.2 | N59: 3572800 | O59: 0.74%
A60: 50 | B60: Banking | C60: FEDERALBNK | D60: 39.80 | E60: 40.05 | F60: 38.95 | G60: 38.10 | H60: 37.00 | I60: 40.90 | J60: 42.00 | K60: 42.85 | L60: 41.15 | M60: 39.2 | N60: 34580000 | O60: 0.12%
A61: 51 | B61: Oil_Gas | C61: GAIL | D61: 81.20 | E61: 79.68 | F61: 76.82 | G61: 72.43 | H61: 69.57 | I61: 84.07 | J61: 86.93 | K61: 91.32 | L61: 82.55 | M61: 75.3 | N61: 24883110 | O61: 5.66%
A62: 52 | B62: Pharma | C62: GLENMARK | D62: 213.00 | E62: 210.83 | F62: 200.77 | G62: 188.53 | H62: 178.47 | I62: 223.07 | J62: 233.13 | K62: 245.37 | L62: 220.9 | M62: 198.6 | N62: 2549400 | O62: 3.00%
A63: 53 | B63: Infrastructure | C63: GMRINFRA | D63: 16.00 | E63: 16.10 | F63: 15.80 | G63: 15.60 | H63: 15.30 | I63: 16.30 | J63: 16.60 | K63: 16.80 | L63: 16.4 | M63: 15.9 | N63: 66330000 | O63: -1.73%
A64: 54 | B64: FMCG | C64: GODREJCP | D64: 532.60 | E64: 539.10 | F64: 520.40 | G64: 508.20 | H64: 489.50 | I64: 551.30 | J64: 570.00 | K64: 582.20 | L64: 557.8 | M64: 526.9 | N64: 6544000 | O64: 2.28%
A65: 55 | B65: Cement | C65: GRASIM | D65: 456.60 | E65: 462.73 | F65: 447.87 | G65: 439.13 | H65: 424.27 | I65: 471.47 | J65: 486.33 | K65: 495.07 | L65: 477.6 | M65: 454 | N65: 20634750 | O65: 0.57%
A66: 56 | B66: Others | C66: HAVELLS | D66: 469.95 | E66: 474.20 | F66: 461.45 | G66: 452.95 | H66: 440.20 | I66: 482.70 | J66: 495.45 | K66: 503.95 | L66: 486.95 | M66: 465.7 | N66: 5091000 | O66: 1.58%
A67: 57 | B67: Technology | C67: HCLTECH | D67: 406.00 | E67: 411.37 | F67: 395.43 | G67: 384.87 | H67: 368.93 | I67: 421.93 | J67: 437.87 | K67: 448.43 | L67: 427.3 | M67: 400.8 | N67: 22289400 | O67: -0.23%
A68: 58 | B68: Finance | C68: HDFC | D68: 1506.45 | E68: 1525.97 | F68: 1466.73 | G68: 1427.02 | H68: 1367.78 | I68: 1565.68 | J68: 1624.92 | K68: 1664.63 | L68: 1585.2 | M68: 1486.25 | N68: 28234500 | O68: 1.16%
A69: 59 | B69: Banking | C69: HDFCBANK | D69: 808.15 | E69: 818.53 | F69: 793.97 | G69: 779.78 | H69: 755.22 | I69: 832.72 | J69: 857.28 | K69: 871.47 | L69: 843.1 | M69: 804.35 | N69: 26976500 | O69: 9.42%
A70: 60 | B70: Finance | C70: HDFCLIFE | D70: 424.30 | E70: 429.00 | F70: 413.85 | G70: 403.40 | H70: 388.25 | I70: 439.45 | J70: 454.60 | K70: 465.05 | L70: 444.15 | M70: 418.55 | N70: 10581300 | O70: 2.87%
A71: 61 | B71: Automobile | C71: HEROMOTOCO | D71: 1589.05 | E71: 1588.97 | F71: 1548.18 | G71: 1507.32 | H71: 1466.53 | I71: 1629.83 | J71: 1670.62 | K71: 1711.48 | L71: 1629.75 | M71: 1548.1 | N71: 1965000 | O71: 5.84%
A72: 62 | B72: Metals | C72: HINDALCO | D72: 89.10 | E72: 90.40 | F72: 87.40 | G72: 85.70 | H72: 82.70 | I72: 92.10 | J72: 95.10 | K72: 96.80 | L72: 93.4 | M72: 88.7 | N72: 34387500 | O72: 1.62%
A73: 63 | B73: Oil_Gas | C73: HINDPETRO | D73: 185.20 | E73: 185.05 | F73: 176.45 | G73: 167.70 | H73: 159.10 | I73: 193.80 | J73: 202.40 | K73: 211.15 | L73: 193.65 | M73: 176.3 | N73: 10752000 | O73: 25.86%
A74: 64 | B74: FMCG | C74: HINDUNILVR | D74: 2158.75 | E74: 2176.53 | F74: 2108.52 | G74: 2058.28 | H74: 1990.27 | I74: 2226.77 | J74: 2294.78 | K74: 2345.02 | L74: 2244.55 | M74: 2126.3 | N74: 9065100 | O74: -0.57%
A75: 65 | B75: Finance | C75: IBULHSGFIN | D75: 94.75 | E75: 95.03 | F75: 91.07 | G75: 87.38 | H75: 83.42 | I75: 98.72 | J75: 102.68 | K75: 106.37 | L75: 99 | M75: 91.35 | N75: 8854800 | O75: 4.36%
A76: 66 | B76: Banking | C76: ICICIBANK | D76: 286.05 | E76: 292.27 | F76: 275.58 | G76: 265.12 | H76: 248.43 | I76: 302.73 | J76: 319.42 | K76: 329.88 | L76: 308.95 | M76: 281.8 | N76: 82871250 | O76: 5.69%
A77: 67 | B77: Finance | C77: ICICIPRULI | D77: 338.05 | E77: 339.68 | F77: 326.37 | G77: 314.68 | H77: 301.37 | I77: 351.37 | J77: 364.68 | K77: 376.37 | L77: 353 | M77: 328 | N77: 7299000 | O77: 1.04%
A78: 68 | B78: Telecom | C78: IDEA | D78: 3.15 | E78: 3.15 | F78: 3.00 | G78: 2.85 | H78: 2.70 | I78: 3.30 | J78: 3.45 | K78: 3.60 | L78: 3.3 | M78: 3 | N78: 247842000 | O78: 2.47%
A79: 69 | B79: Banking | C79: IDFCFIRSTB | D79: 18.85 | E79: 19.22 | F79: 18.28 | G79: 17.72 | H79: 16.78 | I79: 19.78 | J79: 20.72 | K79: 21.28 | L79: 20.15 | M79: 18.65 | N79: 119784000 | O79: 4.40%
A80: 70 | B80: Oil_Gas | C80: IGL | D80: 405.85 | E80: 399.02 | F80: 390.08 | G80: 374.32 | H80: 365.38 | I80: 414.78 | J80: 423.72 | K80: 439.48 | L80: 407.95 | M80: 383.25 | N80: 3935250 | O80: 8.08%
A81: 71 | B81: Others | C81: INDIGO | D81: 940.95 | E81: 953.85 | F81: 903.70 | G81: 866.45 | H81: 816.30 | I81: 991.10 | J81: 1041.25 | K81: 1078.50 | L81: 1004 | M81: 916.6 | N81: 3066000 | O81: 1.73%
A82: 72 | B82: Banking | C82: INDUSINDBK | D82: 313.80 | E82: 324.67 | F82: 299.33 | G82: 284.87 | H82: 259.53 | I82: 339.13 | J82: 364.47 | K82: 378.93 | L82: 350 | M82: 310.2 | N82: 17086800 | O82: 2.55%
A83: 73 | B83: Telecom | C83: INFRATEL | D83: 157.15 | E83: 157.50 | F83: 153.40 | G83: 149.65 | H83: 145.55 | I83: 161.25 | J83: 165.35 | K83: 169.10 | L83: 161.6 | M83: 153.75 | N83: 6380000 | O83: -4.58%
A84: 74 | B84: Technology | C84: INFY | D84: 587.10 | E84: 591.77 | F84: 577.98 | G84: 568.87 | H84: 555.08 | I84: 600.88 | J84: 614.67 | K84: 623.78 | L84: 605.55 | M84: 582.65 | N84: 36289200 | O84: 0.08%
A85: 75 | B85: Oil_Gas | C85: IOC | D85: 79.70 | E85: 79.52 | F85: 77.03 | G85: 74.37 | H85: 71.88 | I85: 82.18 | J85: 84.67 | K85: 87.33 | L85: 82 | M85: 76.85 | N85: 49644000 | O85: 1.05%
A86: 76 | B86: FMCG | C86: ITC | D86: 177.80 | E86: 175.68 | F86: 169.17 | G86: 160.53 | H86: 154.02 | I86: 184.32 | J86: 190.83 | K86: 199.47 | L86: 182.2 | M86: 167.05 | N86: 74150400 | O86: -2.17%
A87: 77 | B87: Metals | C87: JINDALSTEL | D87: 63.55 | E87: 67.07 | F87: 58.93 | G87: 54.32 | H87: 46.18 | I87: 71.68 | J87: 79.82 | K87: 84.43 | L87: 75.2 | M87: 62.45 | N87: 16815000 | O87: 31.42%
A88: 78 | B88: Metals | C88: JSWSTEEL | D88: 139.80 | E88: 139.63 | F88: 133.02 | G88: 126.23 | H88: 119.62 | I88: 146.42 | J88: 153.03 | K88: 159.82 | L88: 146.25 | M88: 132.85 | N88: 34109000 | O88: 7.28%
A89: 79 | B89: Others | C89: JUBLFOOD | D89: 1272.70 | E89: 1271.75 | F89: 1233.45 | G89: 1194.20 | H89: 1155.90 | I89: 1311.00 | J89: 1349.30 | K89: 1388.55 | L89: 1310.05 | M89: 1232.5 | N89: 1619500 | O89: 0.43%
A90: 80 | B90: Others | C90: JUSTDIAL | D90: 300.95 | E90: 300.80 | F90: 289.15 | G90: 277.35 | H90: 265.70 | I90: 312.60 | J90: 324.25 | K90: 336.05 | L90: 312.45 | M90: 289 | N90: 1187200 | O90: -8.23%
A91: 81 | B91: Banking | C91: KOTAKBANK | D91: 1144.15 | E91: 1132.95 | F91: 1091.25 | G91: 1038.35 | H91: 996.65 | I91: 1185.85 | J91: 1227.55 | K91: 1280.45 | L91: 1174.65 | M91: 1080.05 | N91: 9196800 | O91: 4.72%
A92: 82 | B92: Finance | C92: L&TFH | D92: 46.20 | E92: 47.58 | F92: 44.27 | G92: 42.33 | H92: 39.02 | I92: 49.52 | J92: 52.83 | K92: 54.77 | L92: 50.9 | M92: 45.65 | N92: 16906400 | O92: 9.03%
A93: 83 | B93: Finance | C93: LICHSGFIN | D93: 219.00 | E93: 222.95 | F93: 212.00 | G93: 205.00 | H93: 194.05 | I93: 229.95 | J93: 240.90 | K93: 247.90 | L93: 233.9 | M93: 215.95 | N93: 7876700 | O93: -2.16%
A94: 84 | B94: Capital_Goods | C94: LT | D94: 779.80 | E94: 778.62 | F94: 765.28 | G94: 750.77 | H94: 737.43 | I94: 793.13 | J94: 806.47 | K94: 820.98 | L94: 791.95 | M94: 764.1 | N94: 11501250 | O94: 5.00%
A95: 85 | B95: Pharma | C95: LUPIN | D95: 655.15 | E95: 632.92 | F95: 601.68 | G95: 548.22 | H95: 516.98 | I95: 686.38 | J95: 717.62 | K95: 771.08 | L95: 664.15 | M95: 579.45 | N95: 6284600 | O95: 1.11%
A96: 86 | B96: Automobile | C96: M&M | D96: 281.95 | E96: 281.00 | F96: 272.45 | G96: 262.95 | H96: 254.40 | I96: 290.50 | J96: 299.05 | K96: 308.55 | L96: 289.55 | M96: 271.5 | N96: 15554000 | O96: 0.64%
A97: 87 | B97: Finance | C97: M&MFIN | D97: 143.25 | E97: 146.97 | F97: 137.28 | G97: 131.32 | H97: 121.63 | I97: 152.93 | J97: 162.62 | K97: 168.58 | L97: 156.65 | M97: 141 | N97: 9659200 | O97: -0.77%
A98: 88 | B98: Finance | C98: MANAPPURAM | D98: 92.80 | E98: 92.97 | F98: 91.23 | G98: 89.67 | H98: 87.93 | I98: 94.53 | J98: 96.27 | K98: 97.83 | L98: 94.7 | M98: 91.4 | N98: 9324000 | O98: -2.39%
A99: 89 | B99: FMCG | C99: MARICO | D99: 262.55 | E99: 265.40 | F99: 255.15 | G99: 247.75 | H99: 237.50 | I99: 272.80 | J99: 283.05 | K99: 290.45 | L99: 275.65 | M99: 258 | N99: 10481900 | O99: 0.81%
A100: 90 | B100: Automobile | C100: MARUTI | D100: 4006.15 | E100: 4087.82 | F100: 3913.48 | G100: 3820.82 | H100: 3646.48 | I100: 4180.48 | J100: 4354.82 | K100: 4447.48 | L100: 4262.15 | M100: 3995.15 | N100: 2520000 | O100: 2.09%
A101: 91 | B101: FMCG | C101: MCDOWELL-N | D101: 467.80 | E101: 473.63 | F101: 458.27 | G101: 448.73 | H101: 433.37 | I101: 483.17 | J101: 498.53 | K101: 508.07 | L101: 489 | M101: 464.1 | N101: 11051250 | O101: -0.37%
A102: 92 | B102: Finance | C102: MFSL | D102: 335.55 | E102: 347.57 | F102: 319.93 | G102: 304.32 | H102: 276.68 | I102: 363.18 | J102: 390.82 | K102: 406.43 | L102: 375.2 | M102: 331.95 | N102: 1414400 | O102: 23.64%
A103: 93 | B103: Oil_Gas | C103: MGL | D103: 828.35 | E103: 827.28 | F103: 804.72 | G103: 781.08 | H103: 758.52 | I103: 850.92 | J103: 873.48 | K103: 897.12 | L103: 849.85 | M103: 803.65 | N103: 1390800 | O103: 1.71%
A104: 94 | B104: Technology | C104: MINDTREE | D104: 696.00 | E104: 707.82 | F104: 675.58 | G104: 655.17 | H104: 622.93 | I104: 728.23 | J104: 760.47 | K104: 780.88 | L104: 740.05 | M104: 687.4 | N104: 810400 | O104: 1.20%
A105: 95 | B105: Automobile | C105: MOTHERSUMI | D105: 55.05 | E105: 55.72 | F105: 53.83 | G105: 52.62 | H105: 50.73 | I105: 56.93 | J105: 58.82 | K105: 60.03 | L105: 57.6 | M105: 54.5 | N105: 19360000 | O105: 1.41%
A106: 96 | B106: Automobile | C106: MRF | D106: 55325.15 | E106: 55158.37 | F106: 54416.58 | G106: 53508.02 | H106: 52766.23 | I106: 56066.93 | J106: 56808.72 | K106: 57717.28 | L106: 55900.15 | M106: 54249.8 | N106: 12640 | O106: 4.38%
A107: 97 | B107: Finance | C107: MUTHOOTFIN | D107: 606.40 | E107: 608.47 | F107: 593.53 | G107: 580.67 | H107: 565.73 | I107: 621.33 | J107: 636.27 | K107: 649.13 | L107: 623.4 | M107: 595.6 | N107: 1870500 | O107: 1.30%
A108: 98 | B108: Metals | C108: NATIONALUM | D108: 28.05 | E108: 28.02 | F108: 27.23 | G108: 26.42 | H108: 25.63 | I108: 28.83 | J108: 29.62 | K108: 30.43 | L108: 28.8 | M108: 27.2 | N108: 17877600 | O108: 0.26%
A109: 99 | B109: Others | C109: NAUKRI | D109: 2012.50 | E109: 1998.10 | F109: 1956.20 | G109: 1899.90 | H109: 1858.00 | I109: 2054.40 | J109: 2096.30 | K109: 2152.60 | L109: 2040 | M109: 1941.8 | N109: 629000 | O109: 1.68%
A110: 100 | B110: Infrastructure | C110: NCC | D110: 16.95 | E110: 17.62 | F110: 16.23 | G110: 15.52 | H110: 14.13 | I110: 18.33 | J110: 19.72 | K110: 20.43 | L110: 19 | M110: 16.9 | N110: 16245000 | O110: 2.38%
A111: 101 | B111: FMCG | C111: NESTLEIND | D111: 15146.70 | E111: 15344.22 | F111: 14858.48 | G111: 14570.27 | H111: 14084.53 | I111: 15632.43 | J111: 16118.17 | K111: 16406.38 | L111: 15829.95 | M111: 15056 | N111: 360350 | O111: 3.03%
A112: 102 | B112: Technology | C112: NIITTECH | D112: 970.10 | E112: 996.73 | F112: 915.37 | G112: 860.63 | H112: 779.27 | I112: 1051.47 | J112: 1132.83 | K112: 1187.57 | L112: 1078.1 | M112: 942 | N112: 333750 | O112: 5.20%
A113: 103 | B113: Metals | C113: NMDC | D113: 79.45 | E113: 78.87 | F113: 76.83 | G113: 74.22 | H113: 72.18 | I113: 81.48 | J113: 83.52 | K113: 86.13 | L113: 80.9 | M113: 76.25 | N113: 23802000 | O113: 0.56%
A114: 104 | B114: Power | C114: NTPC | D114: 80.10 | E114: 80.43 | F114: 78.87 | G114: 77.63 | H114: 76.07 | I114: 81.67 | J114: 83.23 | K114: 84.47 | L114: 82 | M114: 79.2 | N114: 42696000 | O114: 4.62%
A115: 105 | B115: Oil_Gas | C115: OIL | D115: 84.85 | E115: 83.83 | F115: 81.67 | G115: 78.48 | H115: 76.32 | I115: 87.02 | J115: 89.18 | K115: 92.37 | L115: 86 | M115: 80.65 | N115: 5788497 | O115: -0.41%
A116: 106 | B116: Oil_Gas | C116: ONGC | D116: 70.10 | E116: 69.22 | F116: 67.13 | G116: 64.17 | H116: 62.08 | I116: 72.18 | J116: 74.27 | K116: 77.23 | L116: 71.3 | M116: 66.25 | N116: 55514000 | O116: -1.23%
A117: 107 | B117: Textile | C117: PAGEIND | D117: 16522.90 | E117: 16545.28 | F117: 16327.62 | G117: 16132.33 | H117: 15914.67 | I117: 16740.57 | J117: 16958.23 | K117: 17153.52 | L117: 16762.95 | M117: 16350 | N117: 131000 | O117: 4.59%
A118: 108 | B118: Pharma | C118: PEL | D118: 904.65 | E118: 900.83 | F118: 868.97 | G118: 833.28 | H118: 801.42 | I118: 936.52 | J118: 968.38 | K118: 1004.07 | L118: 932.7 | M118: 865.15 | N118: 2632680 | O118: 2.27%
A119: 109 | B119: Oil_Gas | C119: PETRONET | D119: 197.30 | E119: 198.75 | F119: 194.05 | G119: 190.80 | H119: 186.10 | I119: 202.00 | J119: 206.70 | K119: 209.95 | L119: 203.45 | M119: 195.5 | N119: 10191000 | O119: 10.01%
A120: 110 | B120: Finance | C120: PFC | D120: 86.50 | E120: 87.37 | F120: 85.13 | G120: 83.77 | H120: 81.53 | I120: 88.73 | J120: 90.97 | K120: 92.33 | L120: 89.6 | M120: 86 | N120: 33108000 | O120: -0.13%
A121: 111 | B121: FMCG | C121: PIDILITIND | D121: 1220.80 | E121: 1235.28 | F121: 1185.57 | G121: 1150.33 | H121: 1100.62 | I121: 1270.52 | J121: 1320.23 | K121: 1355.47 | L121: 1285 | M121: 1200.05 | N121: 2378000 | O121: 2.90%
A122: 112 | B122: Banking | C122: PNB | D122: 29.50 | E122: 29.57 | F122: 28.93 | G122: 28.37 | H122: 27.73 | I122: 30.13 | J122: 30.77 | K122: 31.33 | L122: 30.2 | M122: 29 | N122: 46994600 | O122: 3.68%
A123: 113 | B123: Power | C123: POWERGRID | D123: 156.85 | E123: 156.10 | F123: 153.30 | G123: 149.75 | H123: 146.95 | I123: 159.65 | J123: 162.45 | K123: 166.00 | L123: 158.9 | M123: 152.55 | N123: 38952000 | O123: 0.36%
A124: 114 | B124: Media | C124: PVR | D124: 965.00 | E124: 975.97 | F124: 912.03 | G124: 859.07 | H124: 795.13 | I124: 1028.93 | J124: 1092.87 | K124: 1145.83 | L124: 1039.9 | M124: 923 | N124: 827200 | O124: 11.54%
A125: 115 | B125: Cement | C125: RAMCOCEM | D125: 475.10 | E125: 478.72 | F125: 468.18 | G125: 461.27 | H125: 450.73 | I125: 485.63 | J125: 496.17 | K125: 503.08 | L125: 489.25 | M125: 471.8 | N125: 426400 | O125: -1.48%
A126: 116 | B126: Banking | C126: RBLBANK | D126: 110.20 | E126: 119.02 | F126: 98.18 | G126: 86.17 | H126: 65.33 | I126: 131.03 | J126: 151.87 | K126: 163.88 | L126: 139.85 | M126: 107 | N126: 13590000 | O126: 14.13%
A127: 117 | B127: Power | C127: RECLTD | D127: 85.30 | E127: 86.00 | F127: 83.90 | G127: 82.50 | H127: 80.40 | I127: 87.40 | J127: 89.50 | K127: 90.90 | L127: 88.1 | M127: 84.6 | N127: 21306000 | O127: 0.62%
A128: 118 | B128: Oil_Gas | C128: RELIANCE | D128: 1080.45 | E128: 1089.85 | F128: 1048.90 | G128: 1017.35 | H128: 976.40 | I128: 1121.40 | J128: 1162.35 | K128: 1193.90 | L128: 1130.8 | M128: 1058.3 | N128: 40319000 | O128: 2.57%
A129: 119 | B129: Metals | C129: SAIL | D129: 21.60 | E129: 21.83 | F129: 21.17 | G129: 20.73 | H129: 20.07 | I129: 22.27 | J129: 22.93 | K129: 23.37 | L129: 22.5 | M129: 21.4 | N129: 30756300 | O129: 0.41%
A130: 120 | B130: Banking | C130: SBIN | D130: 175.45 | E130: 179.43 | F130: 170.57 | G130: 165.68 | H130: 156.82 | I130: 184.32 | J130: 193.18 | K130: 198.07 | L130: 188.3 | M130: 174.55 | N130: 84621000 | O130: 6.04%
A131: 121 | B131: Cement | C131: SHREECEM | D131: 15716.35 | E131: 15948.48 | F131: 15172.92 | G131: 14629.48 | H131: 13853.92 | I131: 16491.92 | J131: 17267.48 | K131: 17810.92 | L131: 16724.05 | M131: 15405.05 | N131: 140650 | O131: 0.43%
A132: 122 | B132: Capital_Goods | C132: SIEMENS | D132: 1049.95 | E132: 1060.50 | F132: 1031.30 | G132: 1012.65 | H132: 983.45 | I132: 1079.15 | J132: 1108.35 | K132: 1127.00 | L132: 1089.7 | M132: 1041.85 | N132: 1232550 | O132: 0.58%
A133: 123 | B133: Textile | C133: SRF | D133: 2662.10 | E133: 2660.10 | F133: 2561.00 | G133: 2459.90 | H133: 2360.80 | I133: 2761.20 | J133: 2860.30 | K133: 2961.40 | L133: 2759.2 | M133: 2559 | N133: 521250 | O133: -1.28%
A134: 124 | B134: Finance | C134: SRTRANSFIN | D134: 519.30 | E134: 550.48 | F134: 480.67 | G134: 442.03 | H134: 372.22 | I134: 589.12 | J134: 658.93 | K134: 697.57 | L134: 620.3 | M134: 511.85 | N134: 2068800 | O134: 8.87%
A135: 125 | B135: Pharma | C135: SUNPHARMA | D135: 375.95 | E135: 366.85 | F135: 349.05 | G135: 322.15 | H135: 304.35 | I135: 393.75 | J135: 411.55 | K135: 438.45 | L135: 384.65 | M135: 339.95 | N135: 53333750 | O135: -1.81%
A136: 126 | B136: Media | C136: SUNTV | D136: 268.05 | E136: 269.10 | F136: 259.30 | G136: 250.55 | H136: 240.75 | I136: 277.85 | J136: 287.65 | K136: 296.40 | L136: 278.9 | M136: 260.35 | N136: 4156800 | O136: -0.43%
A137: 127 | B137: Fertilisers | C137: TATACHEM | D137: 219.75 | E137: 221.13 | F137: 215.77 | G137: 211.78 | H137: 206.42 | I137: 225.12 | J137: 230.48 | K137: 234.47 | L137: 226.5 | M137: 217.15 | N137: 928800 | O137: 11.69%
A138: 128 | B138: Others | C138: TATACONSUM | D138: 268.20 | E138: 271.65 | F138: 261.05 | G138: 253.90 | H138: 243.30 | I138: 278.80 | J138: 289.40 | K138: 296.55 | L138: 282.25 | M138: 264.5 | N138: 7805700 | O138: 7.63%
A139: 129 | B139: Automobile | C139: TATAMOTORS | D139: 65.10 | E139: 65.50 | F139: 64.10 | G139: 63.10 | H139: 61.70 | I139: 66.50 | J139: 67.90 | K139: 68.90 | L139: 66.9 | M139: 64.5 | N139: 51483900 | O139: -2.26%
A140: 130 | B140: Power | C140: TATAPOWER | D140: 30.30 | E140: 30.70 | F140: 29.65 | G140: 29.00 | H140: 27.95 | I140: 31.35 | J140: 32.40 | K140: 33.05 | L140: 31.75 | M140: 30.05 | N140: 44064000 | O140: 4.70%
A141: 131 | B141: Metals | C141: TATASTEEL | D141: 251.30 | E141: 255.33 | F141: 242.82 | G141: 234.33 | H141: 221.82 | I141: 263.82 | J141: 276.33 | K141: 284.82 | L141: 267.85 | M141: 246.85 | N141: 14329500 | O141: 7.40%
A142: 132 | B142: Technology | C142: TCS | D142: 1656.85 | E142: 1681.33 | F142: 1625.07 | G142: 1593.28 | H142: 1537.02 | I142: 1713.12 | J142: 1769.38 | K142: 1801.17 | L142: 1737.6 | M142: 1649.55 | N142: 15307250 | O142: -0.35%
A143: 133 | B143: Technology | C143: TECHM | D143: 522.45 | E143: 521.43 | F143: 510.72 | G143: 498.98 | H143: 488.27 | I143: 533.17 | J143: 543.88 | K143: 555.62 | L143: 532.15 | M143: 509.7 | N143: 12088800 | O143: 2.17%
A144: 134 | B144: FMCG | C144: TITAN | D144: 865.85 | E144: 884.65 | F144: 840.05 | G144: 814.25 | H144: 769.65 | I144: 910.45 | J144: 955.05 | K144: 980.85 | L144: 929.25 | M144: 858.85 | N144: 5785500 | O144: 1.26%
A145: 135 | B145: Pharma | C145: TORNTPHARM | D145: 2071.40 | E145: 2041.67 | F145: 1976.08 | G145: 1880.77 | H145: 1815.18 | I145: 2136.98 | J145: 2202.57 | K145: 2297.88 | L145: 2107.25 | M145: 1946.35 | N145: 312000 | O145: 35.36%
A146: 136 | B146: Power | C146: TORNTPOWER | D146: 276.80 | E146: 276.27 | F146: 272.58 | G146: 268.37 | H146: 264.68 | I146: 280.48 | J146: 284.17 | K146: 288.38 | L146: 279.95 | M146: 272.05 | N146: 1380000 | O146: -2.34%
A147: 137 | B147: Automobile | C147: TVSMOTOR | D147: 252.70 | E147: 258.57 | F147: 244.58 | G147: 236.47 | H147: 222.48 | I147: 266.68 | J147: 280.67 | K147: 288.78 | L147: 272.55 | M147: 250.45 | N147: 2231550 | O147: 9.76%
A148: 138 | B148: FMCG | C148: UBL | D148: 879.10 | E148: 877.07 | F148: 863.58 | G148: 848.07 | H148: 834.58 | I148: 892.58 | J148: 906.07 | K148: 921.58 | L148: 890.55 | M148: 861.55 | N148: 363300 | O148: 7.45%
A149: 139 | B149: Finance | C149: UJJIVAN | D149: 141.60 | E149: 142.53 | F149: 137.57 | G149: 133.53 | H149: 128.57 | I149: 146.57 | J149: 151.53 | K149: 155.57 | L149: 147.5 | M149: 138.5 | N149: 1462000 | O149: -8.02%
A150: 140 | B150: Cement | C150: ULTRACEMCO | D150: 3041.15 | E150: 3082.48 | F150: 2980.67 | G150: 2920.18 | H150: 2818.37 | I150: 3142.97 | J150: 3244.78 | K150: 3305.27 | L150: 3184.3 | M150: 3022 | N150: 1869600 | O150: 0.37%
A151: 141 | B151: Fertilisers | C151: UPL | D151: 297.80 | E151: 300.33 | F151: 291.87 | G151: 285.93 | H151: 277.47 | I151: 306.27 | J151: 314.73 | K151: 320.67 | L151: 308.8 | M151: 294.4 | N151: 12546000 | O151: -0.43%
A152: 142 | B152: Metals | C152: VEDL | D152: 63.15 | E152: 63.38 | F152: 62.07 | G152: 60.98 | H152: 59.67 | I152: 64.47 | J152: 65.78 | K152: 66.87 | L152: 64.7 | M152: 62.3 | N152: 86604000 | O152: 5.07%
A153: 143 | B153: Capital_Goods | C153: VOLTAS | D153: 469.45 | E153: 467.68 | F153: 462.02 | G153: 454.58 | H153: 448.92 | I153: 475.12 | J153: 480.78 | K153: 488.22 | L153: 473.35 | M153: 460.25 | N153: 1155000 | O153: -9.98%
A154: 144 | B154: Technology | C154: WIPRO | D154: 180.80 | E154: 183.17 | F154: 176.13 | G154: 171.47 | H154: 164.43 | I154: 187.83 | J154: 194.87 | K154: 199.53 | L154: 190.2 | M154: 178.5 | N154: 19129600 | O154: -0.73%
A155: 145 | B155: Banking | C155: YESBANK | D155: 20.85 | E155: 20.87 | F155: 20.13 | G155: 19.42 | H155: 18.68 | I155: 21.58 | J155: 22.32 | K155: 23.03 | L155: 21.6 | M155: 20.15 | N155: 59787200 | O155: 1.63%
A156: 146 | B156: Media | C156: ZEEL | D156: 124.10 | E156: 122.60 | F156: 119.90 | G156: 115.70 | H156: 113.00 | I156: 126.80 | J156: 129.50 | K156: 133.70 | L156: 125.3 | M156: 118.4 | N156: 18956700 | O156: -2.69%
A157: 147
A175: Pivot Point: This is trigger point for intra day buy/sell based on the price range of the previous day
A176: As per the tool,the trader should take BUY position just above Pivot and keep the stop loss of pivot point and the first target would be Resistance 1(R1)
A177: If R1 is crossed then R2 becomes the next target with stop loss of at R1
A178: Similarly if price goes below pivot point then the trader should sell and keep a stop loss of pivot point and the first target would be S1
A179: If S1 is crossed then S2 becomes the next target with stop loss of at S1
A181: Disclaimer:
A182: This document has been prepared by the Retail Research Desk of Asit C Mehta
A183: Investment Intermediates Ltd. and is meant for use of the recipient only
A184: and is not for circulation. This document is not to be reported or
A185: copied or made available to others. It should not be considered to be
A186: taken as an offer to sell or a solicitation to buy any security. The
A187: information contained herein is from sources believed reliable. We do
A188: not represent that it is accurate or complete and it should not be
A189: relied upon as such. We may from time to time have positions in and buy
A190: and sell securities referred to herein

Sheet Cash Intra
M5: Back to Main Page
A6: FOR INTRA DAY TRADING | K6: =Main!B10 -> 2020-04-07
A8: Sr.no | B8: Scrip | C8: CLOSE RATE | D8: Pivot Point | E8: Supports | H8: Resistances
C9: Point | E9: S1 | F9: S2 | G9: S3 | H9: R1 | I9: R2 | J9: R3 | K9: HIGH | L9: LOW | M9: Total Trade Quanity in Lakhs
A10: 1 | B10: Nifty 50 | C10: 8083.8 | D10: 8165.38 | E10: 7974.22 | F10: 7864.63 | G10: 7673.47 | H10: 8274.97 | I10: 8466.13 | J10: 8575.72 | K10: 8356.55 | L10: 8055.8
A11: 2 | B11: Nifty Bank | C11: 17249.3 | D11: 17572.87 | E11: 16819.63 | F11: 16389.97 | G11: 15636.73 | H11: 18002.53 | I11: 18755.77 | J11: 19185.43 | K11: 18326.1 | L11: 17143.2
A12: 3 | B12: Nifty CPSE | C12: 1293 | D12: 1290.52 | E12: 1269.93 | F12: 1246.87 | G12: 1226.28 | H12: 1313.58 | I12: 1334.17 | J12: 1357.23 | K12: 1311.1 | L12: 1267.45
A13: 4 | B13: Nifty Infra | C13: 2280.45 | D13: 2290.27 | E13: 2248.33 | F13: 2216.22 | G13: 2174.28 | H13: 2322.38 | I13: 2364.32 | J13: 2396.43 | K13: 2332.2 | L13: 2258.15
A14: 5 | B14: Nifty IT | C14: 11680.05 | D14: 11816.07 | E14: 11485.18 | F14: 11290.32 | G14: 10959.43 | H14: 12010.93 | I14: 12341.82 | J14: 12536.68 | K14: 12146.95 | L14: 11621.2
A15: 6 | B15: Nifty PSE | C15: 2168.55 | D15: 2163.78 | E15: 2123.17 | F15: 2077.78 | G15: 2037.17 | H15: 2209.17 | I15: 2249.78 | J15: 2295.17 | K15: 2204.4 | L15: 2118.4
A16: 7 | B16: Nifty Midcap 50 | C16: 3037 | D16: 3060.42 | E16: 3007.08 | F16: 2977.17 | G16: 2923.83 | H16: 3090.33 | I16: 3143.67 | J16: 3173.58 | K16: 3113.75 | L16: 3030.5
A17: 8 | B17: ACC | C17: 962.6 | D17: 956.45 | E17: 943.10 | F17: 923.60 | G17: 910.25 | H17: 975.95 | I17: 989.30 | J17: 1008.80 | K17: 969.8 | L17: 936.95 | M17: 5.14199
A18: 9 | B18: AUBANK | C18: 465.45 | D18: 468.78 | E18: 454.67 | F18: 443.88 | G18: 429.77 | H18: 479.57 | I18: 493.68 | J18: 504.47 | K18: 482.9 | L18: 458 | M18: 4.21839
A19: 10 | B19: ADANIPORTS | C19: 244.8 | D19: 245.50 | E19: 238.20 | F19: 231.60 | G19: 224.30 | H19: 252.10 | I19: 259.40 | J19: 266.00 | K19: 252.8 | L19: 238.9 | M19: 29.12256
A20: 11 | B20: ADANIPOWER | C20: 26.75 | D20: 26.57 | E20: 25.98 | F20: 25.22 | G20: 24.63 | H20: 27.33 | I20: 27.92 | J20: 28.68 | K20: 27.15 | L20: 25.8 | M20: 57.54033
A21: 12 | B21: ABCAPITAL | C21: 43.45 | D21: 43.23 | E21: 41.27 | F21: 39.08 | G21: 37.12 | H21: 45.42 | I21: 47.38 | J21: 49.57 | K21: 45.2 | L21: 41.05 | M21: 21.59998
A22: 13 | B22: ABFRL | C22: 145.95 | D22: 145.65 | E22: 142.30 | F22: 138.65 | G22: 135.30 | H22: 149.30 | I22: 152.65 | J22: 156.30 | K22: 149 | L22: 142 | M22: 2.71489
A23: 14 | B23: AJANTPHARM | C23: 1312.55 | D23: 1340.52 | E23: 1267.03 | F23: 1221.52 | G23: 1148.03 | H23: 1386.03 | I23: 1459.52 | J23: 1505.03 | K23: 1414 | L23: 1295 | M23: 0.73403
A24: 15 | B24: ALKEM | C24: 2267.05 | D24: 2272.27 | E24: 2244.78 | F24: 2222.52 | G24: 2195.03 | H24: 2294.53 | I24: 2322.02 | J24: 2344.28 | K24: 2299.75 | L24: 2250 | M24: 1.31984
A25: 16 | B25: AMARAJABAT | C25: 460.2 | D25: 465.28 | E25: 450.57 | F25: 440.93 | G25: 426.22 | H25: 474.92 | I25: 489.63 | J25: 499.27 | K25: 480 | L25: 455.65 | M25: 5.92956
A26: 17 | B26: AMBUJACEM | C26: 153 | D26: 153.73 | E26: 150.82 | F26: 148.63 | G26: 145.72 | H26: 155.92 | I26: 158.83 | J26: 161.02 | K26: 156.65 | L26: 151.55 | M26: 29.06515
A27: 18 | B27: APOLLOHOSP | C27: 1189.55 | D27: 1172.35 | E27: 1105.25 | F27: 1020.95 | G27: 953.85 | H27: 1256.65 | I27: 1323.75 | J27: 1408.05 | K27: 1239.45 | L27: 1088.05 | M27: 3.77299
A28: 19 | B28: APOLLOTYRE | C28: 78.45 | D28: 78.13 | E28: 76.77 | F28: 75.08 | G28: 73.72 | H28: 79.82 | I28: 81.18 | J28: 82.87 | K28: 79.5 | L28: 76.45 | M28: 20.59074
A29: 20 | B29: ASHOKLEY | C29: 38.15 | D29: 39.10 | E29: 37.05 | F29: 35.95 | G29: 33.90 | H29: 40.20 | I29: 42.25 | J29: 43.35 | K29: 41.15 | L29: 38 | M29: 119.77376
A30: 21 | B30: ASIANPAINT | C30: 1520.9 | D30: 1551.38 | E30: 1486.77 | F30: 1452.63 | G30: 1388.02 | H30: 1585.52 | I30: 1650.13 | J30: 1684.27 | K30: 1616 | L30: 1517.25 | M30: 11.69614
A31: 22 | B31: AUROPHARMA | C31: 382.4 | D31: 375.95 | E31: 339.95 | F31: 297.50 | G31: 261.50 | H31: 418.40 | I31: 454.40 | J31: 496.85 | K31: 411.95 | L31: 333.5 | M31: 31.79653
A32: 23 | B32: DMART | C32: 2066.95 | D32: 2068.65 | E32: 2018.30 | F32: 1969.65 | G32: 1919.30 | H32: 2117.30 | I32: 2167.65 | J32: 2216.30 | K32: 2119 | L32: 2020 | M32: 15.72997
A33: 24 | B33: AXISBANK | C33: 325.45 | D33: 337.25 | E33: 312.20 | F33: 298.95 | G33: 273.90 | H33: 350.50 | I33: 375.55 | J33: 388.80 | K33: 362.3 | L33: 324 | M33: 83.45819
A34: 25 | B34: BAJAJ-AUTO | C34: 2033.75 | D34: 2015.87 | E34: 1975.43 | F34: 1917.12 | G34: 1876.68 | H34: 2074.18 | I34: 2114.62 | J34: 2172.93 | K34: 2056.3 | L34: 1957.55 | M34: 11.41144
A35: 26 | B35: BAJFINANCE | C35: 2207.5 | D35: 2244.75 | E35: 2145.80 | F35: 2084.10 | G35: 1985.15 | H35: 2306.45 | I35: 2405.40 | J35: 2467.10 | K35: 2343.7 | L35: 2183.05 | M35: 17.36927
A36: 27 | B36: BAJAJFINSV | C36: 4510.75 | D36: 4528.92 | E36: 4411.83 | F36: 4312.92 | G36: 4195.83 | H36: 4627.83 | I36: 4744.92 | J36: 4843.83 | K36: 4646 | L36: 4430 | M36: 3.29541
A37: 28 | B37: BAJAJHLDNG | C37: 1924.6 | D37: 1851.53 | E37: 1773.07 | F37: 1621.53 | G37: 1543.07 | H37: 2003.07 | I37: 2081.53 | J37: 2233.07 | K37: 1930 | L37: 1700 | M37: 0.80743
A38: 29 | B38: BALKRISIND | C38: 773.3 | D38: 783.10 | E38: 759.20 | F38: 745.10 | G38: 721.20 | H38: 797.20 | I38: 821.10 | J38: 835.20 | K38: 807 | L38: 769 | M38: 2.71802
A39: 30 | B39: BANDHANBNK | C39: 181.55 | D39: 186.20 | E39: 175.35 | F39: 169.15 | G39: 158.30 | H39: 192.40 | I39: 203.25 | J39: 209.45 | K39: 197.05 | L39: 180 | M39: 27.62309
A40: 31 | B40: BANKBARODA | C40: 48.7 | D40: 49.50 | E40: 47.70 | F40: 46.70 | G40: 44.90 | H40: 50.50 | I40: 52.30 | J40: 53.30 | K40: 51.3 | L40: 48.5 | M40: 224.98038
A41: 32 | B41: BANKINDIA | C41: 32.55 | D41: 32.38 | E41: 31.87 | F41: 31.18 | G41: 30.67 | H41: 33.07 | I41: 33.58 | J41: 34.27 | K41: 32.9 | L41: 31.7 | M41: 67.267
A42: 33 | B42: BATAINDIA | C42: 1190.75 | D42: 1184.02 | E42: 1153.03 | F42: 1115.32 | G42: 1084.33 | H42: 1221.73 | I42: 1252.72 | J42: 1290.43 | K42: 1215 | L42: 1146.3 | M42: 2.78726
A43: 34 | B43: BERGEPAINT | C43: 448.65 | D43: 458.77 | E43: 434.53 | F43: 420.42 | G43: 396.18 | H43: 472.88 | I43: 497.12 | J43: 511.23 | K43: 483 | L43: 444.65 | M43: 12.10461
A44: 35 | B44: BEL | C44: 69.95 | D44: 70.12 | E44: 68.33 | F44: 66.72 | G44: 64.93 | H44: 71.73 | I44: 73.52 | J44: 75.13 | K44: 71.9 | L44: 68.5 | M44: 565.82665
A45: 36 | B45: BHARATFORG | C45: 219.65 | D45: 221.57 | E45: 213.08 | F45: 206.52 | G45: 198.03 | H45: 228.13 | I45: 236.62 | J45: 243.18 | K45: 230.05 | L45: 215 | M45: 7.00915
A46: 37 | B46: BHEL | C46: 20.65 | D46: 20.75 | E46: 20.30 | F46: 19.95 | G46: 19.50 | H46: 21.10 | I46: 21.55 | J46: 21.90 | K46: 21.2 | L46: 20.4 | M46: 140.87306
A47: 38 | B47: BPCL | C47: 317.15 | D47: 310.10 | E47: 294.20 | F47: 271.25 | G47: 255.35 | H47: 333.05 | I47: 348.95 | J47: 371.90 | K47: 326 | L47: 287.15 | M47: 69.46475
A48: 39 | B48: BHARTIARTL | C48: 423.95 | D48: 423.85 | E48: 415.70 | F48: 407.45 | G48: 399.30 | H48: 432.10 | I48: 440.25 | J48: 448.50 | K48: 432 | L48: 415.6 | M48: 180.17965
A49: 40 | B49: INFRATEL | C49: 156.4 | D49: 157.40 | E49: 153.20 | F49: 150.00 | G49: 145.80 | H49: 160.60 | I49: 164.80 | J49: 168.00 | K49: 161.6 | L49: 154.2 | M49: 58.11965
A50: 41 | B50: BIOCON | C50: 290.95 | D50: 288.23 | E50: 280.62 | F50: 270.28 | G50: 262.67 | H50: 298.57 | I50: 306.18 | J50: 316.52 | K50: 295.85 | L50: 277.9 | M50: 19.49668
A51: 42 | B51: BBTC | C51: 716.75 | D51: 716.12 | E51: 696.88 | F51: 677.02 | G51: 657.78 | H51: 735.98 | I51: 755.22 | J51: 775.08 | K51: 735.35 | L51: 696.25 | M51: 0.58867
A52: 43 | B52: BOSCHLTD | C52: 8816.65 | D52: 8894.75 | E52: 8631.90 | F52: 8447.15 | G52: 8184.30 | H52: 9079.50 | I52: 9342.35 | J52: 9527.10 | K52: 9157.6 | L52: 8710 | M52: 0.24677
A53: 44 | B53: BRITANNIA | C53: 2563.25 | D53: 2549.42 | E53: 2488.83 | F53: 2414.42 | G53: 2353.83 | H53: 2623.83 | I53: 2684.42 | J53: 2758.83 | K53: 2610 | L53: 2475 | M53: 4.6885
A54: 45 | B54: CESC | C54: 425.55 | D54: 413.87 | E54: 397.93 | F54: 370.32 | G54: 354.38 | H54: 441.48 | I54: 457.42 | J54: 485.03 | K54: 429.8 | L54: 386.25 | M54: 3.39974
A55: 46 | B55: CADILAHC | C55: 274.6 | D55: 270.80 | E55: 262.10 | F55: 249.60 | G55: 240.90 | H55: 283.30 | I55: 292.00 | J55: 304.50 | K55: 279.5 | L55: 258.3 | M55: 11.03855
A56: 47 | B56: CANBK | C56: 84.15 | D56: 85.52 | E56: 82.13 | F56: 80.12 | G56: 76.73 | H56: 87.53 | I56: 90.92 | J56: 92.93 | K56: 88.9 | L56: 83.5 | M56: 70.14346
A57: 48 | B57: CASTROLIND | C57: 102.2 | D57: 101.47 | E57: 99.58 | F57: 96.97 | G57: 95.08 | H57: 104.08 | I57: 105.97 | J57: 108.58 | K57: 103.35 | L57: 98.85 | M57: 34.61075
A58: 49 | B58: CHOLAFIN | C58: 124.65 | D58: 131.38 | E58: 115.77 | F58: 106.88 | G58: 91.27 | H58: 140.27 | I58: 155.88 | J58: 164.77 | K58: 147 | L58: 122.5 | M58: 16.87153
A59: 50 | B59: CIPLA | C59: 449.2 | D59: 440.05 | E59: 425.40 | F59: 401.60 | G59: 386.95 | H59: 463.85 | I59: 478.50 | J59: 502.30 | K59: 454.7 | L59: 416.25 | M59: 21.84609
A60: 51 | B60: CUB | C60: 113.95 | D60: 115.98 | E60: 108.97 | F60: 103.98 | G60: 96.97 | H60: 120.97 | I60: 127.98 | J60: 132.97 | K60: 123 | L60: 111 | M60: 10.62871
A61: 52 | B61: COALINDIA | C61: 137.75 | D61: 136.48 | E61: 133.07 | F61: 128.38 | G61: 124.97 | H61: 141.17 | I61: 144.58 | J61: 149.27 | K61: 139.9 | L61: 131.8 | M61: 352.81395
A62: 53 | B62: COLPAL | C62: 1249.9 | D62: 1247.95 | E62: 1213.00 | F62: 1176.10 | G62: 1141.15 | H62: 1284.85 | I62: 1319.80 | J62: 1356.70 | K62: 1282.9 | L62: 1211.05 | M62: 24.53672
A63: 54 | B63: CONCOR | C63: 304.5 | D63: 312.17 | E63: 294.33 | F63: 284.17 | G63: 266.33 | H63: 322.33 | I63: 340.17 | J63: 350.33 | K63: 330 | L63: 302 | M63: 6.92547
A64: 55 | B64: COROMANDEL | C64: 512.25 | D64: 519.37 | E64: 494.78 | F64: 477.32 | G64: 452.73 | H64: 536.83 | I64: 561.42 | J64: 578.88 | K64: 543.95 | L64: 501.9 | M64: 7.17405
A65: 56 | B65: CROMPTON | C65: 207 | D65: 208.87 | E65: 199.43 | F65: 191.87 | G65: 182.43 | H65: 216.43 | I65: 225.87 | J65: 233.43 | K65: 218.3 | L65: 201.3 | M65: 30.8845
A66: 57 | B66: CUMMINSIND | C66: 298.65 | D66: 303.35 | E66: 291.75 | F66: 284.85 | G66: 273.25 | H66: 310.25 | I66: 321.85 | J66: 328.75 | K66: 314.95 | L66: 296.45 | M66: 9.9194
A67: 58 | B67: DLF | C67: 132.1 | D67: 132.82 | E67: 129.63 | F67: 127.17 | G67: 123.98 | H67: 135.28 | I67: 138.47 | J67: 140.93 | K67: 136 | L67: 130.35 | M67: 108.10838
A68: 59 | B68: DABUR | C68: 427.8 | D68: 435.37 | E68: 416.48 | F68: 405.17 | G68: 386.28 | H68: 446.68 | I68: 465.57 | J68: 476.88 | K68: 454.25 | L68: 424.05 | M68: 74.62427
A69: 60 | B69: DALBHARAT | C69: 422.3 | D69: 435.45 | E69: 402.40 | F69: 382.50 | G69: 349.45 | H69: 455.35 | I69: 488.40 | J69: 508.30 | K69: 468.5 | L69: 415.55 | M69: 1.62129
A70: 61 | B70: DIVISLAB | C70: 1901.05 | D70: 1888.00 | E70: 1836.00 | F70: 1770.95 | G70: 1718.95 | H70: 1953.05 | I70: 2005.05 | J70: 2070.10 | K70: 1940 | L70: 1822.95 | M70: 3.22232
A71: 62 | B71: DRREDDY | C71: 3146.8 | D71: 3130.25 | E71: 3041.65 | F71: 2936.50 | G71: 2847.90 | H71: 3235.40 | I71: 3324.00 | J71: 3429.15 | K71: 3218.85 | L71: 3025.1 | M71: 6.68235
A72: 63 | B72: EDELWEISS | C72: 42.25 | D72: 41.88 | E72: 41.47 | F72: 40.68 | G72: 40.27 | H72: 42.67 | I72: 43.08 | J72: 43.87 | K72: 42.3 | L72: 41.1 | M72: 7.90032
A73: 64 | B73: EICHERMOT | C73: 12680.05 | D73: 12793.32 | E73: 12486.73 | F73: 12293.42 | G73: 11986.83 | H73: 12986.63 | I73: 13293.22 | J73: 13486.53 | K73: 13099.9 | L73: 12600 | M73: 1.02123
A74: 65 | B74: EMAMILTD | C74: 181.95 | D74: 177.72 | E74: 171.43 | F74: 160.92 | G74: 154.63 | H74: 188.23 | I74: 194.52 | J74: 205.03 | K74: 184 | L74: 167.2 | M74: 25.57313
A75: 66 | B75: ENDURANCE | C75: 592.2 | D75: 591.53 | E75: 576.17 | F75: 560.13 | G75: 544.77 | H75: 607.57 | I75: 622.93 | J75: 638.97 | K75: 606.9 | L75: 575.5 | M75: 0.47896
A76: 67 | B76: ENGINERSIN | C76: 59.45 | D76: 59.07 | E76: 58.03 | F76: 56.62 | G76: 55.58 | H76: 60.48 | I76: 61.52 | J76: 62.93 | K76: 60.1 | L76: 57.65 | M76: 17.04006
A77: 68 | B77: ESCORTS | C77: 592.4 | D77: 585.22 | E77: 566.03 | F77: 539.67 | G77: 520.48 | H77: 611.58 | I77: 630.77 | J77: 657.13 | K77: 604.4 | L77: 558.85 | M77: 70.11082
A78: 69 | B78: EXIDEIND | C78: 128.55 | D78: 129.57 | E78: 126.28 | F78: 124.02 | G78: 120.73 | H78: 131.83 | I78: 135.12 | J78: 137.38 | K78: 132.85 | L78: 127.3 | M78: 14.66191
A79: 70 | B79: FEDERALBNK | C79: 39.9 | D79: 40.23 | E79: 39.17 | F79: 38.43 | G79: 37.37 | H79: 40.97 | I79: 42.03 | J79: 42.77 | K79: 41.3 | L79: 39.5 | M79: 102.70614
A80: 71 | B80: FORTIS | C80: 122.15 | D80: 122.35 | E80: 118.90 | F80: 115.65 | G80: 112.20 | H80: 125.60 | I80: 129.05 | J80: 132.30 | K80: 125.8 | L80: 119.1 | M80: 19.33119
A81: 72 | B81: FCONSUMER | C81: 6.65 | D81: 6.65 | E81: 6.65 | F81: 6.65 | G81: 6.65 | H81: 6.65 | I81: 6.65 | J81: 6.65 | K81: 6.65 | L81: 6.65 | M81: 15.70645
A82: 73 | B82: FRETAIL | C82: 70.7 | D82: 70.70 | E82: 70.70 | F82: 70.70 | G82: 70.70 | H82: 70.70 | I82: 70.70 | J82: 70.70 | K82: 70.7 | L82: 70.7 | M82: 10.27307
A83: 74 | B83: GAIL | C83: 80.9 | D83: 79.35 | E83: 76.70 | F83: 72.50 | G83: 69.85 | H83: 83.55 | I83: 86.20 | J83: 90.40 | K83: 82 | L83: 75.15 | M83: 153.91445
A84: 75 | B84: GMRINFRA | C84: 16 | D84: 16.08 | E84: 15.82 | F84: 15.63 | G84: 15.37 | H84: 16.27 | I84: 16.53 | J84: 16.72 | K84: 16.35 | L84: 15.9 | M84: 105.71558
A85: 76 | B85: GICRE | C85: 109.15 | D85: 107.53 | E85: 104.57 | F85: 99.98 | G85: 97.02 | H85: 112.12 | I85: 115.08 | J85: 119.67 | K85: 110.5 | L85: 102.95 | M85: 2.09376
A86: 77 | B86: GLENMARK | C86: 213.05 | D86: 209.45 | E86: 199.40 | F86: 185.75 | G86: 175.70 | H86: 223.10 | I86: 233.15 | J86: 246.80 | K86: 219.5 | L86: 195.8 | M86: 26.37001
A87: 78 | B87: GODREJAGRO | C87: 349.3 | D87: 351.10 | E87: 338.20 | F87: 327.10 | G87: 314.20 | H87: 362.20 | I87: 375.10 | J87: 386.20 | K87: 364 | L87: 340 | M87: 0.4871
A88: 79 | B88: GODREJCP | C88: 531.45 | D88: 538.27 | E88: 518.38 | F88: 505.32 | G88: 485.43 | H88: 551.33 | I88: 571.22 | J88: 584.28 | K88: 558.15 | L88: 525.2 | M88: 18.59249
A89: 80 | B89: GODREJIND | C89: 278.65 | D89: 278.82 | E89: 272.83 | F89: 267.02 | G89: 261.03 | H89: 284.63 | I89: 290.62 | J89: 296.43 | K89: 284.8 | L89: 273 | M89: 0.88259
A90: 81 | B90: GODREJPROP | C90: 608.05 | D90: 600.95 | E90: 584.15 | F90: 560.25 | G90: 543.45 | H90: 624.85 | I90: 641.65 | J90: 665.55 | K90: 617.75 | L90: 577.05 | M90: 1.78002
A91: 82 | B91: GRAPHITE | C91: 140.25 | D91: 138.55 | E91: 136.85 | F91: 133.45 | G91: 131.75 | H91: 141.95 | I91: 143.65 | J91: 147.05 | K91: 140.25 | L91: 135.15 | M91: 8.51755
A92: 83 | B92: GRASIM | C92: 454.7 | D92: 461.20 | E92: 444.70 | F92: 434.70 | G92: 418.20 | H92: 471.20 | I92: 487.70 | J92: 497.70 | K92: 477.7 | L92: 451.2 | M92: 12.99292
A93: 84 | B93: GSPL | C93: 176.05 | D93: 179.70 | E93: 169.40 | F93: 162.75 | G93: 152.45 | H93: 186.35 | I93: 196.65 | J93: 203.30 | K93: 190 | L93: 173.05 | M93: 4.26398
A94: 85 | B94: HEG | C94: 489.45 | D94: 498.18 | E94: 472.37 | F94: 455.28 | G94: 429.47 | H94: 515.27 | I94: 541.08 | J94: 558.17 | K94: 524 | L94: 481.1 | M94: 1.68582
A95: 86 | B95: HCLTECH | C95: 405.8 | D95: 411.23 | E95: 393.87 | F95: 381.93 | G95: 364.57 | H95: 423.17 | I95: 440.53 | J95: 452.47 | K95: 428.6 | L95: 399.3 | M95: 35.90768
A96: 87 | B96: HDFCAMC | C96: 2177.15 | D96: 2178.72 | E96: 2133.43 | F96: 2089.72 | G96: 2044.43 | H96: 2222.43 | I96: 2267.72 | J96: 2311.43 | K96: 2224 | L96: 2135 | M96: 1.96125
A97: 88 | B97: HDFCBANK | C97: 813.85 | D97: 822.62 | E97: 801.23 | F97: 788.62 | G97: 767.23 | H97: 835.23 | I97: 856.62 | J97: 869.23 | K97: 844 | L97: 810 | M97: 55.89134
A98: 89 | B98: HDFCLIFE | C98: 422.3 | D98: 426.83 | E98: 411.67 | F98: 401.03 | G98: 385.87 | H98: 437.47 | I98: 452.63 | J98: 463.27 | K98: 442 | L98: 416.2 | M98: 12.60667
A99: 90 | B99: HAVELLS | C99: 471.5 | D99: 479.68 | E99: 461.37 | F99: 451.23 | G99: 432.92 | H99: 489.82 | I99: 508.13 | J99: 518.27 | K99: 498 | L99: 469.55 | M99: 11.71667
A100: 91 | B100: HEROMOTOCO | C100: 1582.05 | D100: 1582.73 | E100: 1542.47 | F100: 1502.88 | G100: 1462.62 | H100: 1622.32 | I100: 1662.58 | J100: 1702.17 | K100: 1623 | L100: 1543.15 | M100: 5.74957
A101: 92 | B101: HEXAWARE | C101: 220.9 | D101: 222.23 | E101: 214.77 | F101: 208.63 | G101: 201.17 | H101: 228.37 | I101: 235.83 | J101: 241.97 | K101: 229.7 | L101: 216.1 | M101: 3.23817
A102: 93 | B102: HINDALCO | C102: 88.8 | D102: 90.22 | E102: 86.98 | F102: 85.17 | G102: 81.93 | H102: 92.03 | I102: 95.27 | J102: 97.08 | K102: 93.45 | L102: 88.4 | M102: 60.08376
A103: 94 | B103: HINDPETRO | C103: 184.2 | D103: 184.18 | E103: 175.57 | F103: 166.93 | G103: 158.32 | H103: 192.82 | I103: 201.43 | J103: 210.07 | K103: 192.8 | L103: 175.55 | M103: 45.95587
A104: 95 | B104: HINDUNILVR | C104: 2154.1 | D104: 2178.72 | E104: 2103.33 | F104: 2052.57 | G104: 1977.18 | H104: 2229.48 | I104: 2304.87 | J104: 2355.63 | K104: 2254.1 | L104: 2127.95 | M104: 19.30834
A105: 96 | B105: HINDZINC | C105: 161.55 | D105: 160.00 | E105: 153.00 | F105: 144.45 | G105: 137.45 | H105: 168.55 | I105: 175.55 | J105: 184.10 | K105: 167 | L105: 151.45 | M105: 7.24986
A106: 97 | B106: HUDCO | C106: 19.2 | D106: 19.13 | E106: 18.82 | F106: 18.43 | G106: 18.12 | H106: 19.52 | I106: 19.83 | J106: 20.22 | K106: 19.45 | L106: 18.75 | M106: 10.06963
A107: 98 | B107: HDFC | C107: 1499.55 | D107: 1520.20 | E107: 1461.60 | F107: 1423.65 | G107: 1365.05 | H107: 1558.15 | I107: 1616.75 | J107: 1654.70 | K107: 1578.8 | L107: 1482.25 | M107: 28.28509
A108: 99 | B108: ICICIBANK | C108: 286.65 | D108: 292.55 | E108: 275.60 | F108: 264.55 | G108: 247.60 | H108: 303.60 | I108: 320.55 | J108: 331.60 | K108: 309.5 | L108: 281.5 | M108: 162.92578
A109: 100 | B109: ICICIGI | C109: 1045.05 | D109: 1059.32 | E109: 998.73 | F109: 952.42 | G109: 891.83 | H109: 1105.63 | I109: 1166.22 | J109: 1212.53 | K109: 1119.9 | L109: 1013 | M109: 2.01621
A110: 101 | B110: ICICIPRULI | C110: 338.9 | D110: 339.45 | E110: 325.10 | F110: 311.30 | G110: 296.95 | H110: 353.25 | I110: 367.60 | J110: 381.40 | K110: 353.8 | L110: 325.65 | M110: 10.53162
A111: 102 | B111: IDBI | C111: 19.4 | D111: 19.42 | E111: 18.98 | F111: 18.57 | G111: 18.13 | H111: 19.83 | I111: 20.27 | J111: 20.68 | K111: 19.85 | L111: 19 | M111: 6.52812
A112: 103 | B112: IDFCFIRSTB | C112: 19.65 | D112: 20.02 | E112: 19.13 | F112: 18.62 | G112: 17.73 | H112: 20.53 | I112: 21.42 | J112: 21.93 | K112: 20.9 | L112: 19.5 | M112: 209.67183
A113: 104 | B113: ITC | C113: 177.9 | D113: 175.88 | E113: 169.02 | F113: 160.13 | G113: 153.27 | H113: 184.77 | I113: 191.63 | J113: 200.52 | K113: 182.75 | L113: 167 | M113: 184.5588
A114: 105 | B114: IBULHSGFIN | C114: 96.65 | D114: 96.38 | E114: 93.77 | F114: 90.88 | G114: 88.27 | H114: 99.27 | I114: 101.88 | J114: 104.77 | K114: 99 | L114: 93.5 | M114: 169.75776
A115: 106 | B115: IBVENTURES | C115: 102.95 | D115: 104.27 | E115: 100.68 | F115: 98.42 | G115: 94.83 | H115: 106.53 | I115: 110.12 | J115: 112.38 | K115: 107.85 | L115: 102 | M115: 38.76523
A116: 107 | B116: INDIANB | C116: 44.8 | D116: 44.47 | E116: 43.83 | F116: 42.87 | G116: 42.23 | H116: 45.43 | I116: 46.07 | J116: 47.03 | K116: 45.1 | L116: 43.5 | M116: 14.06266
A117: 108 | B117: INDHOTEL | C117: 69.35 | D117: 70.72 | E117: 67.63 | F117: 65.92 | G117: 62.83 | H117: 72.43 | I117: 75.52 | J117: 77.23 | K117: 73.8 | L117: 69 | M117: 7.1894
A118: 109 | B118: IOC | C118: 79.5 | D118: 79.40 | E118: 76.70 | F118: 73.90 | G118: 71.20 | H118: 82.20 | I118: 84.90 | J118: 87.70 | K118: 82.1 | L118: 76.6 | M118: 367.42641
A119: 110 | B119: IGL | C119: 406.7 | D119: 398.92 | E119: 387.88 | F119: 369.07 | G119: 358.03 | H119: 417.73 | I119: 428.77 | J119: 447.58 | K119: 409.95 | L119: 380.1 | M119: 21.83118
A120: 111 | B120: INDUSINDBK | C120: 313.2 | D120: 324.47 | E120: 298.93 | F120: 284.67 | G120: 259.13 | H120: 338.73 | I120: 364.27 | J120: 378.53 | K120: 350 | L120: 310.2 | M120: 83.91172
A121: 112 | B121: NAUKRI | C121: 2006.65 | D121: 1997.25 | E121: 1940.40 | F121: 1874.15 | G121: 1817.30 | H121: 2063.50 | I121: 2120.35 | J121: 2186.60 | K121: 2054.1 | L121: 1931 | M121: 2.45742
A122: 113 | B122: INFY | C122: 585.7 | D122: 591.28 | E122: 576.57 | F122: 567.43 | G122: 552.72 | H122: 600.42 | I122: 615.13 | J122: 624.27 | K122: 606 | L122: 582.15 | M122: 60.92028
A123: 114 | B123: INDIGO | C123: 953.25 | D123: 957.73 | E123: 910.57 | F123: 867.88 | G123: 820.72 | H123: 1000.42 | I123: 1047.58 | J123: 1090.27 | K123: 1004.9 | L123: 915.05 | M123: 18.09304
A124: 115 | B124: IPCALAB | C124: 1385.55 | D124: 1398.50 | E124: 1367.05 | F124: 1348.55 | G124: 1317.10 | H124: 1417.00 | I124: 1448.45 | J124: 1466.95 | K124: 1429.95 | L124: 1380 | M124: 0.82039
A125: 116 | B125: JSWENERGY | C125: 42.4 | D125: 42.88 | E125: 41.27 | F125: 40.13 | G125: 38.52 | H125: 44.02 | I125: 45.63 | J125: 46.77 | K125: 44.5 | L125: 41.75 | M125: 3.42262
A126: 117 | B126: JSWSTEEL | C126: 140.7 | D126: 140.45 | E126: 132.75 | F126: 124.80 | G126: 117.10 | H126: 148.40 | I126: 156.10 | J126: 164.05 | K126: 148.15 | L126: 132.5 | M126: 63.29214
A127: 118 | B127: JINDALSTEL | C127: 63.15 | D127: 66.65 | E127: 58.50 | F127: 53.85 | G127: 45.70 | H127: 71.30 | I127: 79.45 | J127: 84.10 | K127: 74.8 | L127: 62 | M127: 152.07085
A128: 119 | B128: JUBLFOOD | C128: 1297.8 | D128: 1319.22 | E128: 1243.58 | F128: 1189.37 | G128: 1113.73 | H128: 1373.43 | I128: 1449.07 | J128: 1503.28 | K128: 1394.85 | L128: 1265 | M128: 22.23606
A129: 120 | B129: JUBILANT | C129: 268.75 | D129: 265.97 | E129: 257.83 | F129: 246.92 | G129: 238.78 | H129: 276.88 | I129: 285.02 | J129: 295.93 | K129: 274.1 | L129: 255.05 | M129: 4.33124
A130: 121 | B130: KOTAKBANK | C130: 1140.85 | D130: 1136.95 | E130: 1090.90 | F130: 1040.95 | G130: 994.90 | H130: 1186.90 | I130: 1232.95 | J130: 1282.90 | K130: 1183 | L130: 1087 | M130: 94.95046
A131: 122 | B131: L&TFH | C131: 48.9 | D131: 49.37 | E131: 47.73 | F131: 46.57 | G131: 44.93 | H131: 50.53 | I131: 52.17 | J131: 53.33 | K131: 51 | L131: 48.2 | M131: 77.86477
A132: 123 | B132: LTTS | C132: 1107.6 | D132: 1124.57 | E132: 1068.03 | F132: 1028.47 | G132: 971.93 | H132: 1164.13 | I132: 1220.67 | J132: 1260.23 | K132: 1181.1 | L132: 1085 | M132: 0.39962
A133: 124 | B133: LICHSGFIN | C133: 218.65 | D133: 223.12 | E133: 211.53 | F133: 204.42 | G133: 192.83 | H133: 230.23 | I133: 241.82 | J133: 248.93 | K133: 234.7 | L133: 216 | M133: 75.80796
A134: 125 | B134: LTI | C134: 1354.15 | D134: 1363.80 | E134: 1335.35 | F134: 1316.55 | G134: 1288.10 | H134: 1382.60 | I134: 1411.05 | J134: 1429.85 | K134: 1392.25 | L134: 1345 | M134: 0.36496
A135: 126 | B135: LT | C135: 774.65 | D135: 776.18 | E135: 761.27 | F135: 747.88 | G135: 732.97 | H135: 789.57 | I135: 804.48 | J135: 817.87 | K135: 791.1 | L135: 762.8 | M135: 39.39306
A136: 127 | B136: LUPIN | C136: 655.85 | D136: 633.25 | E136: 600.60 | F136: 545.35 | G136: 512.70 | H136: 688.50 | I136: 721.15 | J136: 776.40 | K136: 665.9 | L136: 578 | M136: 11.17946
A137: 128 | B137: MRF | C137: 55062.25 | D137: 55254.08 | E137: 54308.17 | F137: 53554.08 | G137: 52608.17 | H137: 56008.17 | I137: 56954.08 | J137: 57708.17 | K137: 56200 | L137: 54500 | M137: 0.04805
A138: 129 | B138: MGL | C138: 824.5 | D138: 823.37 | E138: 802.28 | F138: 780.07 | G138: 758.98 | H138: 845.58 | I138: 866.67 | J138: 888.88 | K138: 844.45 | L138: 801.15 | M138: 13.51299
A139: 130 | B139: M&MFIN | C139: 142.55 | D139: 146.38 | E139: 136.27 | F139: 129.98 | G139: 119.87 | H139: 152.67 | I139: 162.78 | J139: 169.07 | K139: 156.5 | L139: 140.1 | M139: 23.06322
A140: 131 | B140: M&M | C140: 280.7 | D140: 280.68 | E140: 271.37 | F140: 262.03 | G140: 252.72 | H140: 290.02 | I140: 299.33 | J140: 308.67 | K140: 290 | L140: 271.35 | M140: 23.52196
A141: 132 | B141: MANAPPURAM | C141: 92.4 | D141: 92.87 | E141: 90.78 | F141: 89.17 | G141: 87.08 | H141: 94.48 | I141: 96.57 | J141: 98.18 | K141: 94.95 | L141: 91.25 | M141: 28.02932
A142: 133 | B142: MRPL | C142: 23.55 | D142: 23.52 | E142: 23.03 | F142: 22.52 | G142: 22.03 | H142: 24.03 | I142: 24.52 | J142: 25.03 | K142: 24 | L142: 23 | M142: 8.09305
A143: 134 | B143: MARICO | C143: 261.15 | D143: 264.62 | E143: 253.53 | F143: 245.92 | G143: 234.83 | H143: 272.23 | I143: 283.32 | J143: 290.93 | K143: 275.7 | L143: 257 | M143: 69.41813
A144: 135 | B144: MARUTI | C144: 4011.5 | D144: 4093.20 | E144: 3919.40 | F144: 3827.30 | G144: 3653.50 | H144: 4185.30 | I144: 4359.10 | J144: 4451.20 | K144: 4267 | L144: 4001.1 | M144: 8.68935
A145: 136 | B145: MFSL | C145: 333.85 | D145: 345.17 | E145: 315.33 | F145: 296.82 | G145: 266.98 | H145: 363.68 | I145: 393.52 | J145: 412.03 | K145: 375 | L145: 326.65 | M145: 16.72907
A146: 137 | B146: MINDTREE | C146: 701.1 | D146: 716.77 | E146: 676.33 | F146: 651.57 | G146: 611.13 | H146: 741.53 | I146: 781.97 | J146: 806.73 | K146: 757.2 | L146: 692 | M146: 4.76824
A147: 138 | B147: MOTHERSUMI | C147: 54.7 | D147: 55.78 | E147: 53.12 | F147: 51.53 | G147: 48.87 | H147: 57.37 | I147: 60.03 | J147: 61.62 | K147: 58.45 | L147: 54.2 | M147: 275.35769
A148: 139 | B148: MPHASIS | C148: 671.6 | D148: 693.53 | E148: 639.07 | F148: 606.53 | G148: 552.07 | H148: 726.07 | I148: 780.53 | J148: 813.07 | K148: 748 | L148: 661 | M148: 0.51751
A149: 140 | B149: MUTHOOTFIN | C149: 606 | D149: 608.57 | E149: 591.13 | F149: 576.27 | G149: 558.83 | H149: 623.43 | I149: 640.87 | J149: 655.73 | K149: 626 | L149: 593.7 | M149: 5.3477
A150: 141 | B150: NATCOPHARM | C150: 516.5 | D150: 518.83 | E150: 492.67 | F150: 468.83 | G150: 442.67 | H150: 542.67 | I150: 568.83 | J150: 592.67 | K150: 545 | L150: 495 | M150: 0.70644
A151: 142 | B151: NBCC | C151: 16.1 | D151: 16.17 | E151: 15.83 | F151: 15.57 | G151: 15.23 | H151: 16.43 | I151: 16.77 | J151: 17.03 | K151: 16.5 | L151: 15.9 | M151: 131.59247
A152: 143 | B152: NHPC | C152: 19.8 | D152: 20.10 | E152: 18.75 | F152: 17.70 | G152: 16.35 | H152: 21.15 | I152: 22.50 | J152: 23.55 | K152: 21.45 | L152: 19.05 | M152: 169.98025
A153: 144 | B153: NMDC | C153: 79.25 | D153: 78.55 | E153: 76.40 | F153: 73.55 | G153: 71.40 | H153: 81.40 | I153: 83.55 | J153: 86.40 | K153: 80.7 | L153: 75.7 | M153: 115.54574
A154: 145 | B154: NTPC | C154: 79.55 | D154: 80.17 | E154: 78.23 | F154: 76.92 | G154: 74.98 | H154: 81.48 | I154: 83.42 | J154: 84.73 | K154: 82.1 | L154: 78.85 | M154: 645.18347
A155: 146 | B155: NATIONALUM | C155: 28.15 | D155: 28.15 | E155: 27.50 | F155: 26.85 | G155: 26.20 | H155: 28.80 | I155: 29.45 | J155: 30.10 | K155: 28.8 | L155: 27.5 | M155: 182.52296
A156: 147 | B156: NESTLEIND | C156: 15104.65 | D156: 15349.78 | E156: 14759.87 | F156: 14415.08 | G156: 13825.17 | H156: 15694.57 | I156: 16284.48 | J156: 16629.27 | K156: 15939.7 | L156: 15005 | M156: 0.59649
A157: 148 | B157: NAM-INDIA | C157: 251.25 | D157: 253.20 | E157: 245.20 | F157: 239.15 | G157: 231.15 | H157: 259.25 | I157: 267.25 | J157: 273.30 | K157: 261.2 | L157: 247.15 | M157: 1.68229
A158: 149 | B158: OBEROIRLTY | C158: 320.2 | D158: 325.08 | E158: 309.37 | F158: 298.53 | G158: 282.82 | H158: 335.92 | I158: 351.63 | J158: 362.47 | K158: 340.8 | L158: 314.25 | M158: 833.60147
A159: 150 | B159: ONGC | C159: 69.85 | D159: 69.12 | E159: 67.23 | F159: 64.62 | G159: 62.73 | H159: 71.73 | I159: 73.62 | J159: 76.23 | K159: 71 | L159: 66.5 | M159: 95.97439
A160: 151 | B160: OIL | C160: 84.25 | D160: 83.37 | E160: 81.13 | F160: 78.02 | G160: 75.78 | H160: 86.48 | I160: 88.72 | J160: 91.83 | K160: 85.6 | L160: 80.25 | M160: 0.2199
A161: 152 | B161: OFSS | C161: 2034.15 | D161: 2039.45 | E161: 1869.70 | F161: 1705.25 | G161: 1535.50 | H161: 2203.90 | I161: 2373.65 | J161: 2538.10 | K161: 2209.2 | L161: 1875 | M161: 3.09452
A162: 153 | B162: PIIND | C162: 1177.8 | D162: 1174.27 | E162: 1156.53 | F162: 1135.27 | G162: 1117.53 | H162: 1195.53 | I162: 1213.27 | J162: 1234.53 | K162: 1192 | L162: 1153 | M162: 7.15716
A163: 154 | B163: PNBHOUSING | C163: 161 | D163: 165.47 | E163: 156.28 | F163: 151.57 | G163: 142.38 | H163: 170.18 | I163: 179.37 | J163: 184.08 | K163: 174.65 | L163: 160.75 | M163: 0.22781
A164: 155 | B164: PAGEIND | C164: 16503 | D164: 16611.03 | E164: 16222.07 | F164: 15941.13 | G164: 15552.17 | H164: 16891.97 | I164: 17280.93 | J164: 17561.87 | K164: 17000 | L164: 16330.1 | M164: 23.08304
A165: 156 | B165: PETRONET | C165: 195.8 | D165: 197.87 | E165: 192.13 | F165: 188.47 | G165: 182.73 | H165: 201.53 | I165: 207.27 | J165: 210.93 | K165: 203.6 | L165: 194.2 | M165: 0.12497
A166: 157 | B166: PFIZER | C166: 4020 | D166: 3999.82 | E166: 3880.63 | F166: 3741.27 | G166: 3622.08 | H166: 4139.18 | I166: 4258.37 | J166: 4397.73 | K166: 4119 | L166: 3860.45 | M166: 7.69665
A167: 158 | B167: PIDILITIND | C167: 1215.9 | D167: 1237.57 | E167: 1174.73 | F167: 1133.57 | G167: 1070.73 | H167: 1278.73 | I167: 1341.57 | J167: 1382.73 | K167: 1300.4 | L167: 1196.4 | M167: 29.79765
A168: 159 | B168: PEL | C168: 912.1 | D168: 906.45 | E168: 876.90 | F168: 841.70 | G168: 812.15 | H168: 941.65 | I168: 971.20 | J168: 1006.40 | K168: 936 | L168: 871.25 | M168: 94.55973
A169: 160 | B169: PFC | C169: 86.25 | D169: 87.45 | E169: 84.50 | F169: 82.75 | G169: 79.80 | H169: 89.20 | I169: 92.15 | J169: 93.90 | K169: 90.4 | L169: 85.7 | M169: 359.92338
A170: 161 | B170: POWERGRID | C170: 156.2 | D170: 156.13 | E170: 151.82 | F170: 147.43 | G170: 143.12 | H170: 160.52 | I170: 164.83 | J170: 169.22 | K170: 160.45 | L170: 151.75 | M170: 3.99518
A171: 162 | B171: PRESTIGE | C171: 182 | D171: 182.75 | E171: 176.30 | F171: 170.60 | G171: 164.15 | H171: 188.45 | I171: 194.90 | J171: 200.60 | K171: 189.2 | L171: 177.05 | M171: 0.02985
A172: 163 | B172: PGHH | C172: 10363.05 | D172: 10284.37 | E172: 10068.73 | F172: 9774.42 | G172: 9558.78 | H172: 10578.68 | I172: 10794.32 | J172: 11088.63 | K172: 10500 | L172: 9990.05 | M172: 154.49355
A173: 164 | B173: PNB | C173: 29.65 | D173: 29.87 | E173: 29.03 | F173: 28.42 | G173: 27.58 | H173: 30.48 | I173: 31.32 | J173: 31.93 | K173: 30.7 | L173: 29.25 | M173: 5.40845
A174: 165 | B174: QUESS | C174: 219.15 | D174: 216.93 | E174: 212.87 | F174: 206.58 | G174: 202.52 | H174: 223.22 | I174: 227.28 | J174: 233.57 | K174: 221 | L174: 210.65 | M174: 58.43485
A175: 166 | B175: RBLBANK | C175: 110.95 | D175: 119.77 | E175: 100.43 | F175: 89.92 | G175: 70.58 | H175: 130.28 | I175: 149.62 | J175: 160.13 | K175: 139.1 | L175: 109.25 | M175: 70.38131
A176: 167 | B176: RECLTD | C176: 85.05 | D176: 85.97 | E176: 83.73 | F176: 82.42 | G176: 80.18 | H176: 87.28 | I176: 89.52 | J176: 90.83 | K176: 88.2 | L176: 84.65 | M176: 1.23317
A177: 168 | B177: RAJESHEXPO | C177: 632.05 | D177: 611.67 | E177: 573.38 | F177: 514.72 | G177: 476.43 | H177: 670.33 | I177: 708.62 | J177: 767.28 | K177: 649.95 | L177: 553 | M177: 158.86673
A178: 169 | B178: RELIANCE | C178: 1077.45 | D178: 1089.40 | E178: 1044.35 | F178: 1011.25 | G178: 966.20 | H178: 1122.50 | I178: 1167.55 | J178: 1200.65 | K178: 1134.45 | L178: 1056.3 | M178: 4.4517
A179: 170 | B179: SBILIFE | C179: 650.15 | D179: 647.48 | E179: 629.97 | F179: 609.78 | G179: 592.27 | H179: 667.67 | I179: 685.18 | J179: 705.37 | K179: 665 | L179: 627.3 | M179: 3.14532
A180: 171 | B180: SRF | C180: 2668.35 | D180: 2666.02 | E180: 2564.43 | F180: 2460.52 | G180: 2358.93 | H180: 2769.93 | I180: 2871.52 | J180: 2975.43 | K180: 2767.6 | L180: 2562.1 | M180: 0.26041
A181: 172 | B181: SHREECEM | C181: 15783.8 | D181: 15964.08 | E181: 15229.72 | F181: 14675.63 | G181: 13941.27 | H181: 16518.17 | I181: 17252.53 | J181: 17806.62 | K181: 16698.45 | L181: 15410 | M181: 19.83266
A182: 173 | B182: SRTRANSFIN | C182: 520.65 | D182: 556.78 | E182: 478.87 | F182: 437.08 | G182: 359.17 | H182: 598.57 | I182: 676.48 | J182: 718.27 | K182: 634.7 | L182: 515 | M182: 3.34263
A183: 174 | B183: SIEMENS | C183: 1051.25 | D183: 1063.85 | E183: 1031.40 | F183: 1011.55 | G183: 979.10 | H183: 1083.70 | I183: 1116.15 | J183: 1136.00 | K183: 1096.3 | L183: 1044 | M183: 926.56638
A184: 175 | B184: SBIN | C184: 175.5 | D184: 179.57 | E184: 170.93 | F184: 166.37 | G184: 157.73 | H184: 184.13 | I184: 192.77 | J184: 197.33 | K184: 188.2 | L184: 175 | M184: 179.54383
A185: 176 | B185: SAIL | C185: 21.65 | D185: 21.92 | E185: 21.23 | F185: 20.82 | G185: 20.13 | H185: 22.33 | I185: 23.02 | J185: 23.43 | K185: 22.6 | L185: 21.5 | M185: 8.07575
A186: 177 | B186: STRTECH | C186: 63.25 | D186: 63.40 | E186: 61.85 | F186: 60.45 | G186: 58.90 | H186: 64.80 | I186: 66.35 | J186: 67.75 | K186: 64.95 | L186: 62 | M186: 37.57229
A187: 178 | B187: SUNPHARMA | C187: 375.95 | D187: 368.58 | E187: 347.37 | F187: 318.78 | G187: 297.57 | H187: 397.17 | I187: 418.38 | J187: 446.97 | K187: 389.8 | L187: 340 | M187: 15.5546
A188: 179 | B188: SUNTV | C188: 266.6 | D188: 268.38 | E188: 257.77 | F188: 248.93 | G188: 238.32 | H188: 277.22 | I188: 287.83 | J188: 296.67 | K188: 279 | L188: 259.55 | M188: 0.78761
A189: 180 | B189: SYNGENE | C189: 251.15 | D189: 248.13 | E189: 236.37 | F189: 221.58 | G189: 209.82 | H189: 262.92 | I189: 274.68 | J189: 289.47 | K189: 259.9 | L189: 233.35 | M189: 8.43524
A190: 181 | B190: TVSMOTOR | C190: 252.95 | D190: 260.80 | E190: 243.65 | F190: 234.35 | G190: 217.20 | H190: 270.10 | I190: 287.25 | J190: 296.55 | K190: 277.95 | L190: 251.5 | M190: 32.87223
A191: 182 | B191: TCS | C191: 1654.2 | D191: 1681.40 | E191: 1622.80 | F191: 1591.40 | G191: 1532.80 | H191: 1712.80 | I191: 1771.40 | J191: 1802.80 | K191: 1740 | L191: 1650 | M191: 26.8123
A192: 183 | B192: TATACONSUM | C192: 267.15 | D192: 272.38 | E192: 258.77 | F192: 250.38 | G192: 236.77 | H192: 280.77 | I192: 294.38 | J192: 302.77 | K192: 286 | L192: 264 | M192: 38.13549
A193: 184 | B193: TATAMTRDVR | C193: 29.55 | D193: 29.45 | E193: 28.90 | F193: 28.25 | G193: 27.70 | H193: 30.10 | I193: 30.65 | J193: 31.30 | K193: 30 | L193: 28.8 | M193: 756.21897
A194: 185 | B194: TATAMOTORS | C194: 65.3 | D194: 65.67 | E194: 64.43 | F194: 63.57 | G194: 62.33 | H194: 66.53 | I194: 67.77 | J194: 68.63 | K194: 66.9 | L194: 64.8 | M194: 79.77888
A195: 186 | B195: TATAPOWER | C195: 30.15 | D195: 30.67 | E195: 29.43 | F195: 28.72 | G195: 27.48 | H195: 31.38 | I195: 32.62 | J195: 33.33 | K195: 31.9 | L195: 29.95 | M195: 107.38727
A196: 187 | B196: TATASTEEL | C196: 253.75 | D196: 257.88 | E196: 246.87 | F196: 239.98 | G196: 228.97 | H196: 264.77 | I196: 275.78 | J196: 282.67 | K196: 268.9 | L196: 251 | M196: 30.81521
A197: 188 | B197: TECHM | C197: 520.9 | D197: 521.38 | E197: 509.62 | F197: 498.33 | G197: 486.57 | H197: 532.67 | I197: 544.43 | J197: 555.72 | K197: 533.15 | L197: 510.1 | M197: 1.68669
A198: 189 | B198: NIACL | C198: 107.1 | D198: 105.58 | E198: 100.37 | F198: 93.63 | G198: 88.42 | H198: 112.32 | I198: 117.53 | J198: 124.27 | K198: 110.8 | L198: 98.85 | M198: 5.867
A199: 190 | B199: RAMCOCEM | C199: 473.85 | D199: 483.85 | E199: 460.00 | F199: 446.15 | G199: 422.30 | H199: 497.70 | I199: 521.55 | J199: 535.40 | K199: 507.7 | L199: 470 | M199: 18.09101
A200: 191 | B200: TITAN | C200: 862.8 | D200: 882.93 | E200: 835.82 | F200: 808.83 | G200: 761.72 | H200: 909.92 | I200: 957.03 | J200: 984.02 | K200: 930.05 | L200: 855.95 | M200: 1.67763
A201: 192 | B201: TORNTPHARM | C201: 2077 | D201: 2046.67 | E201: 1980.33 | F201: 1883.67 | G201: 1817.33 | H201: 2143.33 | I201: 2209.67 | J201: 2306.33 | K201: 2113 | L201: 1950 | M201: 11.09871
A202: 193 | B202: TORNTPOWER | C202: 278.95 | D202: 277.93 | E202: 273.67 | F202: 268.38 | G202: 264.12 | H202: 283.22 | I202: 287.48 | J202: 292.77 | K202: 282.2 | L202: 272.65 | M202: 43.40034
A203: 194 | B203: UPL | C203: 298.1 | D203: 300.20 | E203: 292.90 | F203: 287.70 | G203: 280.40 | H203: 305.40 | I203: 312.70 | J203: 317.90 | K203: 307.5 | L203: 295 | M203: 4.5163
A204: 195 | B204: ULTRACEMCO | C204: 3041.6 | D204: 3085.87 | E204: 2980.73 | F204: 2919.87 | G204: 2814.73 | H204: 3146.73 | I204: 3251.87 | J204: 3312.73 | K204: 3191 | L204: 3025 | M204: 21.60583
A205: 196 | B205: UNIONBANK | C205: 28.6 | D205: 28.62 | E205: 28.08 | F205: 27.57 | G205: 27.03 | H205: 29.13 | I205: 29.67 | J205: 30.18 | K205: 29.15 | L205: 28.1 | M205: 3.17811
... 30 more rows

Sheet MidCap Intra
L5: Back To Main Page
A6: FOR INTRA DAY TRADING | K6: =Main!B10 -> 2020-04-07
A9: Sr.no | B9: Scrip | C9: CLOSE RATE | D9: Pivot Point | E9: Supports | H9: Resistances
C10: Point | E10: S1 | F10: S2 | G10: S3 | H10: R1 | I10: R2 | J10: R3 | K10: HIGH | L10: LOW | M10: Total Trade Quanity in Lakhs
A11: 1 | B11: 3MINDIA | C11: 17490.1 | D11: 17771.70 | E11: 16893.40 | F11: 16296.70 | G11: 15418.40 | H11: 18368.40 | I11: 19246.70 | J11: 19843.40 | K11: 18650 | L11: 17175 | M11: 0.07588
A12: 2 | B12: AARTIIND | C12: 790.7 | D12: 788.48 | E12: 772.97 | F12: 755.23 | G12: 739.72 | H12: 806.22 | I12: 821.73 | J12: 839.47 | K12: 804 | L12: 770.75 | M12: 1.35885
A13: 3 | B13: AAVAS | C13: 1132.4 | D13: 1148.27 | E13: 1116.53 | F13: 1100.67 | G13: 1068.93 | H13: 1164.13 | I13: 1195.87 | J13: 1211.73 | K13: 1180 | L13: 1132.4 | M13: 1.04654
A14: 4 | B14: ABBOTINDIA | C14: 15810.5 | D14: 15673.50 | E14: 15347.00 | F14: 14883.50 | G14: 14557.00 | H14: 16137.00 | I14: 16463.50 | J14: 16927.00 | K14: 16000 | L14: 15210 | M14: 0.28827
A15: 5 | B15: ABCAPITAL | C15: 43.45 | D15: 43.23 | E15: 41.27 | F15: 39.08 | G15: 37.12 | H15: 45.42 | I15: 47.38 | J15: 49.57 | K15: 45.2 | L15: 41.05 | M15: 13.36547
A16: 6 | B16: ABFRL | C16: 145.95 | D16: 145.65 | E16: 142.30 | F16: 138.65 | G16: 135.30 | H16: 149.30 | I16: 152.65 | J16: 156.30 | K16: 149 | L16: 142 | M16: 4.31692
A17: 7 | B17: ACC | C17: 962.6 | D17: 956.45 | E17: 943.10 | F17: 923.60 | G17: 910.25 | H17: 975.95 | I17: 989.30 | J17: 1008.80 | K17: 969.8 | L17: 936.95 | M17: 12.21295
A18: 8 | B18: ADANIGAS | C18: 90.35 | D18: 90.43 | E18: 88.87 | F18: 87.38 | G18: 85.82 | H18: 91.92 | I18: 93.48 | J18: 94.97 | K18: 92 | L18: 88.95 | M18: 8.94968
A19: 9 | B19: ADANIGREEN | C19: 151.9 | D19: 152.40 | E19: 149.95 | F19: 148.00 | G19: 145.55 | H19: 154.35 | I19: 156.80 | J19: 158.75 | K19: 154.85 | L19: 150.45 | M19: 2.59616
A20: 10 | B20: ADANIPORTS | C20: 244.8 | D20: 245.50 | E20: 238.20 | F20: 231.60 | G20: 224.30 | H20: 252.10 | I20: 259.40 | J20: 266.00 | K20: 252.8 | L20: 238.9 | M20: 72.10453
A21: 11 | B21: ADANIPOWER | C21: 26.75 | D21: 26.57 | E21: 25.98 | F21: 25.22 | G21: 24.63 | H21: 27.33 | I21: 27.92 | J21: 28.68 | K21: 27.15 | L21: 25.8 | M21: 47.40718
A22: 12 | B22: ADANITRANS | C22: 193.95 | D22: 189.65 | E22: 184.30 | F22: 174.65 | G22: 169.30 | H22: 199.30 | I22: 204.65 | J22: 214.30 | K22: 195 | L22: 180 | M22: 1.77468
A23: 13 | B23: ADVENZYMES | C23: 131.3 | D23: 132.78 | E23: 128.62 | F23: 125.93 | G23: 121.77 | H23: 135.47 | I23: 139.63 | J23: 142.32 | K23: 136.95 | L23: 130.1 | M23: 0.38645
A24: 14 | B24: AEGISCHEM | C24: 131.4 | D24: 132.70 | E24: 127.70 | F24: 124.00 | G24: 119.00 | H24: 136.40 | I24: 141.40 | J24: 145.10 | K24: 137.7 | L24: 129 | M24: 0.70138
A25: 15 | B25: AFFLE | C25: 955.55 | D25: 961.80 | E25: 924.60 | F25: 893.65 | G25: 856.45 | H25: 992.75 | I25: 1029.95 | J25: 1060.90 | K25: 999 | L25: 930.85 | M25: 0.28126
A26: 16 | B26: AIAENG | C26: 1277.1 | D26: 1284.60 | E26: 1244.75 | F26: 1212.40 | G26: 1172.55 | H26: 1316.95 | I26: 1356.80 | J26: 1389.15 | K26: 1324.45 | L26: 1252.25 | M26: 0.23542
A27: 17 | B27: AJANTPHARM | C27: 1312.55 | D27: 1340.52 | E27: 1267.03 | F27: 1221.52 | G27: 1148.03 | H27: 1386.03 | I27: 1459.52 | J27: 1505.03 | K27: 1414 | L27: 1295 | M27: 1.66315
A28: 18 | B28: AKZOINDIA | C28: 2066.65 | D28: 2088.88 | E28: 2017.77 | F28: 1968.88 | G28: 1897.77 | H28: 2137.77 | I28: 2208.88 | J28: 2257.77 | K28: 2160 | L28: 2040 | M28: 0.06275
A29: 19 | B29: ALKEM | C29: 2267.05 | D29: 2272.27 | E29: 2244.78 | F29: 2222.52 | G29: 2195.03 | H29: 2294.53 | I29: 2322.02 | J29: 2344.28 | K29: 2299.75 | L29: 2250 | M29: 1.96222
A30: 20 | B30: ALLCARGO | C30: 58.9 | D30: 58.80 | E30: 57.60 | F30: 56.30 | G30: 55.10 | H30: 60.10 | I30: 61.30 | J30: 62.60 | K30: 60 | L30: 57.5 | M30: 0.69785
A31: 21 | B31: AMARAJABAT | C31: 460.2 | D31: 465.28 | E31: 450.57 | F31: 440.93 | G31: 426.22 | H31: 474.92 | I31: 489.63 | J31: 499.27 | K31: 480 | L31: 455.65 | M31: 4.57301
A32: 22 | B32: AMBER | C32: 1192.5 | D32: 1228.10 | E32: 1146.40 | F32: 1100.30 | G32: 1018.60 | H32: 1274.20 | I32: 1355.90 | J32: 1402.00 | K32: 1309.8 | L32: 1182 | M32: 0.5473
A33: 23 | B33: AMBUJACEM | C33: 153 | D33: 153.73 | E33: 150.82 | F33: 148.63 | G33: 145.72 | H33: 155.92 | I33: 158.83 | J33: 161.02 | K33: 156.65 | L33: 151.55 | M33: 37.38943
A34: 24 | B34: APLAPOLLO | C34: 1197.4 | D34: 1209.60 | E34: 1179.20 | F34: 1161.00 | G34: 1130.60 | H34: 1227.80 | I34: 1258.20 | J34: 1276.40 | K34: 1240 | L34: 1191.4 | M34: 0.16852
A35: 25 | B35: APLLTD | C35: 536.05 | D35: 536.07 | E35: 522.33 | F35: 508.62 | G35: 494.88 | H35: 549.78 | I35: 563.52 | J35: 577.23 | K35: 549.8 | L35: 522.35 | M35: 1.71739
A36: 26 | B36: APOLLOHOSP | C36: 1189.55 | D36: 1172.35 | E36: 1105.25 | F36: 1020.95 | G36: 953.85 | H36: 1256.65 | I36: 1323.75 | J36: 1408.05 | K36: 1239.45 | L36: 1088.05 | M36: 23.97409
A37: 27 | B37: APOLLOTYRE | C37: 78.45 | D37: 78.13 | E37: 76.77 | F37: 75.08 | G37: 73.72 | H37: 79.82 | I37: 81.18 | J37: 82.87 | K37: 79.5 | L37: 76.45 | M37: 37.54206
A38: 28 | B38: ARVINDFASN | C38: 138.35 | D38: 137.95 | E38: 135.40 | F38: 132.45 | G38: 129.90 | H38: 140.90 | I38: 143.45 | J38: 146.40 | K38: 140.5 | L38: 135 | M38: 0.11006
A39: 29 | B39: ASAHIINDIA | C39: 149.5 | D39: 148.92 | E39: 144.83 | F39: 140.17 | G39: 136.08 | H39: 153.58 | I39: 157.67 | J39: 162.33 | K39: 153 | L39: 144.25 | M39: 0.06347
A40: 30 | B40: ASHOKA | C40: 37.5 | D40: 38.52 | E40: 36.03 | F40: 34.57 | G40: 32.08 | H40: 39.98 | I40: 42.47 | J40: 43.93 | K40: 41 | L40: 37.05 | M40: 5.14587
A41: 31 | B41: ASHOKLEY | C41: 38.15 | D41: 39.10 | E41: 37.05 | F41: 35.95 | G41: 33.90 | H41: 40.20 | I41: 42.25 | J41: 43.35 | K41: 41.15 | L41: 38 | M41: 375.56156
A42: 32 | B42: ASIANPAINT | C42: 1520.9 | D42: 1551.38 | E42: 1486.77 | F42: 1452.63 | G42: 1388.02 | H42: 1585.52 | I42: 1650.13 | J42: 1684.27 | K42: 1616 | L42: 1517.25 | M42: 29.25847
A43: 33 | B43: ASTERDM | C43: 94 | D43: 94.67 | E43: 92.43 | F43: 90.87 | G43: 88.63 | H43: 96.23 | I43: 98.47 | J43: 100.03 | K43: 96.9 | L43: 93.1 | M43: 1.24546
A44: 34 | B44: ASTRAL | C44: 975.4 | D44: 969.78 | E44: 919.57 | F44: 863.73 | G44: 813.52 | H44: 1025.62 | I44: 1075.83 | J44: 1131.67 | K44: 1020 | L44: 913.95 | M44: 0.96423
A45: 35 | B45: ASTRAZEN | C45: 2401.05 | D45: 2437.33 | E45: 2338.67 | F45: 2276.28 | G45: 2177.62 | H45: 2499.72 | I45: 2598.38 | J45: 2660.77 | K45: 2536 | L45: 2374.95 | M45: 0.299
A46: 36 | B46: ATUL | C46: 3897.85 | D46: 3862.62 | E46: 3785.23 | F46: 3672.62 | G46: 3595.23 | H46: 3975.23 | I46: 4052.62 | J46: 4165.23 | K46: 3940 | L46: 3750 | M46: 0.09201
A47: 37 | B47: AUBANK | C47: 465.45 | D47: 468.78 | E47: 454.67 | F47: 443.88 | G47: 429.77 | H47: 479.57 | I47: 493.68 | J47: 504.47 | K47: 482.9 | L47: 458 | M47: 7.224
A48: 38 | B48: AUROPHARMA | C48: 382.4 | D48: 375.95 | E48: 339.95 | F48: 297.50 | G48: 261.50 | H48: 418.40 | I48: 454.40 | J48: 496.85 | K48: 411.95 | L48: 333.5 | M48: 171.68599
A49: 39 | B49: AVANTIFEED | C49: 283.85 | D49: 284.52 | E49: 279.33 | F49: 274.82 | G49: 269.63 | H49: 289.03 | I49: 294.22 | J49: 298.73 | K49: 289.7 | L49: 280 | M49: 4.02701
A50: 40 | B50: AXISBANK | C50: 325.45 | D50: 337.25 | E50: 312.20 | F50: 298.95 | G50: 273.90 | H50: 350.50 | I50: 375.55 | J50: 388.80 | K50: 362.3 | L50: 324 | M50: 413.17685
A51: 41 | B51: BAJAJ-AUTO | C51: 2033.75 | D51: 2015.87 | E51: 1975.43 | F51: 1917.12 | G51: 1876.68 | H51: 2074.18 | I51: 2114.62 | J51: 2172.93 | K51: 2056.3 | L51: 1957.55 | M51: 6.9222
A52: 42 | B52: BAJAJCON | C52: 133 | D52: 133.92 | E52: 130.33 | F52: 127.67 | G52: 124.08 | H52: 136.58 | I52: 140.17 | J52: 142.83 | K52: 137.5 | L52: 131.25 | M52: 3.235
A53: 43 | B53: BAJAJELEC | C53: 267.3 | D53: 267.78 | E53: 259.52 | F53: 251.73 | G53: 243.47 | H53: 275.57 | I53: 283.83 | J53: 291.62 | K53: 276.05 | L53: 260 | M53: 0.55758
A54: 44 | B54: BAJAJFINSV | C54: 4510.75 | D54: 4528.92 | E54: 4411.83 | F54: 4312.92 | G54: 4195.83 | H54: 4627.83 | I54: 4744.92 | J54: 4843.83 | K54: 4646 | L54: 4430 | M54: 7.22316
A55: 45 | B55: BAJAJHLDNG | C55: 1924.6 | D55: 1851.53 | E55: 1773.07 | F55: 1621.53 | G55: 1543.07 | H55: 2003.07 | I55: 2081.53 | J55: 2233.07 | K55: 1930 | L55: 1700 | M55: 0.47263
A56: 46 | B56: BAJFINANCE | C56: 2207.5 | D56: 2244.75 | E56: 2145.80 | F56: 2084.10 | G56: 1985.15 | H56: 2306.45 | I56: 2405.40 | J56: 2467.10 | K56: 2343.7 | L56: 2183.05 | M56: 61.72683
A57: 47 | B57: BALKRISIND | C57: 773.3 | D57: 783.10 | E57: 759.20 | F57: 745.10 | G57: 721.20 | H57: 797.20 | I57: 821.10 | J57: 835.20 | K57: 807 | L57: 769 | M57: 6.53446
A58: 48 | B58: BALMLAWRIE | C58: 85.3 | D58: 85.08 | E58: 83.17 | F58: 81.03 | G58: 79.12 | H58: 87.22 | I58: 89.13 | J58: 91.27 | K58: 87 | L58: 82.95 | M58: 1.58363
A59: 49 | B59: BALRAMCHIN | C59: 114.7 | D59: 111.18 | E59: 107.67 | F59: 100.63 | G59: 97.12 | H59: 118.22 | I59: 121.73 | J59: 128.77 | K59: 114.7 | L59: 104.15 | M59: 15.15366
A60: 50 | B60: BANDHANBNK | C60: 181.55 | D60: 186.20 | E60: 175.35 | F60: 169.15 | G60: 158.30 | H60: 192.40 | I60: 203.25 | J60: 209.45 | K60: 197.05 | L60: 180 | M60: 91.47321
A61: 51 | B61: BANKBARODA | C61: 48.7 | D61: 49.50 | E61: 47.70 | F61: 46.70 | G61: 44.90 | H61: 50.50 | I61: 52.30 | J61: 53.30 | K61: 51.3 | L61: 48.5 | M61: 207.39757
A62: 52 | B62: BANKINDIA | C62: 32.55 | D62: 32.38 | E62: 31.87 | F62: 31.18 | G62: 30.67 | H62: 33.07 | I62: 33.58 | J62: 34.27 | K62: 32.9 | L62: 31.7 | M62: 7.13521
A63: 53 | B63: BASF | C63: 1101.1 | D63: 1089.37 | E63: 1028.73 | F63: 956.37 | G63: 895.73 | H63: 1161.73 | I63: 1222.37 | J63: 1294.73 | K63: 1150 | L63: 1017 | M63: 0.43029
A64: 54 | B64: BATAINDIA | C64: 1190.75 | D64: 1184.02 | E64: 1153.03 | F64: 1115.32 | G64: 1084.33 | H64: 1221.73 | I64: 1252.72 | J64: 1290.43 | K64: 1215 | L64: 1146.3 | M64: 7.37772
A65: 55 | B65: BAYERCROP | C65: 3194.7 | D65: 3231.47 | E65: 3114.23 | F65: 3033.77 | G65: 2916.53 | H65: 3311.93 | I65: 3429.17 | J65: 3509.63 | K65: 3348.7 | L65: 3151 | M65: 0.0685
A66: 56 | B66: BBTC | C66: 716.75 | D66: 716.12 | E66: 696.88 | F66: 677.02 | G66: 657.78 | H66: 735.98 | I66: 755.22 | J66: 775.08 | K66: 735.35 | L66: 696.25 | M66: 0.35765
A67: 57 | B67: BDL | C67: 183.95 | D67: 183.43 | E67: 180.67 | F67: 177.38 | G67: 174.62 | H67: 186.72 | I67: 189.48 | J67: 192.77 | K67: 186.2 | L67: 180.15 | M67: 0.12821
A68: 58 | B68: BEL | C68: 69.95 | D68: 70.12 | E68: 68.33 | F68: 66.72 | G68: 64.93 | H68: 71.73 | I68: 73.52 | J68: 75.13 | K68: 71.9 | L68: 68.5 | M68: 93.19677
A69: 59 | B69: BEML | C69: 439.35 | D69: 445.17 | E69: 429.33 | F69: 419.32 | G69: 403.48 | H69: 455.18 | I69: 471.02 | J69: 481.03 | K69: 461 | L69: 435.15 | M69: 1.57037
A70: 60 | B70: BERGEPAINT | C70: 448.65 | D70: 458.77 | E70: 434.53 | F70: 420.42 | G70: 396.18 | H70: 472.88 | I70: 497.12 | J70: 511.23 | K70: 483 | L70: 444.65 | M70: 14.30557
A71: 61 | B71: BHARATFORG | C71: 219.65 | D71: 221.57 | E71: 213.08 | F71: 206.52 | G71: 198.03 | H71: 228.13 | I71: 236.62 | J71: 243.18 | K71: 230.05 | L71: 215 | M71: 22.86237
A72: 62 | B72: BHARTIARTL | C72: 423.95 | D72: 423.85 | E72: 415.70 | F72: 407.45 | G72: 399.30 | H72: 432.10 | I72: 440.25 | J72: 448.50 | K72: 432 | L72: 415.6 | M72: 141.5371
A73: 63 | B73: BHEL | C73: 20.65 | D73: 20.75 | E73: 20.30 | F73: 19.95 | G73: 19.50 | H73: 21.10 | I73: 21.55 | J73: 21.90 | K73: 21.2 | L73: 20.4 | M73: 147.24854
A74: 64 | B74: BIOCON | C74: 290.95 | D74: 288.23 | E74: 280.62 | F74: 270.28 | G74: 262.67 | H74: 298.57 | I74: 306.18 | J74: 316.52 | K74: 295.85 | L74: 277.9 | M74: 62.93405
A75: 65 | B75: BIRLACORPN | C75: 417.05 | D75: 414.05 | E75: 407.10 | F75: 397.15 | G75: 390.20 | H75: 424.00 | I75: 430.95 | J75: 440.90 | K75: 421 | L75: 404.1 | M75: 0.4205
A76: 66 | B76: BLISSGVS | C76: 100.45 | D76: 100.27 | E76: 97.18 | F76: 93.92 | G76: 90.83 | H76: 103.53 | I76: 106.62 | J76: 109.88 | K76: 103.35 | L76: 97 | M76: 0.5116
A77: 67 | B77: BLUEDART | C77: 1986.75 | D77: 2037.58 | E77: 1920.17 | F77: 1853.58 | G77: 1736.17 | H77: 2104.17 | I77: 2221.58 | J77: 2288.17 | K77: 2155 | L77: 1971 | M77: 0.05907
A78: 68 | B78: BLUESTARCO | C78: 440.5 | D78: 444.53 | E78: 430.47 | F78: 420.43 | G78: 406.37 | H78: 454.57 | I78: 468.63 | J78: 478.67 | K78: 458.6 | L78: 434.5 | M78: 0.38381
A79: 69 | B79: BOMDYEING | C79: 46.6 | D79: 46.80 | E79: 45.60 | F79: 44.60 | G79: 43.40 | H79: 47.80 | I79: 49.00 | J79: 50.00 | K79: 48 | L79: 45.8 | M79: 10.35174
A80: 70 | B80: BOSCHLTD | C80: 8816.65 | D80: 8894.75 | E80: 8631.90 | F80: 8447.15 | G80: 8184.30 | H80: 9079.50 | I80: 9342.35 | J80: 9527.10 | K80: 9157.6 | L80: 8710 | M80: 0.34591
A81: 71 | B81: BPCL | C81: 317.15 | D81: 310.10 | E81: 294.20 | F81: 271.25 | G81: 255.35 | H81: 333.05 | I81: 348.95 | J81: 371.90 | K81: 326 | L81: 287.15 | M81: 143.20952
A82: 72 | B82: BRIGADE | C82: 130.1 | D82: 134.93 | E82: 121.27 | F82: 112.43 | G82: 98.77 | H82: 143.77 | I82: 157.43 | J82: 166.27 | K82: 148.6 | L82: 126.1 | M82: 0.86267
A83: 73 | B83: BRITANNIA | C83: 2563.25 | D83: 2549.42 | E83: 2488.83 | F83: 2414.42 | G83: 2353.83 | H83: 2623.83 | I83: 2684.42 | J83: 2758.83 | K83: 2610 | L83: 2475 | M83: 7.26903
A84: 74 | B84: BSE | C84: 297 | D84: 294.97 | E84: 290.93 | F84: 284.87 | G84: 280.83 | H84: 301.03 | I84: 305.07 | J84: 311.13 | K84: 299 | L84: 288.9 | M84: 0.97165
A85: 75 | B85: BSOFT | C85: 58.65 | D85: 59.23 | E85: 57.47 | F85: 56.28 | G85: 54.52 | H85: 60.42 | I85: 62.18 | J85: 63.37 | K85: 61 | L85: 58.05 | M85: 1.85358
A86: 76 | B86: CADILAHC | C86: 274.6 | D86: 270.80 | E86: 262.10 | F86: 249.60 | G86: 240.90 | H86: 283.30 | I86: 292.00 | J86: 304.50 | K86: 279.5 | L86: 258.3 | M86: 43.67888
A87: 77 | B87: CANBK | C87: 84.15 | D87: 85.52 | E87: 82.13 | F87: 80.12 | G87: 76.73 | H87: 87.53 | I87: 90.92 | J87: 92.93 | K87: 88.9 | L87: 83.5 | M87: 55.10785
A88: 78 | B88: CANFINHOME | C88: 263.2 | D88: 265.05 | E88: 251.45 | F88: 239.70 | G88: 226.10 | H88: 276.80 | I88: 290.40 | J88: 302.15 | K88: 278.65 | L88: 253.3 | M88: 4.56486
A89: 79 | B89: CAPLIPOINT | C89: 265.4 | D89: 269.48 | E89: 258.92 | F89: 252.43 | G89: 241.87 | H89: 275.97 | I89: 286.53 | J89: 293.02 | K89: 280.05 | L89: 263 | M89: 0.86233
A90: 80 | B90: CARBORUNIV | C90: 219.15 | D90: 222.63 | E90: 213.82 | F90: 208.48 | G90: 199.67 | H90: 227.97 | I90: 236.78 | J90: 242.12 | K90: 231.45 | L90: 217.3 | M90: 0.56588
A91: 81 | B91: CARERATING | C91: 339.4 | D91: 339.73 | E91: 334.47 | F91: 329.53 | G91: 324.27 | H91: 344.67 | I91: 349.93 | J91: 354.87 | K91: 345 | L91: 334.8 | M91: 0.79265
A92: 82 | B92: CASTROLIND | C92: 102.2 | D92: 101.47 | E92: 99.58 | F92: 96.97 | G92: 95.08 | H92: 104.08 | I92: 105.97 | J92: 108.58 | K92: 103.35 | L92: 98.85 | M92: 16.07438
A93: 83 | B93: CCL | C93: 178.35 | D93: 178.38 | E93: 174.47 | F93: 170.58 | G93: 166.67 | H93: 182.27 | I93: 186.18 | J93: 190.07 | K93: 182.3 | L93: 174.5 | M93: 5.28222
A94: 84 | B94: CDSL | C94: 209.9 | D94: 211.48 | E94: 206.27 | F94: 202.63 | G94: 197.42 | H94: 215.12 | I94: 220.33 | J94: 223.97 | K94: 216.7 | L94: 207.85 | M94: 1.93568
A95: 85 | B95: CEATLTD | C95: 701.65 | D95: 717.88 | E95: 678.77 | F95: 655.88 | G95: 616.77 | H95: 740.77 | I95: 779.88 | J95: 802.77 | K95: 757 | L95: 695 | M95: 0.85184
A96: 86 | B96: CENTRALBK | C96: 12.1 | D96: 12.18 | E96: 11.92 | F96: 11.73 | G96: 11.47 | H96: 12.37 | I96: 12.63 | J96: 12.82 | K96: 12.45 | L96: 12 | M96: 6.48568
A97: 87 | B97: CENTURYPLY | C97: 104 | D97: 104.48 | E97: 101.02 | F97: 98.03 | G97: 94.57 | H97: 107.47 | I97: 110.93 | J97: 113.92 | K97: 107.95 | L97: 101.5 | M97: 3.63992
A98: 88 | B98: CERA | C98: 2206.55 | D98: 2238.50 | E98: 2143.05 | F98: 2079.55 | G98: 1984.10 | H98: 2302.00 | I98: 2397.45 | J98: 2460.95 | K98: 2333.95 | L98: 2175 | M98: 0.01558
A99: 89 | B99: CESC | C99: 425.55 | D99: 413.87 | E99: 397.93 | F99: 370.32 | G99: 354.38 | H99: 441.48 | I99: 457.42 | J99: 485.03 | K99: 429.8 | L99: 386.25 | M99: 9.29535
A100: 90 | B100: CGCL | C100: 144.4 | D100: 147.97 | E100: 137.68 | F100: 130.97 | G100: 120.68 | H100: 154.68 | I100: 164.97 | J100: 171.68 | K100: 158.25 | L100: 141.25 | M100: 2.29008
A101: 91 | B101: CHALET | C101: 197 | D101: 196.35 | E101: 194.70 | F101: 192.40 | G101: 190.75 | H101: 198.65 | I101: 200.30 | J101: 202.60 | K101: 198 | L101: 194.05 | M101: 0.00992
A102: 92 | B102: CHAMBLFERT | C102: 104.65 | D102: 105.03 | E102: 102.82 | F102: 100.98 | G102: 98.77 | H102: 106.87 | I102: 109.08 | J102: 110.92 | K102: 107.25 | L102: 103.2 | M102: 2.56452
A103: 93 | B103: CHENNPETRO | C103: 59.5 | D103: 59.83 | E103: 58.17 | F103: 56.83 | G103: 55.17 | H103: 61.17 | I103: 62.83 | J103: 64.17 | K103: 61.5 | L103: 58.5 | M103: 1.90068
A104: 94 | B104: CHOLAFIN | C104: 124.65 | D104: 131.38 | E104: 115.77 | F104: 106.88 | G104: 91.27 | H104: 140.27 | I104: 155.88 | J104: 164.77 | K104: 147 | L104: 122.5 | M104: 44.07286
A105: 95 | B105: CHOLAHLDNG | C105: 268.05 | D105: 268.88 | E105: 261.07 | F105: 254.08 | G105: 246.27 | H105: 275.87 | I105: 283.68 | J105: 290.67 | K105: 276.7 | L105: 261.9 | M105: 0.23138
A106: 96 | B106: CIPLA | C106: 449.2 | D106: 440.05 | E106: 425.40 | F106: 401.60 | G106: 386.95 | H106: 463.85 | I106: 478.50 | J106: 502.30 | K106: 454.7 | L106: 416.25 | M106: 179.06777
A107: 97 | B107: COALINDIA | C107: 137.75 | D107: 136.48 | E107: 133.07 | F107: 128.38 | G107: 124.97 | H107: 141.17 | I107: 144.58 | J107: 149.27 | K107: 139.9 | L107: 131.8 | M107: 109.37172
A108: 98 | B108: COCHINSHIP | C108: 240.9 | D108: 244.97 | E108: 235.93 | F108: 230.97 | G108: 221.93 | H108: 249.93 | I108: 258.97 | J108: 263.93 | K108: 254 | L108: 240 | M108: 1.47524
A109: 99 | B109: COLPAL | C109: 1249.9 | D109: 1247.95 | E109: 1213.00 | F109: 1176.10 | G109: 1141.15 | H109: 1284.85 | I109: 1319.80 | J109: 1356.70 | K109: 1282.9 | L109: 1211.05 | M109: 9.70935
A110: 100 | B110: CONCOR | C110: 304.5 | D110: 312.17 | E110: 294.33 | F110: 284.17 | G110: 266.33 | H110: 322.33 | I110: 340.17 | J110: 350.33 | K110: 330 | L110: 302 | M110: 15.36089
A111: 101 | B111: COROMANDEL | C111: 512.25 | D111: 519.37 | E111: 494.78 | F111: 477.32 | G111: 452.73 | H111: 536.83 | I111: 561.42 | J111: 578.88 | K111: 543.95 | L111: 501.9 | M111: 1.00346
A112: 102 | B112: CREDITACC | C112: 321.25 | D112: 332.15 | E112: 310.35 | F112: 299.45 | G112: 277.65 | H112: 343.05 | I112: 364.85 | J112: 375.75 | K112: 353.95 | L112: 321.25 | M112: 1.22775
A113: 103 | B113: CRISIL | C113: 1170.25 | D113: 1188.17 | E113: 1142.58 | F113: 1114.92 | G113: 1069.33 | H113: 1215.83 | I113: 1261.42 | J113: 1289.08 | K113: 1233.75 | L113: 1160.5 | M113: 1.4559
A114: 104 | B114: CROMPTON | C114: 207 | D114: 208.87 | E114: 199.43 | F114: 191.87 | G114: 182.43 | H114: 216.43 | I114: 225.87 | J114: 233.43 | K114: 218.3 | L114: 201.3 | M114: 11.79375
A115: 105 | B115: CUB | C115: 113.95 | D115: 115.98 | E115: 108.97 | F115: 103.98 | G115: 96.97 | H115: 120.97 | I115: 127.98 | J115: 132.97 | K115: 123 | L115: 111 | M115: 23.83409
A116: 106 | B116: CUMMINSIND | C116: 298.65 | D116: 303.35 | E116: 291.75 | F116: 284.85 | G116: 273.25 | H116: 310.25 | I116: 321.85 | J116: 328.75 | K116: 314.95 | L116: 296.45 | M116: 13.96809
A117: 107 | B117: CYIENT | C117: 226 | D117: 228.70 | E117: 222.30 | F117: 218.60 | G117: 212.20 | H117: 232.40 | I117: 238.80 | J117: 242.50 | K117: 235.1 | L117: 225 | M117: 3.51619
A118: 108 | B118: DABUR | C118: 427.8 | D118: 435.37 | E118: 416.48 | F118: 405.17 | G118: 386.28 | H118: 446.68 | I118: 465.57 | J118: 476.88 | K118: 454.25 | L118: 424.05 | M118: 42.35837
A119: 109 | B119: DALBHARAT | C119: 422.3 | D119: 435.45 | E119: 402.40 | F119: 382.50 | G119: 349.45 | H119: 455.35 | I119: 488.40 | J119: 508.30 | K119: 468.5 | L119: 415.55 | M119: 1.36297
A120: 110 | B120: DBCORP | C120: 84.05 | D120: 83.97 | E120: 80.53 | F120: 77.02 | G120: 73.58 | H120: 87.48 | I120: 90.92 | J120: 94.43 | K120: 87.4 | L120: 80.45 | M120: 0.55383
A121: 111 | B121: DBL | C121: 202.2 | D121: 204.20 | E121: 199.50 | F121: 196.80 | G121: 192.10 | H121: 206.90 | I121: 211.60 | J121: 214.30 | K121: 208.9 | L121: 201.5 | M121: 0.77091
A122: 112 | B122: DCAL | C122: 58.8 | D122: 58.78 | E122: 58.77 | F122: 58.73 | G122: 58.72 | H122: 58.82 | I122: 58.83 | J122: 58.87 | K122: 58.8 | L122: 58.75 | M122: 0.34915
A123: 113 | B123: DCBBANK | C123: 84.6 | D123: 87.13 | E123: 81.27 | F123: 77.93 | G123: 72.07 | H123: 90.47 | I123: 96.33 | J123: 99.67 | K123: 93 | L123: 83.8 | M123: 5.73619
A124: 114 | B124: DCMSHRIRAM | C124: 206.65 | D124: 209.72 | E124: 200.93 | F124: 195.22 | G124: 186.43 | H124: 215.43 | I124: 224.22 | J124: 229.93 | K124: 218.5 | L124: 204 | M124: 0.68672
A125: 115 | B125: DEEPAKNTR | C125: 379.85 | D125: 375.65 | E125: 362.60 | F125: 345.35 | G125: 332.30 | H125: 392.90 | I125: 405.95 | J125: 423.20 | K125: 388.7 | L125: 358.4 | M125: 4.45088
A126: 116 | B126: DELTACORP | C126: 72 | D126: 72.00 | E126: 72.00 | F126: 72.00 | G126: 72.00 | H126: 72.00 | I126: 72.00 | J126: 72.00 | K126: 72 | L126: 72 | M126: 2.37928
A127: 117 | B127: DHFL | C127: 9.05 | D127: 8.92 | E127: 8.78 | F127: 8.52 | G127: 8.38 | H127: 9.18 | I127: 9.32 | J127: 9.58 | K127: 9.05 | L127: 8.65 | M127: 7.46996
A128: 118 | B128: DISHTV | C128: 4.1 | D128: 4.03 | E128: 3.97 | F128: 3.83 | G128: 3.77 | H128: 4.17 | I128: 4.23 | J128: 4.37 | K128: 4.1 | L128: 3.9 | M128: 40.6647
A129: 119 | B129: DIVISLAB | C129: 1901.05 | D129: 1888.00 | E129: 1836.00 | F129: 1770.95 | G129: 1718.95 | H129: 1953.05 | I129: 2005.05 | J129: 2070.10 | K129: 1940 | L129: 1822.95 | M129: 12.19731
A130: 120 | B130: DIXON | C130: 3429.35 | D130: 3466.17 | E130: 3338.33 | F130: 3247.32 | G130: 3119.48 | H130: 3557.18 | I130: 3685.02 | J130: 3776.03 | K130: 3594 | L130: 3375.15 | M130: 0.39451
A131: 121 | B131: DLF | C131: 132.1 | D131: 132.82 | E131: 129.63 | F131: 127.17 | G131: 123.98 | H131: 135.28 | I131: 138.47 | J131: 140.93 | K131: 136 | L131: 130.35 | M131: 65.53107
A132: 122 | B132: DMART | C132: 2066.95 | D132: 2068.65 | E132: 2018.30 | F132: 1969.65 | G132: 1919.30 | H132: 2117.30 | I132: 2167.65 | J132: 2216.30 | K132: 2119 | L132: 2020 | M132: 3.03207
A133: 123 | B133: DRREDDY | C133: 3146.8 | D133: 3130.25 | E133: 3041.65 | F133: 2936.50 | G133: 2847.90 | H133: 3235.40 | I133: 3324.00 | J133: 3429.15 | K133: 3218.85 | L133: 3025.1 | M133: 11.73674
A134: 124 | B134: ECLERX | C134: 373.75 | D134: 369.60 | E134: 364.20 | F134: 354.65 | G134: 349.25 | H134: 379.15 | I134: 384.55 | J134: 394.10 | K134: 375 | L134: 360.05 | M134: 0.08246
A135: 125 | B135: EDELWEISS | C135: 42.25 | D135: 41.88 | E135: 41.47 | F135: 40.68 | G135: 40.27 | H135: 42.67 | I135: 43.08 | J135: 43.87 | K135: 42.3 | L135: 41.1 | M135: 23.8936
A136: 126 | B136: EICHERMOT | C136: 12680.05 | D136: 12793.32 | E136: 12486.73 | F136: 12293.42 | G136: 11986.83 | H136: 12986.63 | I136: 13293.22 | J136: 13486.53 | K136: 13099.9 | L136: 12600 | M136: 1.80698
A137: 127 | B137: EIDPARRY | C137: 133.5 | D137: 137.10 | E137: 129.40 | F137: 125.30 | G137: 117.60 | H137: 141.20 | I137: 148.90 | J137: 153.00 | K137: 144.8 | L137: 133 | M137: 0.86315
A138: 128 | B138: EIHOTEL | C138: 65.3 | D138: 65.90 | E138: 64.40 | F138: 63.50 | G138: 62.00 | H138: 66.80 | I138: 68.30 | J138: 69.20 | K138: 67.4 | L138: 65 | M138: 0.48772
A139: 129 | B139: ELGIEQUIP | C139: 104.65 | D139: 105.80 | E139: 101.60 | F139: 98.55 | G139: 94.35 | H139: 108.85 | I139: 113.05 | J139: 116.10 | K139: 110 | L139: 102.75 | M139: 1.11509
A140: 130 | B140: EMAMILTD | C140: 181.95 | D140: 177.72 | E140: 171.43 | F140: 160.92 | G140: 154.63 | H140: 188.23 | I140: 194.52 | J140: 205.03 | K140: 184 | L140: 167.2 | M140: 7.37889
A141: 131 | B141: ENDURANCE | C141: 592.2 | D141: 591.53 | E141: 576.17 | F141: 560.13 | G141: 544.77 | H141: 607.57 | I141: 622.93 | J141: 638.97 | K141: 606.9 | L141: 575.5 | M141: 0.7323
A142: 132 | B142: ENGINERSIN | C142: 59.45 | D142: 59.07 | E142: 58.03 | F142: 56.62 | G142: 55.58 | H142: 60.48 | I142: 61.52 | J142: 62.93 | K142: 60.1 | L142: 57.65 | M142: 22.39125
A143: 133 | B143: EQUITAS | C143: 37.25 | D143: 38.32 | E143: 34.93 | F143: 32.62 | G143: 29.23 | H143: 40.63 | I143: 44.02 | J143: 46.33 | K143: 41.7 | L143: 36 | M143: 57.20945
A144: 134 | B144: ERIS | C144: 369.95 | D144: 373.03 | E144: 365.92 | F144: 361.88 | G144: 354.77 | H144: 377.07 | I144: 384.18 | J144: 388.22 | K144: 380.15 | L144: 369 | M144: 1.06759
A145: 135 | B145: ESCORTS | C145: 592.4 | D145: 585.22 | E145: 566.03 | F145: 539.67 | G145: 520.48 | H145: 611.58 | I145: 630.77 | J145: 657.13 | K145: 604.4 | L145: 558.85 | M145: 38.25228
A146: 136 | B146: ESSELPACK | C146: 150.05 | D146: 152.38 | E146: 144.77 | F146: 139.48 | G146: 131.87 | H146: 157.67 | I146: 165.28 | J146: 170.57 | K146: 160 | L146: 147.1 | M146: 0.69049
A147: 137 | B147: EXIDEIND | C147: 128.55 | D147: 129.57 | E147: 126.28 | F147: 124.02 | G147: 120.73 | H147: 131.83 | I147: 135.12 | J147: 137.38 | K147: 132.85 | L147: 127.3 | M147: 18.64609
A148: 138 | B148: FCONSUMER | C148: 6.65 | D148: 6.65 | E148: 6.65 | F148: 6.65 | G148: 6.65 | H148: 6.65 | I148: 6.65 | J148: 6.65 | K148: 6.65 | L148: 6.65 | M148: 4.58052
A149: 139 | B149: FDC | C149: 200.25 | D149: 204.40 | E149: 190.15 | F149: 180.05 | G149: 165.80 | H149: 214.50 | I149: 228.75 | J149: 238.85 | K149: 218.65 | L149: 194.3 | M149: 8.1536
A150: 140 | B150: FEDERALBNK | C150: 39.9 | D150: 40.23 | E150: 39.17 | F150: 38.43 | G150: 37.37 | H150: 40.97 | I150: 42.03 | J150: 42.77 | K150: 41.3 | L150: 39.5 | M150: 136.77277
A151: 141 | B151: FINCABLES | C151: 216.3 | D151: 217.27 | E151: 211.78 | F151: 207.27 | G151: 201.78 | H151: 221.78 | I151: 227.27 | J151: 231.78 | K151: 222.75 | L151: 212.75 | M151: 0.666
A152: 142 | B152: FINEORG | C152: 1853.2 | D152: 1865.52 | E152: 1826.68 | F152: 1800.17 | G152: 1761.33 | H152: 1892.03 | I152: 1930.87 | J152: 1957.38 | K152: 1904.35 | L152: 1839 | M152: 0.02254
A153: 143 | B153: FINPIPE | C153: 371.5 | D153: 375.40 | E153: 363.15 | F153: 354.80 | G153: 342.55 | H153: 383.75 | I153: 396.00 | J153: 404.35 | K153: 387.65 | L153: 367.05 | M153: 0.23517
A154: 144 | B154: FLFL | C154: 106.5 | D154: 106.50 | E154: 106.50 | F154: 106.50 | G154: 106.50 | H154: 106.50 | I154: 106.50 | J154: 106.50 | K154: 106.5 | L154: 106.5 | M154: 0.11134
A155: 145 | B155: FMGOETZE | C155: 304.8 | D155: 315.40 | E155: 289.85 | F155: 274.90 | G155: 249.35 | H155: 330.35 | I155: 355.90 | J155: 370.85 | K155: 340.95 | L155: 300.45 | M155: 0.03204
A156: 146 | B156: FORTIS | C156: 122.15 | D156: 122.35 | E156: 118.90 | F156: 115.65 | G156: 112.20 | H156: 125.60 | I156: 129.05 | J156: 132.30 | K156: 125.8 | L156: 119.1 | M156: 8.13065
A157: 147 | B157: FRETAIL | C157: 70.7 | D157: 70.70 | E157: 70.70 | F157: 70.70 | G157: 70.70 | H157: 70.70 | I157: 70.70 | J157: 70.70 | K157: 70.7 | L157: 70.7 | M157: 1.21496
A158: 148 | B158: FSL | C158: 27.85 | D158: 27.83 | E158: 27.42 | F158: 26.98 | G158: 26.57 | H158: 28.27 | I158: 28.68 | J158: 29.12 | K158: 28.25 | L158: 27.4 | M158: 5.88938
A159: 149 | B159: GAIL | C159: 80.9 | D159: 79.35 | E159: 76.70 | F159: 72.50 | G159: 69.85 | H159: 83.55 | I159: 86.20 | J159: 90.40 | K159: 82 | L159: 75.15 | M159: 190.35356
A160: 150 | B160: GALAXYSURF | C160: 1120.25 | D160: 1168.63 | E160: 1047.32 | F160: 974.38 | G160: 853.07 | H160: 1241.57 | I160: 1362.88 | J160: 1435.82 | K160: 1289.95 | L160: 1095.7 | M160: 1.43403
A161: 151 | B161: GARFIBRES | C161: 1086.35 | D161: 1074.87 | E161: 1022.88 | F161: 959.42 | G161: 907.43 | H161: 1138.33 | I161: 1190.32 | J161: 1253.78 | K161: 1126.85 | L161: 1011.4 | M161: 0.06747
A162: 152 | B162: GAYAPROJ | C162: 9.35 | D162: 9.23 | E162: 9.12 | F162: 8.88 | G162: 8.77 | H162: 9.47 | I162: 9.58 | J162: 9.82 | K162: 9.35 | L162: 9 | M162: 5.99718
A163: 153 | B163: GEPIL | C163: 460.75 | D163: 460.28 | E163: 450.57 | F163: 440.38 | G163: 430.67 | H163: 470.47 | I163: 480.18 | J163: 490.37 | K163: 470 | L163: 450.1 | M163: 0.03253
A164: 154 | B164: GESHIP | C164: 201.45 | D164: 202.82 | E164: 195.63 | F164: 189.82 | G164: 182.63 | H164: 208.63 | I164: 215.82 | J164: 221.63 | K164: 210 | L164: 197 | M164: 0.24103
A165: 155 | B165: GET&D | C165: 65.8 | D165: 66.60 | E165: 64.45 | F165: 63.10 | G165: 60.95 | H165: 67.95 | I165: 70.10 | J165: 71.45 | K165: 68.75 | L165: 65.25 | M165: 0.17615
A166: 156 | B166: GHCL | C166: 95.15 | D166: 94.22 | E166: 92.03 | F166: 88.92 | G166: 86.73 | H166: 97.33 | I166: 99.52 | J166: 102.63 | K166: 96.4 | L166: 91.1 | M166: 2.22386
A167: 157 | B167: GICRE | C167: 109.15 | D167: 107.53 | E167: 104.57 | F167: 99.98 | G167: 97.02 | H167: 112.12 | I167: 115.08 | J167: 119.67 | K167: 110.5 | L167: 102.95 | M167: 1.43293
A168: 158 | B168: GILLETTE | C168: 5037.05 | D168: 5105.68 | E168: 4911.37 | F168: 4785.68 | G168: 4591.37 | H168: 5231.37 | I168: 5425.68 | J168: 5551.37 | K168: 5300 | L168: 4980 | M168: 0.06002
A169: 159 | B169: GLAXO | C169: 1224.2 | D169: 1209.07 | E169: 1170.13 | F169: 1116.07 | G169: 1077.13 | H169: 1263.13 | I169: 1302.07 | J169: 1356.13 | K169: 1248 | L169: 1155 | M169: 0.6423
A170: 160 | B170: GLENMARK | C170: 213.05 | D170: 209.45 | E170: 199.40 | F170: 185.75 | G170: 175.70 | H170: 223.10 | I170: 233.15 | J170: 246.80 | K170: 219.5 | L170: 195.8 | M170: 45.11917
A171: 161 | B171: GMDCLTD | C171: 30.7 | D171: 30.83 | E171: 30.37 | F171: 30.03 | G171: 29.57 | H171: 31.17 | I171: 31.63 | J171: 31.97 | K171: 31.3 | L171: 30.5 | M171: 3.49906
A172: 162 | B172: GMRINFRA | C172: 16 | D172: 16.08 | E172: 15.82 | F172: 15.63 | G172: 15.37 | H172: 16.27 | I172: 16.53 | J172: 16.72 | K172: 16.35 | L172: 15.9 | M172: 155.80189
A173: 163 | B173: GNFC | C173: 109.2 | D173: 110.15 | E173: 107.10 | F173: 105.00 | G173: 101.95 | H173: 112.25 | I173: 115.30 | J173: 117.40 | K173: 113.2 | L173: 108.05 | M173: 5.6783
A174: 164 | B174: GODFRYPHLP | C174: 949.95 | D174: 954.98 | E174: 934.97 | F174: 919.98 | G174: 899.97 | H174: 969.97 | I174: 989.98 | J174: 1004.97 | K174: 975 | L174: 940 | M174: 1.19244
A175: 165 | B175: GODREJAGRO | C175: 349.3 | D175: 351.10 | E175: 338.20 | F175: 327.10 | G175: 314.20 | H175: 362.20 | I175: 375.10 | J175: 386.20 | K175: 364 | L175: 340 | M175: 0.26611
A176: 166 | B176: GODREJCP | C176: 531.45 | D176: 538.27 | E176: 518.38 | F176: 505.32 | G176: 485.43 | H176: 551.33 | I176: 571.22 | J176: 584.28 | K176: 558.15 | L176: 525.2 | M176: 17.09383
A177: 167 | B177: GODREJIND | C177: 278.65 | D177: 278.82 | E177: 272.83 | F177: 267.02 | G177: 261.03 | H177: 284.63 | I177: 290.62 | J177: 296.43 | K177: 284.8 | L177: 273 | M177: 2.66307
A178: 168 | B178: GODREJPROP | C178: 608.05 | D178: 600.95 | E178: 584.15 | F178: 560.25 | G178: 543.45 | H178: 624.85 | I178: 641.65 | J178: 665.55 | K178: 617.75 | L178: 577.05 | M178: 1.98652
A179: 169 | B179: GPPL | C179: 54.85 | D179: 55.00 | E179: 53.50 | F179: 52.15 | G179: 50.65 | H179: 56.35 | I179: 57.85 | J179: 59.20 | K179: 56.5 | L179: 53.65 | M179: 0.75378
A180: 170 | B180: GRANULES | C180: 140.9 | D180: 142.35 | E180: 136.75 | F180: 132.60 | G180: 127.00 | H180: 146.50 | I180: 152.10 | J180: 156.25 | K180: 147.95 | L180: 138.2 | M180: 23.31595
A181: 171 | B181: GRAPHITE | C181: 140.25 | D181: 138.55 | E181: 136.85 | F181: 133.45 | G181: 131.75 | H181: 141.95 | I181: 143.65 | J181: 147.05 | K181: 140.25 | L181: 135.15 | M181: 3.84287
A182: 172 | B182: GRASIM | C182: 454.7 | D182: 461.20 | E182: 444.70 | F182: 434.70 | G182: 418.20 | H182: 471.20 | I182: 487.70 | J182: 497.70 | K182: 477.7 | L182: 451.2 | M182: 14.70237
A183: 173 | B183: GREAVESCOT | C183: 66.95 | D183: 67.12 | E183: 65.88 | F183: 64.82 | G183: 63.58 | H183: 68.18 | I183: 69.42 | J183: 70.48 | K183: 68.35 | L183: 66.05 | M183: 1.38794
A184: 174 | B184: GRINDWELL | C184: 460 | D184: 456.98 | E184: 450.22 | F184: 440.43 | G184: 433.67 | H184: 466.77 | I184: 473.53 | J184: 483.32 | K184: 463.75 | L184: 447.2 | M184: 0.12014
A185: 175 | B185: GSFC | C185: 39 | D185: 38.28 | E185: 36.57 | F185: 34.13 | G185: 32.42 | H185: 40.72 | I185: 42.43 | J185: 44.87 | K185: 40 | L185: 35.85 | M185: 7.26039
A186: 176 | B186: GSPL | C186: 176.05 | D186: 179.70 | E186: 169.40 | F186: 162.75 | G186: 152.45 | H186: 186.35 | I186: 196.65 | J186: 203.30 | K186: 190 | L186: 173.05 | M186: 4.24005
A187: 177 | B187: GUJALKALI | C187: 252.45 | D187: 243.42 | E187: 224.63 | F187: 196.82 | G187: 178.03 | H187: 271.23 | I187: 290.02 | J187: 317.83 | K187: 262.2 | L187: 215.6 | M187: 5.86593
A188: 178 | B188: GUJGASLTD | C188: 223.5 | D188: 223.87 | E188: 218.73 | F188: 213.97 | G188: 208.83 | H188: 228.63 | I188: 233.77 | J188: 238.53 | K188: 229 | L188: 219.1 | M188: 5.58813
A189: 179 | B189: GULFOILLUB | C189: 545.85 | D189: 540.50 | E189: 529.70 | F189: 513.55 | G189: 502.75 | H189: 556.65 | I189: 567.45 | J189: 583.60 | K189: 551.3 | L189: 524.35 | M189: 0.05844
A190: 180 | B190: HAL | C190: 529.55 | D190: 532.12 | E190: 520.38 | F190: 511.22 | G190: 499.48 | H190: 541.28 | I190: 553.02 | J190: 562.18 | K190: 543.85 | L190: 522.95 | M190: 0.115
A191: 181 | B191: HATSUN | C191: 538.1 | D191: 529.22 | E191: 518.43 | F191: 498.77 | G191: 487.98 | H191: 548.88 | I191: 559.67 | J191: 579.33 | K191: 540 | L191: 509.55 | M191: 0.05881
A192: 182 | B192: HAVELLS | C192: 471.5 | D192: 479.68 | E192: 461.37 | F192: 451.23 | G192: 432.92 | H192: 489.82 | I192: 508.13 | J192: 518.27 | K192: 498 | L192: 469.55 | M192: 20.44235
A193: 183 | B193: HCLTECH | C193: 405.8 | D193: 411.23 | E193: 393.87 | F193: 381.93 | G193: 364.57 | H193: 423.17 | I193: 440.53 | J193: 452.47 | K193: 428.6 | L193: 399.3 | M193: 81.66456
A194: 184 | B194: HDFC | C194: 1499.55 | D194: 1520.20 | E194: 1461.60 | F194: 1423.65 | G194: 1365.05 | H194: 1558.15 | I194: 1616.75 | J194: 1654.70 | K194: 1578.8 | L194: 1482.25 | M194: 101.49442
A195: 185 | B195: HDFCAMC | C195: 2177.15 | D195: 2178.72 | E195: 2133.43 | F195: 2089.72 | G195: 2044.43 | H195: 2222.43 | I195: 2267.72 | J195: 2311.43 | K195: 2224 | L195: 2135 | M195: 5.20257
A196: 186 | B196: HDFCBANK | C196: 813.85 | D196: 822.62 | E196: 801.23 | F196: 788.62 | G196: 767.23 | H196: 835.23 | I196: 856.62 | J196: 869.23 | K196: 844 | L196: 810 | M196: 174.99063
A197: 187 | B197: HDFCLIFE | C197: 422.3 | D197: 426.83 | E197: 411.67 | F197: 401.03 | G197: 385.87 | H197: 437.47 | I197: 452.63 | J197: 463.27 | K197: 442 | L197: 416.2 | M197: 69.97591
A198: 188 | B198: HEG | C198: 489.45 | D198: 498.18 | E198: 472.37 | F198: 455.28 | G198: 429.47 | H198: 515.27 | I198: 541.08 | J198: 558.17 | K198: 524 | L198: 481.1 | M198: 1.51488
A199: 189 | B199: HEIDELBERG | C199: 134.1 | D199: 135.02 | E199: 132.18 | F199: 130.27 | G199: 127.43 | H199: 136.93 | I199: 139.77 | J199: 141.68 | K199: 137.85 | L199: 133.1 | M199: 1.9124
A200: 190 | B200: HERITGFOOD | C200: 226.8 | D200: 221.20 | E200: 215.60 | F200: 204.40 | G200: 198.80 | H200: 232.40 | I200: 238.00 | J200: 249.20 | K200: 226.8 | L200: 210 | M200: 0.59822
A201: 191 | B201: HEROMOTOCO | C201: 1582.05 | D201: 1582.73 | E201: 1542.47 | F201: 1502.88 | G201: 1462.62 | H201: 1622.32 | I201: 1662.58 | J201: 1702.17 | K201: 1623 | L201: 1543.15 | M201: 15.92848
A202: 192 | B202: HEXAWARE | C202: 220.9 | D202: 222.23 | E202: 214.77 | F202: 208.63 | G202: 201.17 | H202: 228.37 | I202: 235.83 | J202: 241.97 | K202: 229.7 | L202: 216.1 | M202: 2.27828
A203: 193 | B203: HFCL | C203: 8.75 | D203: 8.80 | E203: 8.60 | F203: 8.45 | G203: 8.25 | H203: 8.95 | I203: 9.15 | J203: 9.30 | K203: 9 | L203: 8.65 | M203: 9.95524
A204: 194 | B204: HIMATSEIDE | C204: 59.65 | D204: 60.20 | E204: 58.40 | F204: 57.15 | G204: 55.35 | H204: 61.45 | I204: 63.25 | J204: 64.50 | K204: 62 | L204: 58.95 | M204: 0.53898
A205: 195 | B205: HINDALCO | C205: 88.8 | D205: 90.22 | E205: 86.98 | F205: 85.17 | G205: 81.93 | H205: 92.03 | I205: 95.27 | J205: 97.08 | K205: 93.45 | L205: 88.4 | M205: 82.16768
A206: 196 | B206: HINDCOPPER | C206: 21.6 | D206: 21.60 | E206: 20.70 | F206: 19.80 | G206: 18.90 | H206: 22.50 | I206: 23.40 | J206: 24.30 | K206: 22.5 | L206: 20.7 | M206: 5.34619
... 321 more rows

Sheet Bulk Deals
E6: Back To Main Page
A7: Subject : | B7: BULK DEAL | D7: =Main!B10 -> 2020-04-07
A9: Date | B9: Scrip code | C9: Scrip Name | D9: Client Name | E9: Buy / Sell | F9: Quantity Traded | G9: Trade Price / Wt.Avg.trade price | H9: Exchange
A10: 2020-04-03 | B10: 542602 | C10: EMBASSY | D10: REDDY VEERANNA | E10: SELL | F10: 15,625,000 | G10: 321.5 | H10: BSE
A11: 2020-04-03 | B11: 542602 | C11: EMBASSY | D11: AMERICAN BALANCED FUND | E11: BUY | F11: 9,514,600 | G11: 321.5 | H11: BSE
A12: 2020-04-03 | B12: 542602 | C12: EMBASSY | D12: CAPITAL INCOME BUILDER | E12: BUY | F12: 4,318,000 | G12: 321.5 | H12: BSE
A13: 2020-04-03 | B13: 511628 | C13: IMCAP | D13: RAJPAL SINGH | E13: BUY | F13: 30,100 | G13: 20 | H13: BSE
A14: 2020-04-03 | B14: 511628 | C14: IMCAP | D14: WELSOME FINANCE PRIVATE LIMITED | E14: SELL | F14: 30,000 | G14: 20 | H14: BSE
A15: 2020-04-03 | B15: 543171 | C15: ROJL | D15: VIVIDOFFSET PRINTERS PRIVATELIMITED | E15: BUY | F15: 15,000 | G15: 35.9 | H15: BSE
A16: 2020-04-03 | B16: 540797 | C16: SHALBY | D16: GOLDMAN SACHS INDIA FUND LIMITED | E16: SELL | F16: 1,231,536 | G16: 43.04 | H16: BSE
A17: 2020-04-03 | B17: 539026 | C17: SSPNFIN | D17: ASHOK KUMAR SINGH | E17: BUY | F17: 28,000 | G17: 41.25 | H17: BSE
A18: 2020-04-03 | B18: 539026 | C18: SSPNFIN | D18: RUSHIL SHAILESH PANDYA | E18: SELL | F18: 24,000 | G18: 41.25 | H18: BSE
A19: 2020-04-03 | B19: AMJUMBO | C19: A and M Jumbo Bags Ltd | D19: NISHA JIGARBHAI SHAH | E19: BUY | F19: 48,000 | G19: 7 | H19: NSE
A20: 2020-04-03 | B20: IBULISL | C20: Indiabulls Integr Ser Ltd | D20: TOSCAFUND ASSET MANAGEMENT LLP A/C TOSCA | E20: BUY | F20: 815,000 | G20: 40.7 | H20: NSE
A21: 2020-04-03 | B21: MIRCELECTR | C21: Mirc Electronics Ltd. | D21: ALPHA LEON ENTERPRISES LLP | E21: BUY | F21: 1,638,350 | G21: 3.65 | H21: NSE
A22: 2020-04-03 | B22: SIMPLEXINF | C22: Simplex Infrastructures L | D22: ALPHA LEON ENTERPRISES LLP | E22: BUY | F22: 403,269 | G22: 16.5 | H22: NSE
A23: 2020-04-03 | B23: AMJUMBO | C23: A and M Jumbo Bags Ltd | D23: USHABEN DALPATBHAI BORICHA | E23: SELL | F23: 48,000 | G23: 7 | H23: NSE
A24: 2020-04-03 | B24: IBULISL | C24: Indiabulls Integr Ser Ltd | D24: TOSCAFUND ASSET MANAGEMENT LLP A/C TOSCA | E24: SELL | F24: 815,000 | G24: 40.7 | H24: NSE
A25: 2020-04-03 | B25: MIRCELECTR | C25: Mirc Electronics Ltd. | D25: ALPHA LEON ENTERPRISES LLP | E25: SELL | F25: 38,350 | G25: 3.95 | H25: NSE
A26: 2020-04-03 | B26: NCC | C26: NCC Limited | D26: KBC ECO FUND | E26: SELL | F26: 3,365,828 | G26: 17.58 | H26: NSE
A27: 2020-04-03 | B27: SHALBY | C27: Shalby Limited | D27: GOLDMAN SACHS INDIA FUND LTD | E27: SELL | F27: 1,300,000 | G27: 43.03 | H27: NSE
A28: 2020-04-03 | B28: SIMPLEXINF | C28: Simplex Infrastructures L | D28: ALPHA LEON ENTERPRISES LLP | E28: SELL | F28: 528,568 | G28: 18.2 | H28: NSE

Sheet Call Tracker (Equity & F&O)
M5: Back To Main Page
A6: Retail Research Technical Calls & Fundamental Performance Report for the month of April-2020
M7: =Main!B10 -> 2020-04-07
B8: Positional Call
A9: Sr.no | B9: Date | D9: Company | E9: Rec | F9: Rec Price | G9: Stop Loss*** | H9: Call Closed At | I9: Target | J9: Remark | K9: Profit / Loss per Share | L9: Gain / Loss % | M9: Status | N9: Closed Date | O9: NSE Closed Price
A10: 1 | B10: 2020-03-27 | D10: ULTRACEMCO | E10: Buy | F10: 3150-3200 | G10: 2940 | I10: 3400-3500 | J10: Open | O10: =VLOOKUP(D10,Sheet2!A2:F1647,6,0) -> 3041.6 | R10: H
A11: 2 | B11: 2020-03-31 | D11: ZEEL | E11: Buy | F11: 125-126 | G11: 118 | I11: 135-140 | J11: Open | O11: =VLOOKUP(D11,Sheet2!A3:F1648,6,0) -> 124.35 | R11: N
A12: 3 | B12: 2020-04-01 | D12: HCLTECH | E12: Buy | F12: 420-427 | G12: 395 | I12: 460-480 | J12: Open | O12: =VLOOKUP(D12,Sheet2!A4:F1649,6,0) -> 405.8 | R12: H
A13: 4 | B13: 2020-04-01 | D13: ASIANPAINT | E13: Buy | F13: 1635 | G13: 1540 | H13: 1530 | I13: 1820-1850 | J13: Loss of Rs.105/- | K13: =H13-F13 -> -105 | L13: =K13/F13 -> -6.42% | M13: Unsuccessful | N13: 2020-04-03 | R13: N
A14: 5 | B14: 2020-04-01 | D14: APOLLOHOSP | E14: Buy | F14: 1105 | G14: 1040 | H14: 1145 | I14: 1250 | J14: Profit of Rs.40/- | K14: =H14-F14 -> 40 | L14: =K14/F14 -> 3.62% | M14: Successful | N14: 2020-04-03 | R14: H
A15: 6 | B15: 2020-04-03 | D15: PIDILITIND | E15: Buy | F15: 1250-1260 | G15: 1170 | I15: 1400-1420 | J15: Open | O15: =VLOOKUP(D15,Sheet2!A7:F1652,6,0) -> 1215.9 | R15: H
A17: CLBS = Closing Basis ***
A18: Dividend adjusted <> | F18: Reinitiated $
A19: Part book {} | F19: Revised stoploss #
B21: Momentum Call
A22: Sr.no | B22: Date | D22: Company | E22: Rec | F22: Rec Price | G22: Stop Loss | H22: Call Closed At | I22: Target | J22: Remark | K22: Profit / Loss per Share/Lot | L22: Gain / Loss % | M22: Gain / Loss per Lot | N22: Lot | O22: Status | P22: Closed Date
A23: 1 | B23: 2020-04-01 | D23: HDFCBANK | E23: Buy | F23: 842.5 | G23: 805 | H23: 832.5 | I23: 890-900 | J23: Loss of Rs.10/- | K23: =H23-F23 -> -10 | L23: =K23/F23 -> -1.19% | O23: Unsuccessful | P23: 2020-04-01 | R23: N
A24: 2 | B24: 2020-04-01 | D24: ICICIBANK | E24: Buy | F24: 317.5 | G24: 308 | H24: 312 | I24: 325-330 | J24: Loss of Rs. 5.5/- | K24: =H24-F24 -> -5.5 | L24: =K24/F24 -> -1.73% | O24: Unsuccessful | P24: 2020-04-01 | R24: H
A25: 3 | B25: 2020-04-01 | D25: TATASTEEL | E25: Buy | F25: 259 | G25: 249 | H25: 262.5 | I25: 275-280 | J25: Profit of Rs.3.5/- | K25: =H25-F25 -> 3.5 | L25: =K25/F25 -> 1.35% | O25: Successful | P25: 2020-04-01 | R25: H
A26: 4 | B26: 2020-04-03 | D26: TATASTEEL | E26: Buy | F26: 256-258 | G26: 248 | I26: 275-280 | J26: Open | R26: H
A27: 5 | B27: 2020-04-03 | D27: EXIDEIND | E27: Buy | F27: 129.5 | G27: 125 | H27: 132.25 | I27: 140 | J27: Profit of Rs.2.75/- | K27: =H27-F27 -> 2.75 | L27: =K27/F27 -> 2.12% | O27: Successful | P27: 2020-04-03 | R27: N
A28: 6 | B28: 2020-04-03 | D28: AMBUJACEM | E28: Sell | F28: 153.5-155.5 | G28: 158.5 | I28: 146-144 | J28: Open | R28: H
A30: CLBS = Closing Basis ***
A31: Dividend adjusted <> | F31: Reinitiated $
F32: Revised stoploss #
A34: Master Trade High Risk
A35: Sr.no | B35: Date | D35: Company | E35: Rec | F35: Rec Price | G35: Stop Loss | H35: Call Closed At | I35: Target | J35: Remark | K35: Profit / Loss per share | L35: Gain / Loss per Lot | M35: Lot | N35: Status | O35: Closed Date
A41: Master Trade Medium Risk
A42: Sr.no | B42: Date | D42: Company | E42: Rec | F42: Rec Price | G42: Stop Loss | H42: Call Closed At | I42: Target | J42: Remark | K42: Profit/ Loss per lot | L42: Gain / Loss per Lot | M42: Lot | N42: Status | O42: Closed Date
A43: 1 | B43: 2020-04-01 | D43: NIFTY 01-APR 8500 CE | E43: Buy | F43: 40 | H43: 0 | I43: 100 | J43: Loss of Rs.40/- | K43: =L43*M43 -> -3000 | L43: =H43-F43 -> -40 | M43: 75 | N43: Unsuccessful | O43: 2020-04-01 | R43: N
A46: Techno -Funda (positional)
A47: Sr.no | B47: Date | D47: Company | E47: Rec | F47: Rec Price | G47: Stop Loss*** | H47: Call Closed At | I47: Target | J47: Remark | K47: Profit / Loss per Share | L47: Gain / Loss % | M47: Status | N47: Closed Date | O47: NSE Closed Price
A49: CLBS = Closing Basis *** | F49: Reinitiated $
A50: Dividend adjusted <> | F50: Revised stoploss #
B55: Investment Idea
A56: Sr.no | B56: Date | D56: Company | E56: Rec | F56: Rec Price | G56: Point of Review | H56: Close Rate | I56: Target | J56: Remark | K56: Profit / Loss per Share | L56: Gain / Loss % | M56: Status | N56: Closed Date
A57: 1 | B57: 2013-11-01 | D57: L&T Finance Holding | E57: Accu | F57: 82.00 | G57: - | H57: 100 | I57: 100.00 | J57: Target Achieved | K57: =H57-F57 -> 18.00 | L57: =K57/F57 -> 21.95% | M57: Successful | N57: 2016-10-14
A58: 2 | B58: 2014-06-04 | D58: Finolex Inds | E58: Buy | F58: 257.00 | G58: - | H58: 300 | I58: 300.00 | J58: Target Achieved | K58: 43.00 | L58: 16.73% | M58: Successful | N58: 2014-07-02
A59: 3 | B59: 2014-07-08 | D59: JK Cement | E59: Buy | F59: 393.00 | G59: - | H59: 468 | I59: 468.00 | J59: Target Achieved | K59: 75.00 | L59: 19.08% | M59: Successful | N59: 2014-08-12
A60: 4 | B60: 2014-08-06 | D60: Finolex Cables | E60: Buy | F60: 205.00 | G60: - | H60: 275 | I60: 250.00 | J60: Target Achieved | K60: 70.00 | L60: 34.15% | M60: Successful | N60: 2014-11-19
A61: 5 | B61: 2014-09-04 | D61: Exide Inds | E61: Buy | F61: 162.00 | G61: - | H61: 190 | I61: 190.00 | J61: Target Achieved | K61: 28.00 | L61: 17.28% | M61: Successful | N61: 2015-01-02
A62: 6 | B62: 2014-09-04 | D62: Deepak Nitrite | E62: Buy | F62: 75.00 | G62: - | H62: 91.5 | I62: 95-100 | J62: Profit of Rs.16.50/- | K62: 16.50 | L62: 22.00% | M62: Successful | N62: 2014-11-11
A63: 7 | B63: 2014-10-01 | D63: Mercks | E63: Buy | F63: 850.00 | G63: - | H63: 982.5 | I63: 1050.00 | J63: Profit of Rs.132.50/- | K63: 132.50 | L63: 15.59% | M63: Successful | N63: 2015-02-04
A64: 8 | B64: 2014-10-01 | D64: Grindwell Norton | E64: Buy | F64: 475.00 | G64: - | H64: 515 | I64: 600.00 | J64: Profit of Rs.40/- | K64: 40.00 | L64: 8.42% | M64: Successful | N64: 2014-10-27
A65: 9 | B65: 2014-10-01 | D65: Snowman Logistics | E65: Buy | F65: 86.00 | G65: - | H65: 99 | I65: 140.00 | J65: Profit of Rs.13.00/- | K65: 13.00 | L65: 15.12% | M65: Successful | N65: 2014-10-27
A66: 10 | B66: 2014-10-14 | D66: Birla Corp | E66: Buy | F66: 496.60 | G66: - | H66: 621 | I66: 580.00 | J66: Target Achieved | K66: 124.40 | L66: 25.05% | M66: Successful | N66: 2016-08-23
A67: 11 | B67: 2014-10-14 | D67: Ultratech Cem | E67: Buy | F67: 2481.90 | G67: - | H67: 2840 | I67: 2870.00 | J67: Profit of Rs.358.10/- | K67: 358.10 | L67: 14.43% | M67: Successful | N67: 2015-01-13
A68: 12 | B68: 2014-10-16 | D68: Sintex Inds | E68: Buy | F68: 84.50 | G68: - | H68: 93 | I68: 110.00 | J68: Profit of Rs.8.50/- | K68: 8.50 | L68: 10.06% | M68: Successful | N68: 2014-10-27
A69: 13 | B69: 2014-10-16 | D69: HSIL | E69: Buy | F69: 401.00 | G69: - | H69: 428 | I69: 450.00 | J69: Profit of Rs.27.00/- | K69: 27.00 | L69: 6.73% | M69: Successful | N69: 2015-01-16
A70: 14 | B70: 2014-10-16 | D70: Eveready Inds | E70: Buy | F70: 101.00 | G70: - | H70: 112 | I70: 120.00 | J70: Profit of Rs.11.00/- | K70: 11.00 | L70: 10.89% | M70: Successful | N70: 2014-10-27
A71: 15 | B71: 2014-11-11 | D71: Pennar Inds | E71: Buy | F71: 59.00 | G71: - | H71: 76 | I71: 76.00 | J71: Target Achieved | K71: 17.00 | L71: 28.81% | M71: Successful | N71: 2017-10-24
A72: 16 | B72: 2014-11-11 | D72: Snowman Logistics | E72: Buy | F72: 99.00 | G72: - | H72: 120 | I72: 120.00 | J72: Profit of Rs.21/- | K72: 21.00 | L72: 21.21% | M72: Successful | N72: 2014-11-17
A73: 17 | B73: 2014-11-13 | D73: Dharamsi Morarji Chem | E73: Buy | F73: 22.00 | G73: - | H73: 33.55 | I73: 32.00 | J73: Profit of Rs 11.55/- | K73: 11.55 | L73: 52.50% | M73: Successful | N73: 2015-07-03
A74: 18 | B74: 2014-12-03 | D74: Tatachem | E74: Buy | F74: 440.00 | G74: - | H74: 520 | I74: 520.00 | J74: Profit of Rs 80.00/- | K74: 80.00 | L74: 18.18% | M74: Successful | N74: 2015-07-23
A75: 19 | B75: 2014-12-03 | D75: Advanta | E75: Buy | F75: 360.00 | G75: - | H75: 427 | I75: 425.00 | J75: Profit of Rs.67.00/- | K75: 67.00 | L75: 18.61% | M75: Successful | N75: 2015-02-23
A76: 20 | B76: 2015-01-08 | D76: GDL | E76: Buy | F76: 360.00 | G76: - | H76: 455 | I76: 420.00 | J76: Profit of Rs.95.00/- | K76: 95.00 | L76: 26.39% | M76: Successful | N76: 2015-01-20
A77: 21 | B77: 2015-01-08 | D77: NRB Bearing | E77: Buy | F77: 130.00 | H77: 175.5 | I77: 165.00 | J77: Profit of Rs 45.50/- | K77: 45.50 | L77: 35.00% | M77: Successful | N77: 2017-12-19
A78: 22 | B78: 2015-02-05 | D78: GSFC | E78: Accu | F78: 98.00 | H78: 120 | I78: 120.00 | J78: Target Achieved | K78: 22.00 | L78: 22.45% | M78: Successful | N78: 2017-01-18
A79: 23 | B79: 2015-02-05 | D79: Sundrmfast | E79: Accu | F79: 196.00 | H79: 262 | I79: 255.00 | J79: Target Achieved | K79: 66.00 | L79: 33.67% | M79: Successful | N79: 2016-08-17
A80: 24 | B80: 2015-03-04 | D80: GPPL | E80: Accu | F80: 235 | H80: 77.00 | I80: 280-285 | J80: Loss of Rs.158/- | K80: -158.00 | L80: -67.23% | M80: Unsuccessful | N80: 2019-02-26
A81: 25 | B81: 2015-03-04 | D81: ORIENTCEM | E81: Accu | F81: 185.00 | H81: 224 | I81: 220-225 | J81: Target Achieved | K81: 39.00 | L81: 21.08% | M81: Successful | N81: 2016-10-04
A82: 26 | B82: 2015-03-27 | D82: PFS | E82: Accu | F82: 49.5 | H82: 15.85 | I82: 67.00 | J82: Loss of Rs.33.65/- | K82: -33.65 | L82: -68% | M82: Unsuccessful | N82: 2019-06-11
A83: 27 | B83: 2015-03-30 | D83: Walchandnagar Ind Ltd | E83: Accu | F83: 183.50 | H83: 219 | I83: 218.00 | J83: Profit of Rs.35.50/- | K83: 35.50 | L83: 19.35% | M83: Successful | N83: 2015-04-09
A84: 28 | B84: 2015-04-20 | D84: Kalpataru Power Transmission Ltd | E84: Accu | F84: =(227+237)/2 -> 232.00 | H84: 298 | I84: 298.00 | J84: Target Achieved | K84: 66.00 | L84: 28.45% | M84: Successful | N84: 2017-03-29
A85: 29 | B85: 2015-05-04 | D85: Mastek Ltd | E85: Buy | F85: 385.00 | H85: =212.5+331 -> 543.5 | I85: 510.00 | J85: Profit of Rs 158.50/- | K85: 158.50 | L85: 41.17% | M85: Successful | N85: 2015-08-19
A86: 30 | B86: 2015-05-04 | D86: Suprajit Eng | E86: Buy | F86: 115.50 | H86: 146 | I86: 142.00 | J86: Profit of Rs 30.50/- | K86: 30.50 | L86: 26.41% | M86: Successful | N86: 2015-07-17
A87: 31 | B87: 2015-05-27 | D87: TCI | E87: Buy | F87: 237.50 | H87: 279.5 | I87: 278.00 | J87: Target Achieved | K87: 42.00 | L87: 17.68% | M87: Successful | N87: 2015-08-06
A88: 32 | B88: 2015-06-19 | D88: HSIL | E88: Accu | F88: 340.00 | H88: 448 | I88: 448.00 | J88: Target Achieved | K88: 108.00 | L88: 31.76% | M88: Successful | N88: 2017-10-10
A89: 33 | B89: 2015-07-06 | D89: Capital First | E89: Accu | F89: 390.00 | H89: 460 | I89: 460.00 | J89: Target Achieved | K89: =H89-F89 -> 70.00 | L89: =K89/F89 -> 17.95% | M89: Successful | N89: 2016-04-18
A90: 34 | B90: 2015-07-10 | D90: Dolphin OffShore | E90: Accu | F90: 122.5 | H90: 61.00 | I90: 172.00 | J90: Loss of Rs.61.50/- | K90: -61.50 | L90: -50.20% | M90: Unsuccessful | N90: 2018-08-21
A91: 35 | B91: 2015-08-03 | D91: Allcargo logistics | E91: Accu | F91: 297.50 | H91: 350 | I91: 360.00 | J91: Profit of Rs 52.50/- | K91: 52.50 | L91: 17.65% | M91: Successful | N91: 2015-08-16
A92: 36 | B92: 2015-08-03 | D92: Camline Fine | E92: Accu | F92: 115.50 | H92: 149 | I92: 140.00 | J92: Profit of Rs 33.50/- | K92: 33.50 | L92: 29.00% | M92: Successful | N92: 2017-01-05
A93: 37 | B93: 2015-09-04 | D93: TCI | E93: Accu | F93: 226.00 | H93: 292 | I93: 292.00 | J93: Target Achieved | K93: 66.00 | L93: 29.20% | M93: Successful | N93: 2015-10-09
A94: 38 | B94: 2015-09-07 | D94: Kalpataru Power Transmission Ltd | E94: Accu | F94: 232.50 | H94: 312.5 | I94: 310.00 | J94: Target Achieved | K94: 80.00 | L94: 34.41% | M94: Successful | N94: 2017-03-29
A95: 39 | B95: 2015-09-21 | D95: LLOYD ELECTRIC & ENG LTD | E95: Accu | F95: 196.50 | H95: 238 | I95: 238.00 | J95: Target Achieved | K95: 41.50 | L95: 21.12% | M95: Successful | N95: 2015-10-14
A96: 40 | B96: 2015-09-24 | D96: L&T Finance Holding | E96: Accu | F96: 65.00 | H96: 82 | I96: 82.00 | J96: Target Achieved | K96: 17.00 | L96: 26.15% | M96: Successful | N96: 2016-07-27
A97: 41 | B97: 2015-10-14 | D97: KEC International ltd | E97: Accu | F97: 144.00 | H97: 182.5 | I97: 181.00 | J97: Target Achieved | K97: 38.50 | L97: 26.74% | M97: Successful | N97: 2017-03-23
A98: 42 | B98: 2015-10-14 | D98: Gruh Finance | E98: Accu | F98: 264.00 | H98: 311 | I98: 311.00 | J98: Target Achieved | K98: 47.00 | L98: 17.80% | M98: Successful | N98: 2016-08-22
A99: 43 | B99: 2015-11-10 | D99: Pidilitind | E99: Buy | F99: 549.50 | H99: 630 | I99: 630.00 | J99: Target Achieved | K99: 80.50 | L99: 14.65% | M99: Successful | N99: 2016-02-19
A100: 44 | B100: 2015-12-04 | D100: Zensar Technology | E100: Accu | F100: 1027.50 | H100: 1315 | I100: 1250.00 | J100: Target Achieved | K100: 287.50 | L100: 27.98% | M100: Successful | N100: 2018-05-24
A101: 45 | B101: 2015-12-29 | D101: Vinati Organics Ltd | E101: Accu | F101: 465.00 | H101: 540 | I101: 540.00 | J101: Target Achieved | K101: 75.00 | L101: 16.13% | M101: Successful | N101: 2016-06-09
A102: 46 | B102: 2016-01-11 | D102: GSFC | E102: Buy | F102: 81.00 | H102: 110 | I102: 110.00 | J102: Target Achieved | K102: 29.00 | L102: 35.80% | M102: Successful | N102: 2017-01-10
A103: 47 | B103: 2016-01-13 | D103: SSWL | E103: Buy | F103: 417.50 | H103: 547 | I103: 535.00 | J103: Target Achieved | K103: 129.50 | L103: 31.02% | M103: Successful | N103: 2016-07-27
A104: 48 | B104: 2016-02-08 | D104: Persistent System Ltd | E104: Accu | F104: 650.00 | H104: 800 | I104: 800.00 | J104: Target Achieved | K104: 150.00 | L104: 23.08% | M104: Successful | N104: 2018-02-23
A105: 49 | B105: 2016-03-04 | D105: UPL | E105: Accu | F105: 437.50 | H105: 504.5 | I105: 522.00 | J105: Profit of Rs.67/- | K105: 67.00 | L105: 15.31% | M105: Successful | N105: 2016-04-20
A106: 50 | B106: 2016-03-09 | D106: Ashoka Buildcon Ltd | E106: Accu | F106: 189.50 | H106: 218 | I106: 218.00 | J106: Target Achieved | K106: 28.50 | L106: 15.04% | M106: Successful | N106: 2017-10-26
A107: 51 | B107: 2016-04-11 | D107: PTC INDIA FIN SERV LTD | E107: Accu | F107: 36.5 | H107: 15.85 | I107: 60.00 | J107: Loss of Rs.20.65/- | K107: -20.65 | L107: -56.58% | M107: Unsuccessful | N107: 2019-06-11
A108: 52 | B108: 2016-04-12 | D108: CAMLINFINE $ | E108: Accu | F108: 93.00 | H108: 149 | I108: 140.00 | J108: Profit of Rs 56/- | K108: 56.00 | L108: 60.22% | M108: Successful | N108: 2017-01-05
A109: 53 | B109: 2016-04-12 | D109: Greaves Cotton Ltd. | E109: Accu | F109: 130.00 | H109: 150 | I109: 150-155 | J109: Target Achieved | K109: 20.00 | L109: 15.38% | M109: Successful | N109: 2016-07-13
A110: 54 | B110: 2016-04-13 | D110: DHFL | E110: Accu | F110: 196.00 | H110: 299 | I110: 299.00 | J110: Target Achieved | K110: 103.00 | L110: 52.55% | M110: Successful | N110: 2016-09-07
A111: 55 | B111: 2016-04-13 | D111: Magma | E111: Accu | F111: 88.00 | H111: 103 | I111: 103.00 | J111: Target Achieved | K111: 15.00 | L111: 17.05% | M111: Successful | N111: 2016-06-09
A112: 56 | B112: 2016-05-02 | D112: KEC International ltd $ | E112: Accu | F112: 127.50 | H112: 148 | I112: 148-150 | J112: Target Achieved | K112: =H112-F112 -> 20.50 | L112: =K112/F112 -> 16.08% | M112: Successful | N112: 2016-07-13
A113: 57 | B113: 2016-05-03 | D113: Mindtree | E113: Accu | F113: 675.00 | H113: 815 | I113: 790-800 | J113: Target Achieved | K113: =H113-F113 -> 140.00 | L113: =K113/F113 -> 20.74% | M113: Successful | N113: 2018-02-23
A114: 58 | B114: 2016-06-01 | D114: Atulauto | E114: Accu | F114: 500 | H114: 232.50 | I114: 565-570 | J114: Loss of Rs.267.50 /- | K114: =H114-F114 -> -267.50 | L114: =K114/F114 -> -53.50% | M114: Unsuccessful | N114: 2019-09-27
A115: 59 | B115: 2016-06-06 | D115: TRITURBINE | E115: Accu | F115: 110.00 | H115: 126.5 | I115: 125.00 | J115: Profit of Rs.16.50/- | K115: =H115-F115 -> 16.50 | L115: =K115/F115 -> 15.00% | M115: Successful | N115: 2016-07-01
A116: 60 | B116: 2016-06-17 | D116: Pennar Industries Ltd | E116: Accu | F116: 44.00 | H116: 69.5 | I116: 69.50 | J116: Profit of Rs.25.50/- | K116: =H116-F116 -> 25.50 | L116: =K116/F116 -> 57.95% | M116: Successful | N116: 2017-08-30
A117: 61 | B117: 2016-06-28 | D117: EVEREADY | E117: Accu | F117: 262.50 | H117: 340 | I117: 333.00 | J117: Profit of Rs.77.50/- | K117: 77.50 | L117: 29.52% | M117: Successful | N117: 2017-10-09
A118: 62 | B118: 2016-06-28 | D118: FIEMIND | E118: Accu | F118: 840.00 | H118: 1230 | I118: 1230.00 | J118: Target Achieved | K118: 390.00 | L118: 46.43% | M118: Successful | N118: 2016-10-06
A119: 63 | B119: 2016-07-05 | D119: Bajaj Corp Ltd | E119: Accu | F119: 395 | H119: =(468.5+342.5)/2 -> 405.50 | I119: 510.00 | J119: Profit of Rs.10.50/- | K119: =H119-F119 -> 10.50 | L119: =K119/F119 -> 3% | M119: Neutral | N119: 2019-05-21
A120: 64 | B120: 2016-08-02 | D120: GPPL $ | E120: Buy | F120: =169.5-12.8 -> 156.7 | H120: 77.00 | I120: 198-200 | J120: Loss of Rs.79.7/- | K120: -79.70 | L120: -50.86% | M120: Unsuccessful | N120: 2019-02-26
A121: 65 | B121: 2016-08-04 | D121: WONDERLA HOLIDAYS LTD | E121: Accu | F121: 400 | H121: 305.00 | I121: 475.00 | J121: Loss of Rs.95/- | K121: -95.00 | L121: -23.75% | M121: Unsuccessful | N121: 2019-05-21
A122: 66 | B122: 2016-08-11 | D122: CAMLINFINE | E122: Accu | F122: 86.50 | H122: 130 | I122: 130.00 | J122: Profit of Rs.43.50/- | K122: 43.50 | L122: 50.29% | M122: Successful | N122: 2017-12-22
A123: 67 | B123: 2016-08-18 | D123: GRANULES | E123: Accu | F123: 133.5 | H123: 126.50 | I123: 178.00 | J123: Exit | K123: -7.00 | L123: -5.24% | M123: Unsuccessful | N123: 2016-09-02
A124: 68 | B124: 2016-08-31 | D124: VA TECH WABAG | E124: Accu | F124: 560.00 | H124: 725 | I124: 725.00 | J124: Target Achieved | K124: 165.00 | L124: 29.46% | M124: Successful | N124: 2016-03-27
A125: 69 | B125: 2016-09-01 | D125: SKIPPER LIMITED | E125: Accu | F125: 160.50 | H125: 210 | I125: 210.00 | J125: Target Achieved | K125: 49.50 | L125: 30.84% | M125: Successful | N125: 2017-05-16
A126: 70 | B126: 2016-10-03 | D126: IFBIND | E126: Accu | F126: 430.00 | H126: 596 | I126: 575.00 | J126: Profit of Rs.166/- | K126: 166.00 | L126: 38.60% | M126: Successful | N126: 2017-02-03
A127: 71 | B127: 2016-10-14 | D127: ASIANTILES | E127: Accu | F127: 280.00 | H127: 345 | I127: 345.00 | J127: Target Achieved | K127: =H127-F127 -> 65.00 | L127: =K127/F127 -> 23.21% | M127: Successful | N127: 2017-03-20
A128: 72 | B128: 2016-10-14 | D128: DEEPIND | E128: Accu | F128: 245.00 | H128: 325.5 | I128: 330.00 | J128: Profit of Rs.80.5/- | K128: 80.50 | L128: =K128/F128 -> 32.86% | M128: Successful | N128: 2017-02-03
A129: 73 | B129: 2016-10-17 | D129: DCBBANK | E129: Accu | F129: 125.00 | H129: 160 | I129: 160.00 | J129: Target Achieved | K129: 35.00 | L129: 28.00% | M129: Successful | N129: 2017-03-09
A130: 74 | B130: 2016-10-17 | D130: ORIENTREF | E130: Accu | F130: 114.00 | H130: 145 | I130: 145.00 | J130: Target Achieved | K130: 31.00 | L130: =K130/F130 -> 27.19% | M130: Successful | N130: 2017-05-04
A131: 75 | B131: 2016-10-17 | D131: GANECOS | E131: Accu | F131: 212.00 | H131: 280 | I131: 276.00 | J131: Profit of Rs.68/- | K131: 68.00 | L131: =K131/F131 -> 32.08% | M131: Successful | N131: 2017-05-03
A132: 76 | B132: 2016-11-04 | D132: NBCC | E132: Accu | F132: 155.00 | H132: 210 | I132: 210.00 | J132: Profit of Rs.55/- | K132: 55.00 | L132: =K132/F132 -> 35.48% | M132: Successful | N132: 2017-07-28
A133: 77 | B133: 2016-12-06 | D133: PRECAM | E133: Accu | F133: 150.5 | H133: 72.50 | I133: 174.00 | J133: Loss of Rs.78/- | K133: -78.00 | L133: -51.83% | M133: Unsuccessful | N133: 2018-08-21
A134: 78 | B134: 2016-12-08 | D134: INFRATEL | E134: Accu | F134: 380.00 | H134: 478 | I134: 468.00 | J134: Target Achieved | K134: =H134-F134 -> 98.00 | L134: =K134/F134 -> 25.79% | M134: Successful | N134: 2017-10-17
A135: 79 | B135: 2016-12-30 | D135: GODREJPROP | E135: Accu | F135: 305.00 | H135: 375 | I135: 375.00 | J135: Target Achieved | K135: =H135-F135 -> 70.00 | L135: =K135/F135 -> 22.95% | M135: Successful | N135: 2017-02-02
A136: 80 | B136: 2017-01-04 | D136: DEEPAKNTR | E136: Accu | F136: 99.50 | H136: 158 | I136: 158.00 | J136: Target Achieved | K136: =H136-F136 -> 58.50 | L136: =K136/F136 -> 58.79% | M136: Successful | N136: 2017-06-12
A137: 81 | B137: 2017-01-04 | D137: DEEPAKNTR | E137: Accu | F137: 99.50 | H137: 158 | I137: 158.00 | J137: Target Achieved | K137: 58.50 | L137: 58.79% | M137: Successful | N137: 2017-06-12
A138: 82 | B138: 2017-02-20 | D138: RECLTD | E138: Accu | F138: 140.50 | H138: 220 | I138: 220.00 | J138: Target Achieved | K138: =H138-F138 -> 79.50 | L138: =K138/F138 -> 56.58% | M138: Successful | N138: 2017-05-09
A139: 83 | B139: 2017-02-20 | D139: SUBROS | E139: Accu | F139: 202.50 | H139: 234 | I139: 234.00 | J139: Target Achieved | K139: 31.50 | L139: 15.56% | M139: Successful | N139: 2017-04-11
A140: 84 | B140: 2017-03-24 | D140: VRLLOG | E140: Accu | F140: 300.50 | H140: 417.5 | I140: 420.00 | J140: Profit of Rs.117/- | K140: =H140-F140 -> 117.00 | L140: =K140/F140 -> 38.94% | M140: Successful | N140: 2017-12-01
A141: 85 | B141: 2017-03-24 | D141: FIEMIND | E141: Accu | F141: 850.00 | H141: 1042.5 | I141: 1023.00 | J141: Profit of Rs 192.50/- | K141: 192.50 | L141: 22.65% | M141: Successful | N141: 2017-04-05
A142: 86 | B142: 2017-04-05 | D142: RATNAMANI | E142: Accu | F142: 785.00 | H142: 930 | I142: 920.00 | J142: Profit of Rs.145/- | K142: =H142-F142 -> 145.00 | L142: =K142/F142 -> 18.47% | M142: Successful | N142: 2017-08-29
A143: 87 | B143: 2017-04-06 | D143: ZEEMEDIA | E143: Accu | F143: 40 | H143: 13.10 | I143: 60.00 | J143: Loss of Rs.26.9/- | K143: -26.90 | L143: -67.25% | M143: Unsuccessful | N143: 2018-02-07
A144: 88 | B144: 2017-04-12 | D144: DABUR | E144: Accu | F144: 289.50 | H144: 354 | I144: 360.00 | J144: Profit of Rs.64.5/- | K144: =H144-F144 -> 64.50 | L144: =K144/F144 -> 22.28% | M144: Successful | N144: 2017-11-01
A145: 89 | B145: 2017-04-20 | D145: KPRMILL | E145: Accu | F145: 700.00 | H145: 840 | I145: 840.00 | J145: Profit of Rs.140/- | K145: 140.00 | L145: 20.00% | M145: Successful | N145: 2017-06-07
A146: 90 | B146: 2017-06-01 | D146: ESSELPACK | E146: Accu | F146: 130.00 | H146: 144.25 | I146: 170.00 | J146: Profit of Rs.14.25/- | K146: 14.25 | L146: 10.96% | M146: Successful | N146: 2019-07-29
A147: 91 | B147: 2017-06-15 | D147: KEI | E147: Accu | F147: 214.50 | H147: 262 | I147: 262.00 | J147: Profit of Rs.47.5/- | K147: 47.50 | L147: 22.14% | M147: Successful | N147: 2017-08-30
A148: 92 | B148: 2017-07-17 | D148: MAYURUNIQ | E148: Accu | F148: 370.00 | H148: 447.5 | I148: 450.00 | J148: Target Achieved | K148: 77.50 | L148: 20.95% | M148: Successful | N148: 2017-10-27
A149: 93 | B149: 2017-07-27 | D149: RAMCOCEM | E149: Accu | F149: 657.50 | H149: 825 | I149: 820.00 | J149: Target Achieved | K149: 167.50 | L149: 25.48% | M149: Successful | N149: 2017-12-21
A150: 94 | B150: 2017-08-17 | D150: FINPIPE | E150: Accu | F150: 605.00 | H150: 750 | I150: 750.00 | J150: Profit of Rs.145/- | K150: 145.00 | L150: 23.97% | M150: Successful | N150: 2017-10-19
A151: 95 | B151: 2017-09-01 | D151: SHK | E151: Accu | F151: 255 | H151: 217.25 | I151: 320.00 | J151: Loss of Rs.37.75/- | K151: -37.75 | L151: -15% | M151: Unsuccessful | N151: 2019-07-15
A152: 96 | B152: 2017-09-19 | D152: SKIPPER | E152: Accu | F152: 215.00 | H152: 258 | I152: 258.00 | J152: Target Achieved | K152: 43.00 | L152: 20.00% | M152: Successful | N152: 2017-11-01
A153: 97 | B153: 2017-09-19 | D153: SKIPPER | E153: Accu | F153: 215.00 | H153: 258 | I153: 258.00 | J153: Target Achieved | K153: 43.00 | L153: 20.00% | M153: Successful | N153: 2017-11-01
A154: 98 | B154: 2017-09-20 | D154: CAMLINFINE$ | E154: Accu | F154: 75.00 | H154: 90 | I154: 90.00 | J154: Profit of Rs.15.00/- | K154: =H154-F154 -> 15.00 | L154: =K154/F154 -> 20.00% | M154: Successful | N154: 2017-10-11
A155: 99 | B155: 2017-10-03 | D155: GNA | E155: Accu | F155: 315.00 | H155: 392 | I155: 384.00 | J155: Profit of Rs.77/- | K155: 77.00 | L155: 24.44% | M155: Successful | N155: 2017-10-09
A156: 100 | B156: 2017-10-05 | D156: NOCIL | E156: Accu | F156: 145.00 | H156: 179 | I156: 180.00 | J156: Profit of Rs.34/- | K156: 34.00 | L156: 23.45% | M156: Successful | N156: 2017-10-17
A157: 101 | B157: 2017-10-06 | D157: CENTURYPLY | E157: Accu | F157: 256.00 | H157: 323 | I157: 320.00 | J157: Target Achieved | K157: 67.00 | L157: 26.17% | M157: Successful | N157: 2017-11-28
A158: 102 | B158: 2017-10-09 | D158: EIHOTEL | E158: Accu | F158: 137.50 | H158: 184 | I158: 183.00 | J158: Profit of Rs.46.5/- | K158: 46.50 | L158: 33.82% | M158: Successful | N158: 2018-01-08
A159: 103 | B159: 2017-10-10 | D159: NRBBEARING | E159: Accu | F159: 125.50 | H159: 158 | I159: 155.00 | J159: Profit of Rs.32.5/- | K159: 32.50 | L159: 25.90% | M159: Successful | N159: 2017-11-28
A160: 104 | B160: 2017-10-10 | D160: BOROSIL | E160: Accu | F160: 895.00 | H160: 1122.5 | I160: 1078.00 | J160: Profit of Rs.227.5/- | K160: 227.50 | L160: 25.42% | M160: Successful | N160: 2018-01-17
A161: 105 | B161: 2017-10-12 | D161: CYIENT | E161: Accu | F161: 525.00 | H161: 629 | I161: 629.00 | J161: Target Achieved | K161: 104.00 | L161: 19.81% | M161: Successful | N161: 2018-01-19
A162: 106 | B162: 2017-11-07 | D162: HATSUN | E162: Accu | F162: 740.00 | H162: 892.5 | I162: 900.00 | J162: Profit of Rs.152.5/- | K162: =H162-F162 -> 152.50 | L162: =K162/F162 -> 20.61% | M162: Successful | N162: 2017-11-13
A163: 107 | B163: 2017-12-04 | D163: SANGHIIND | E163: Accu | F163: 118.50 | H163: 143.5 | I163: 145.00 | J163: Profit of Rs.25/- | K163: =H163-F163 -> 25.00 | L163: =K163/F163 -> 21.10% | M163: Successful | N163: 2017-12-28
A164: 108 | B164: 2017-12-21 | D164: KAJARIACER | E164: Accu | F164: 715 | H164: 500.00 | I164: 872.00 | J164: Loss of Rs.215/- | K164: =H164-F164 -> -215.00 | L164: =K164/F164 -> -30.07% | M164: Unsuccessful | N164: 2019-07-24
A165: 109 | B165: 2017-12-29 | D165: GNA | E165: Accu | F165: 435.00 | H165: 542.5 | I165: 539.00 | J165: Target Achieved | K165: 107.50 | L165: 24.71% | M165: Successful | N165: 2018-04-16
A166: 110 | B166: 2017-12-29 | D166: ZENSARTECH | E166: Accu | F166: 885.00 | H166: 1090 | I166: 1084.00 | J166: Target Achieved | K166: 205.00 | L166: 23.16% | M166: Successful | N166: 2018-04-23
A167: 111 | B167: 2018-04-02 | D167: EVERESTIND | E167: Accu | F167: 478.50 | H167: 442 | I167: 613.00 | J167: Loss of Rs.36.50 /- | K167: =H167-F167 -> -36.50 | L167: =K167/F167 -> -7.63% | M167: Unsuccessful | N167: 2019-10-24
A168: 112 | B168: 2018-04-04 | D168: GPPL$ | E168: Accu | F168: =141.5-7.3 -> 134.2 | H168: 77.00 | I168: 180.00 | J168: Loss of Rs.57.2/- | K168: =H168-F168 -> -57.20 | L168: =K168/F168 -> -42.62% | M168: Unsuccessful | N168: 2019-02-26
A169: 113 | B169: 2018-04-19 | D169: MANPASAND | E169: Accu | F169: 430 | H169: 220.00 | I169: 537.00 | J169: Loss of Rs.210/- | K169: =H169-F169 -> -210.00 | L169: =K169/F169 -> -48.84% | M169: Unsuccessful | N169: 2018-06-01
A170: 114 | B170: 2018-04-30 | D170: HEIDELBERG | E170: Accu | F170: 153.50 | H170: 196.00 | I170: 196.00 | J170: Profit of Rs.42.50/- | K170: =H170-F170 -> 42.50 | L170: =K170/F170 -> 28% | M170: Successful | N170: 2019-05-20
A171: 115 | B171: 2018-07-25 | D171: ZEEMEDIA | E171: Accu | F171: 27.5 | H171: 13.10 | I171: 60.00 | J171: Loss of Rs.14.40/- | K171: -14.40 | L171: -52.36% | M171: Unsuccessful | N171: 2018-02-07
A172: 116 | B172: 2018-08-06 | D172: GABRIEL | E172: Accu | F172: 148.5 | H172: 102 | I172: 182.00 | J172: Loss of Rs.46.50/- | K172: =H172-F172 -> -46.50 | L172: =K172/F172 -> -31.31% | M172: Unsuccessful | N172: 2019-07-15
A173: 117 | B173: 2018-08-23 | D173: INDIANHUME | E173: Accu | F173: 285 | H173: 355 | I173: 364.00 | J173: Profit of Rs.70/- | K173: 70.00 | L173: 24.56% | M173: Successful | N173: 2018-12-21
A174: 118 | B174: 2018-08-29 | D174: GRINDWELL | E174: Accu | F174: 525 | H174: 585 | I174: 635.00 | J174: Profit of Rs.60- | K174: =H174-F174 -> 60.00 | L174: =K174/F174 -> 11.43% | M174: Successful | N174: 2019-07-16
A175: 119 | B175: 2018-10-22 | D175: FINPIPE | E175: Accu | F175: 475 | H175: 574 | I175: 570.00 | J175: Target Achieved | K175: 99.00 | L175: 20.84% | M175: Successful | N175: 2018-10-30
A176: 120 | B176: 2018-10-24 | D176: GULFOILLUB | E176: Accu | F176: 707.5 | H176: 872 | I176: 872.00 | J176: Target Achieved | K176: 164.50 | L176: 23.25% | M176: Successful | N176: 2019-01-17
A177: 121 | B177: 2018-10-25 | D177: DBCORP | E177: Accu | F177: 162 | H177: 204 | I177: 209.00 | J177: Profit of Rs.42/- | K177: 42.00 | L177: 25.93% | M177: Successful | N177: 2019-03-15
A178: 122 | B178: 2018-10-26 | D178: RITES | E178: Accu | F178: 240 | H178: 297 | I178: 297.00 | J178: Target Achieved | K178: 57.00 | L178: 23.75% | M178: Successful | N178: 2018-11-13
A179: 123 | B179: 2018-12-05 | D179: BRIGADE | E179: Accu | F179: 202.5 | H179: 255 | I179: 252.00 | J179: Target Achieved | K179: 52.50 | L179: 25.93% | M179: Successful | N179: 2019-03-18
A180: 124 | B180: 2018-12-31 | D180: JKCEMENT | E180: Accu | F180: 710 | H180: 866 | I180: 866.00 | J180: Target Achieved | K180: 156.00 | L180: 21.97% | M180: Successful | N180: 2019-03-29
A181: 125 | B181: 2019-02-26 | D181: MARICO | E181: Accu | F181: 337.25 | H181: 398.5 | I181: 411.00 | J181: Profit of Rs.61.25/- | K181: 61.25 | L181: 18.16% | M181: Successful | N181: 2019-10-22
A182: 126 | B182: 2019-04-04 | D182: ITDCEM | E182: Accu | F182: 130 | H182: 65 | I182: 158.00 | J182: Loss of Rs.65 /- | K182: -65.00 | L182: -50.00% | M182: Unsuccessful | N182: 2019-09-18
A183: 127 | B183: 2017-10-09 | D183: RECLTD | E183: Accu | F183: 141.5 | H183: 183.50 | I183: 210.00 | J183: Part Profit of Rs.42/- | K183: 42.00 | L183: 30% | M183: Successful | N183: 2017-11-03 | R183: V
A184: 128 | B184: 2017-12-05 | D184: ALLCARGO | E184: Accu | F184: 172.00 | H184: 155.25 | I184: 230.00 | J184: Loss of Rs.16.75/- | K184: =H184-F184 -> -16.75 | L184: =K184/F184 -> -9.74% | M184: Unsuccessful | N184: 2019-11-18 | R184: V
A185: 129 | B185: 2018-10-25 | D185: GODREJCP | E185: Accu | F185: 698.50 | H185: 850.00 | I185: 890.00 | J185: Part Profit of Rs.151.50/- | K185: 151.50 | L185: 22% | M185: Successful | N185: 2018-12-19 | R185: V
A186: 130 | B186: 2017-05-22 | D186: GREAVESCOT | E186: Accu | F186: 127.6 | H186: 138.00 | I186: 190.00 | J186: Profit of Rs.10.40 | K186: 10.40 | L186: 8% | M186: Successful | N186: 2019-11-05 | R186: K
A187: 131 | B187: 2018-02-27 | D187: MOLDTKPAC | E187: Accu | F187: 317.00 | I187: 398.00 | M187: Open | R187: K
A188: 132 | B188: 2018-03-05 | D188: LICHSGFIN | E188: Accu | F188: =510-14.4 -> 495.60 | H188: 350 | I188: 672.00 | J188: Loss of Rs.145.60/- | K188: =H188-F188 -> -145.60 | L188: =K188/F188 -> -29.38% | M188: Unsuccessful | N188: 2020-02-26 | R188: K
A189: 133 | B189: 2018-05-17 | D189: PHILIPCARB | E189: Accu | F189: 230.30 | H189: 102.5 | I189: 348.00 | J189: Loss of Rs.127.80/- | K189: =H189-F189 -> -127.80 | L189: =K189/F189 -> -55.49% | M189: Unsuccessful | N189: 2020-03-06 | R189: V
A190: 134 | B190: 2018-06-07 | D190: KEC | E190: Accu | F190: =342.5-5.1 -> 337.40 | I190: 439.00 | M190: Open | R190: K
A191: 135 | B191: 2018-07-04 | D191: ASHOKLEY | E191: Accu | F191: =127.5-5.53 -> 121.97 | I191: 170.00 | M191: Open | R191: K
A192: 136 | B192: 2018-07-13 | D192: FCONSUMER | E192: Accu | F192: 46.50 | H192: 17 | I192: 59.00 | J192: Loss of Rs.29.50/- | K192: =H192-F192 -> -29.50 | L192: =K192/F192 -> -63.44% | M192: Unsuccessful | N192: 2020-02-26 | R192: V
A193: 137 | B193: 2018-10-23 | D193: JKPAPER | E193: Accu | F193: 156.50 | I193: 191.00 | M193: Open | R193: V
A194: 138 | B194: 2018-12-05 | D194: CCL | E194: Accu | F194: 259.50 | I194: 321.00 | M194: Open | R194: K
A195: 139 | B195: 2018-12-05 | D195: VARROC | E195: Accu | F195: 715 | H195: 445 | I195: 840.00 | J195: Loss of Rs.270/- | K195: =H195-F195 -> -270.00 | L195: =K195/F195 -> -37.76% | M195: Unsuccessful | N195: 2019-12-01 | R195: V
A196: 140 | B196: 2019-01-04 | D196: MGL | E196: Accu | F196: 875 | H196: 1165 | I196: 1185.00 | J196: Profit of Rs.290/- | K196: 290.00 | L196: 33.14% | M196: Successful | N196: 2020-01-17 | R196: V
A197: 141 | B197: 2019-04-04 | D197: COCHINSHIP | E197: Accu | F197: =387-14.63 -> 372.37 | H197: 490 | I197: 490.00 | J197: Target Achieved | K197: 117.63 | L197: 31.59% | M197: Successful | N197: 2020-01-20 | R197: V
A198: 142 | B198: 2019-04-23 | D198: MAHINDCIE | E198: Buy | F198: 220 | H198: 127.5 | I198: 284.00 | J198: Loss of Rs.92.50/- | K198: -92.50 | L198: -42.05% | M198: Unsuccessful | N198: 2020-03-06 | R198: V
A199: 143 | B199: 2019-06-06 | D199: RADICO | E199: Buy | F199: 332.8 | H199: 405 | I199: 419.00 | J199: Profit of Rs.72.20/- | K199: =H199-F199 -> 72.20 | L199: =K199/F199 -> 21.69% | M199: Successful | N199: 2020-01-30 | R199: V
A200: 144 | B200: 2019-06-25 | D200: M&MFIN | E200: Accu | F200: 386 | H200: 395.00 | I200: 452.00 | J200: Profit of Rs.9/- | K200: =H200-F200 -> 9.00 | L200: =K200/F200 -> 2% | M200: Neutral | N200: 2020-02-07 | R200: V
A201: 145 | B201: 2019-08-30 | D201: INDHOTEL | E201: Accu | F201: 135-140 | I201: 190.00 | M201: Open | R201: V
A202: 146 | B202: 2019-09-23 | D202: KNRCON | E202: Accu | F202: 235 | H202: 295 | I202: 296.00 | J202: Profit of Rs.60/- | K202: =H202-F202 -> 60.00 | L202: =K202/F202 -> 25.53% | M202: Successful | N202: 2020-01-14 | R202: V
A203: 147 | B203: 2019-10-14 | D203: KEC$ | E203: Accu | F203: 277.5 | H203: 333 | I203: 333.00 | J203: Profit of Rs.55.50/- | K203: =H203-F203 -> 55.50 | L203: =K203/F203 -> 20.00% | M203: Successful | N203: 2020-01-16 | R203: K
A204: 148 | B204: 2019-10-14 | D204: MGL$ | E204: Accu | F204: 930 | H204: 1165 | I204: 1200.00 | J204: Profit of Rs.235/- | K204: =H204-F204 -> 235.00 | L204: =K204/F204 -> 25.27% | M204: Successful | N204: 2020-01-17 | R204: K
A205: 149 | B205: 2019-10-15 | D205: JKPAPER$ | E205: Accu | F205: 111.00 | I205: 141.00 | M205: Open | R205: V
A206: 150 | B206: 2019-10-15 | D206: RADICO$ | E206: Accu | F206: 296.00 | H206: 370 | I206: 370.00 | J206: Target Achieved | K206: =H206-F206 -> 74.00 | L206: =K206/F206 -> 25.00% | M206: Successful | N206: 2020-01-23 | R206: K
A207: 151 | B207: 2019-10-16 | D207: MOLDTKPAC$ | E207: Accu | F207: 298-302 | I207: 344.00 | M207: Open | R207: V
A208: 152 | B208: 2020-01-02 | D208: PSPPROJECT | E208: Accu | F208: 490-500 | I208: 590.00 | M208: Open | R208: K
B210: Re-initiated $

Sheet Sheet2 (hidden)
A1: SYMBOL | B1: SERIES | C1: OPEN | D1: HIGH | E1: LOW | F1: CLOSE | G1: LAST | H1: PREVCLOSE | I1: TOTTRDQTY | J1: TOTTRDVAL | K1: TIMESTAMP | L1: TOTALTRADES | M1: ISIN | N1: ISIN
A2: 20MICRONS | B2: EQ | C2: 25 | D2: 25.55 | E2: 23.2 | F2: 24.45 | G2: 24.4 | H2: 24.55 | I2: 18990 | J2: 459870.25 | K2: 2020-04-03 | L2: 340 | M2: INE144J01027
A3: 21STCENMGM | B3: EQ | C3: 10.65 | D3: 10.65 | E3: 10.5 | F3: 10.5 | G3: 10.5 | H3: 10.65 | I3: 499 | J3: 5241.5 | K3: 2020-04-03 | L3: 6 | M3: INE253B01015
A4: 3IINFOTECH | B4: EQ | C4: 1.3 | D4: 1.3 | E4: 1.2 | F4: 1.3 | G4: 1.3 | H4: 1.25 | I4: 2445739 | J4: 3123810.45 | K4: 2020-04-03 | L4: 885 | M4: INE748C01020
A5: 3MINDIA | B5: EQ | C5: 18410 | D5: 18650 | E5: 17175 | F5: 17490.1 | G5: 17400.05 | H5: 18469.55 | I5: 7588 | J5: 132897327.6 | K5: 2020-04-03 | L5: 3561 | M5: INE470A01017
A6: 3PLAND | B6: EQ | C6: 3.4 | D6: 3.55 | E6: 3.4 | F6: 3.55 | G6: 3.55 | H6: 3.4 | I6: 1503 | J6: 5334.45 | K6: 2020-04-03 | L6: 8 | M6: INE105C01023
A7: 5PAISA | B7: EQ | C7: 115 | D7: 128 | E7: 113.6 | F7: 115.1 | G7: 115 | H7: 113.55 | I7: 2711 | J7: 313459.35 | K7: 2020-04-03 | L7: 132 | M7: INE618L01018
A8: 63MOONS | B8: EQ | C8: 46.2 | D8: 47 | E8: 45.45 | F8: 46.15 | G8: 46.45 | H8: 46.35 | I8: 31413 | J8: 1450773.6 | K8: 2020-04-03 | L8: 2071 | M8: INE111B01023
A9: A2ZINFRA | B9: EQ | C9: 3.1 | D9: 3.2 | E9: 3.05 | F9: 3.1 | G9: 3.1 | H9: 3.1 | I9: 169080 | J9: 528508.55 | K9: 2020-04-03 | L9: 210 | M9: INE619I01012
A10: AARTIDRUGS | B10: EQ | C10: 527.7 | D10: 547 | E10: 520.15 | F10: 540.75 | G10: 542.7 | H10: 517.5 | I10: 25364 | J10: 13614992.05 | K10: 2020-04-03 | L10: 2068 | M10: INE767A01016
A11: AARTIIND | B11: EQ | C11: 801.1 | D11: 804 | E11: 770.75 | F11: 790.7 | G11: 793 | H11: 795.8 | I11: 135885 | J11: 107549233.5 | K11: 2020-04-03 | L11: 18657 | M11: INE769A01020
A12: AARVEEDEN | B12: EQ | C12: 8.15 | D12: 8.15 | E12: 7.4 | F12: 7.8 | G12: 7.9 | H12: 7.65 | I12: 1750 | J12: 13639.25 | K12: 2020-04-03 | L12: 61 | M12: INE273D01019
A13: AAVAS | B13: EQ | C13: 1179 | D13: 1180 | E13: 1132.4 | F13: 1132.4 | G13: 1132.4 | H13: 1192 | I13: 104654 | J13: 118589319.7 | K13: 2020-04-03 | L13: 4176 | M13: INE216P01012
A14: ABAN | B14: EQ | C14: 14.35 | D14: 14.75 | E14: 14.05 | F14: 14.75 | G14: 14.75 | H14: 14.05 | I14: 66242 | J14: 971578.05 | K14: 2020-04-03 | L14: 532 | M14: INE421A01028
A15: ABB | B15: EQ | C15: 914.3 | D15: 949 | E15: 893 | F15: 934.15 | G15: 935 | H15: 929.65 | I15: 40418 | J15: 37234007.25 | K15: 2020-04-03 | L15: 3299 | M15: INE117A01022
A16: ABBOTINDIA | B16: EQ | C16: 15775 | D16: 16000 | E16: 15210 | F16: 15810.5 | G16: 15809 | H16: 15613.6 | I16: 28827 | J16: 451028181.4 | K16: 2020-04-03 | L16: 8802 | M16: INE358A01014
A17: ABCAPITAL | B17: EQ | C17: 42.5 | D17: 45.2 | E17: 41.05 | F17: 43.45 | G17: 43.4 | H17: 42.9 | I17: 1336547 | J17: 57486265.15 | K17: 2020-04-03 | L17: 9170 | M17: INE674K01013
A18: ABFRL | B18: EQ | C18: 149 | D18: 149 | E18: 142 | F18: 145.95 | G18: 146.3 | H18: 149.55 | I18: 431692 | J18: 62392632.15 | K18: 2020-04-03 | L18: 15174 | M18: INE647O01011
A19: ABSLBANETF | B19: EQ | C19: 210 | D19: 228 | E19: 203.7 | F19: 228 | G19: 228 | H19: 223.62 | I19: 13 | J19: 2796.4 | K19: 2020-04-03 | L19: 10 | M19: INF209KB1O58
A20: ABSLNN50ET | B20: EQ | C20: 234 | D20: 234 | E20: 211.82 | F20: 211.82 | G20: 211.82 | H20: 236.74 | I20: 39 | J20: 8613.3 | K20: 2020-04-03 | L20: 4 | M20: INF209KB1B87
A21: ACC | B21: EQ | C21: 960 | D21: 969.8 | E21: 936.95 | F21: 962.6 | G21: 958.05 | H21: 963.45 | I21: 1221295 | J21: 1171374197 | K21: 2020-04-03 | L21: 31706 | M21: INE012A01025
A22: ACCELYA | B22: EQ | C22: 860.3 | D22: 873 | E22: 860.05 | F22: 869.75 | G22: 867.1 | H22: 860.3 | I22: 32652 | J22: 28403344.65 | K22: 2020-04-03 | L22: 1181 | M22: INE793A01012
A23: ACE | B23: EQ | C23: 34.5 | D23: 34.5 | E23: 31.35 | F23: 31.6 | G23: 31.55 | H23: 32.9 | I23: 277020 | J23: 9034464.6 | K23: 2020-04-03 | L23: 2928 | M23: INE731H01025
A24: ADANIENT | B24: EQ | C24: 134 | D24: 134.6 | E24: 128 | F24: 129.05 | G24: 129.05 | H24: 133.95 | I24: 1761947 | J24: 228493774.2 | K24: 2020-04-03 | L24: 14137 | M24: INE423A01024
A25: ADANIGAS | B25: EQ | C25: 89.9 | D25: 92 | E25: 88.95 | F25: 90.35 | G25: 90.8 | H25: 89 | I25: 894968 | J25: 81320353.6 | K25: 2020-04-03 | L25: 10543 | M25: INE399L01023
A26: ADANIGREEN | B26: EQ | C26: 152.9 | D26: 154.85 | E26: 150.45 | F26: 151.9 | G26: 151.5 | H26: 152.9 | I26: 259616 | J26: 39385706.65 | K26: 2020-04-03 | L26: 3215 | M26: INE364U01010
A27: ADANIPORTS | B27: EQ | C27: 246 | D27: 252.8 | E27: 238.9 | F27: 244.8 | G27: 244.2 | H27: 244.8 | I27: 7210453 | J27: 1791415605 | K27: 2020-04-03 | L27: 43535 | M27: INE742F01042
A28: ADANIPOWER | B28: EQ | C28: 26.95 | D28: 27.15 | E28: 25.8 | F28: 26.75 | G28: 26.7 | H28: 26.8 | I28: 4740718 | J28: 126201278.3 | K28: 2020-04-03 | L28: 9365 | M28: INE814H01011
A29: ADANITRANS | B29: EQ | C29: 182.2 | D29: 195 | E29: 180 | F29: 193.95 | G29: 192 | H29: 189.4 | I29: 177468 | J29: 33215127.3 | K29: 2020-04-03 | L29: 4608 | M29: INE931S01010
A30: ADFFOODS | B30: EQ | C30: 173.65 | D30: 176 | E30: 168.1 | F30: 174.6 | G30: 175 | H30: 173.65 | I30: 7361 | J30: 1263548.4 | K30: 2020-04-03 | L30: 309 | M30: INE982B01019
A31: ADHUNIKIND | B31: EQ | C31: 12.4 | D31: 12.4 | E31: 11.7 | F31: 12.15 | G31: 12.25 | H31: 11.85 | I31: 15983 | J31: 194042.7 | K31: 2020-04-03 | L31: 122 | M31: INE452L01012
A32: ADLABS | B32: EQ | C32: 2.65 | D32: 2.65 | E32: 2.55 | F32: 2.65 | G32: 2.65 | H32: 2.55 | I32: 57007 | J32: 150320.6 | K32: 2020-04-03 | L32: 161 | M32: INE172N01012
A33: ADORWELD | B33: EQ | C33: 182.95 | D33: 194.6 | E33: 182.15 | F33: 188.6 | G33: 186.35 | H33: 183.1 | I33: 1386 | J33: 259882.05 | K33: 2020-04-03 | L33: 101 | M33: INE045A01017
A34: ADROITINFO | B34: EQ | C34: 5.8 | D34: 5.8 | E34: 5.6 | F34: 5.7 | G34: 5.75 | H34: 5.6 | I34: 970 | J34: 5622 | K34: 2020-04-03 | L34: 13 | M34: INE737B01033
A35: ADSL | B35: EQ | C35: 13.45 | D35: 13.45 | E35: 12.5 | F35: 12.65 | G35: 12.9 | H35: 12.9 | I35: 5332 | J35: 69165.8 | K35: 2020-04-03 | L35: 65 | M35: INE102I01027
A36: ADVANIHOTR | B36: EQ | C36: 31.75 | D36: 31.75 | E36: 29.5 | F36: 30.2 | G36: 30.45 | H36: 29.9 | I36: 5172 | J36: 156693.5 | K36: 2020-04-03 | L36: 65 | M36: INE199C01026
A37: ADVENZYMES | B37: EQ | C37: 136 | D37: 136.95 | E37: 130.1 | F37: 131.3 | G37: 131.5 | H37: 138.35 | I37: 38645 | J37: 5105444.75 | K37: 2020-04-03 | L37: 1699 | M37: INE837H01020
A38: AEGISCHEM | B38: EQ | C38: 129.15 | D38: 137.7 | E38: 129 | F38: 131.4 | G38: 132 | H38: 133.35 | I38: 70138 | J38: 9346644.55 | K38: 2020-04-03 | L38: 3194 | M38: INE208C01025
A39: AFFLE | B39: BE | C39: 999 | D39: 999 | E39: 930.85 | F39: 955.55 | G39: 960 | H39: 979.55 | I39: 28126 | J39: 26862963 | K39: 2020-04-03 | L39: 3117 | M39: INE00WC01019
A40: AGARIND | B40: EQ | C40: 48.65 | D40: 50 | E40: 45.2 | F40: 48.65 | G40: 47.85 | H40: 45.6 | I40: 7538 | J40: 359587.7 | K40: 2020-04-03 | L40: 172 | M40: INE204E01012
A41: AGCNET | B41: BE | C41: 236 | D41: 236.25 | E41: 213.8 | F41: 226.1 | G41: 236.25 | H41: 225 | I41: 1738 | J41: 390688.1 | K41: 2020-04-03 | L41: 39 | M41: INE676A01019
A42: AGRITECH | B42: EQ | C42: 21 | D42: 21.8 | E42: 21 | F42: 21.8 | G42: 21.8 | H42: 20.8 | I42: 637 | J42: 13767.7 | K42: 2020-04-03 | L42: 11 | M42: INE449G01018
A43: AGROPHOS | B43: EQ | C43: 5.45 | D43: 5.45 | E43: 5.2 | F43: 5.2 | G43: 5.4 | H43: 5.45 | I43: 23554 | J43: 122744.6 | K43: 2020-04-03 | L43: 135 | M43: INE740V01019
A44: AHLEAST | B44: EQ | C44: 123.1 | D44: 131.85 | E44: 120 | F44: 128 | G44: 128 | H44: 128.75 | I44: 435 | J44: 54769.7 | K44: 2020-04-03 | L44: 36 | M44: INE926K01017
A45: AHLUCONT | B45: EQ | C45: 170.15 | D45: 174 | E45: 155.5 | F45: 157.55 | G45: 157 | H45: 169.85 | I45: 10316 | J45: 1660439.3 | K45: 2020-04-03 | L45: 239 | M45: INE758C01029
A46: AHLWEST | B46: EQ | C46: 263 | D46: 305.4 | E46: 261 | F46: 275.15 | G46: 289 | H46: 270.85 | I46: 914 | J46: 254015.65 | K46: 2020-04-03 | L46: 294 | M46: INE915K01010
A47: AIAENG | B47: EQ | C47: 1319 | D47: 1324.45 | E47: 1252.25 | F47: 1277.1 | G47: 1275 | H47: 1319.1 | I47: 23542 | J47: 30078647.85 | K47: 2020-04-03 | L47: 6321 | M47: INE212H01026
A48: AIONJSW | B48: EQ | C48: 10.1 | D48: 10.1 | E48: 9.85 | F48: 10.1 | G48: 10.1 | H48: 9.65 | I48: 27220 | J48: 274740.6 | K48: 2020-04-03 | L48: 80 | M48: INE743C01021
A49: AIRAN | B49: EQ | C49: 9.5 | D49: 10.25 | E49: 9.4 | F49: 9.95 | G49: 10 | H49: 9.5 | I49: 4797 | J49: 46810.2 | K49: 2020-04-03 | L49: 35 | M49: INE645W01026
A50: AJANTPHARM | B50: EQ | C50: 1340 | D50: 1414 | E50: 1295 | F50: 1312.55 | G50: 1329.9 | H50: 1366.05 | I50: 166315 | J50: 227737175.2 | K50: 2020-04-03 | L50: 13843 | M50: INE031B01049
A51: AJMERA | B51: EQ | C51: 63.1 | D51: 64.9 | E51: 62 | F51: 64.15 | G51: 64 | H51: 64 | I51: 8949 | J51: 571268.15 | K51: 2020-04-03 | L51: 186 | M51: INE298G01027
A52: AKSHARCHEM | B52: EQ | C52: 157.35 | D52: 158.9 | E52: 141.2 | F52: 157.15 | G52: 157.05 | H52: 151.7 | I52: 5995 | J52: 919829.25 | K52: 2020-04-03 | L52: 217 | M52: INE542B01011
A53: AKSHOPTFBR | B53: EQ | C53: 3.3 | D53: 3.3 | E53: 3.3 | F53: 3.3 | G53: 3.3 | H53: 3.15 | I53: 28598 | J53: 94373.4 | K53: 2020-04-03 | L53: 38 | M53: INE523B01011
A54: AKZOINDIA | B54: EQ | C54: 2160 | D54: 2160 | E54: 2040 | F54: 2066.65 | G54: 2042.8 | H54: 2180.05 | I54: 6275 | J54: 13186193.05 | K54: 2020-04-03 | L54: 1544 | M54: INE133A01011
A55: ALANKIT | B55: EQ | C55: 11.65 | D55: 11.75 | E55: 11.2 | F55: 11.75 | G55: 11.75 | H55: 11.2 | I55: 37464 | J55: 436252 | K55: 2020-04-03 | L55: 337 | M55: INE914E01040
A56: ALBERTDAVD | B56: EQ | C56: 309.25 | D56: 319.95 | E56: 309.25 | F56: 318.8 | G56: 318.8 | H56: 313.7 | I56: 3179 | J56: 1009550.75 | K56: 2020-04-03 | L56: 187 | M56: INE155C01010
A57: ALCHEM | B57: BE | C57: 1.2 | D57: 1.3 | E57: 1.2 | F57: 1.3 | G57: 1.3 | H57: 1.25 | I57: 4205 | J57: 5381.5 | K57: 2020-04-03 | L57: 23 | M57: INE964B01033
A58: ALEMBICLTD | B58: EQ | C58: 37 | D58: 38.7 | E58: 35.05 | F58: 37.25 | G58: 36.8 | H58: 36.4 | I58: 108429 | J58: 4034614.7 | K58: 2020-04-03 | L58: 1677 | M58: INE426A01027
A59: ALICON | B59: EQ | C59: 185.95 | D59: 185.95 | E59: 174.95 | F59: 179 | G59: 179 | H59: 180.85 | I59: 501 | J59: 89721.6 | K59: 2020-04-03 | L59: 70 | M59: INE062D01024
A60: ALKALI | B60: EQ | C60: 26.4 | D60: 26.4 | E60: 25.2 | F60: 26.3 | G60: 26.35 | H60: 25.95 | I60: 672 | J60: 17578.65 | K60: 2020-04-03 | L60: 50 | M60: INE773I01017
A61: ALKEM | B61: EQ | C61: 2279 | D61: 2299.75 | E61: 2250 | F61: 2267.05 | G61: 2272 | H61: 2270.05 | I61: 196222 | J61: 445966110.6 | K61: 2020-04-03 | L61: 18773 | M61: INE540L01014
A62: ALKYLAMINE | B62: EQ | C62: 1170 | D62: 1179.95 | E62: 1126.05 | F62: 1157.05 | G62: 1165 | H62: 1135.35 | I62: 8312 | J62: 9631433.95 | K62: 2020-04-03 | L62: 1029 | M62: INE150B01021
A63: ALLCARGO | B63: EQ | C63: 60 | D63: 60 | E63: 57.5 | F63: 58.9 | G63: 58.75 | H63: 59.45 | I63: 69785 | J63: 4084470.05 | K63: 2020-04-03 | L63: 1655 | M63: INE418H01029
A64: ALLSEC | B64: EQ | C64: 118.15 | D64: 124 | E64: 115 | F64: 119.7 | G64: 119.7 | H64: 118.15 | I64: 8178 | J64: 984495.4 | K64: 2020-04-03 | L64: 194 | M64: INE835G01018
A65: ALOKINDS | B65: EQ | C65: 4.3 | D65: 4.3 | E65: 4.3 | F65: 4.3 | G65: 4.3 | H65: 4.1 | I65: 3942656 | J65: 16953420.8 | K65: 2020-04-03 | L65: 720 | M65: INE270A01029
A66: ALPA | B66: EQ | C66: 14.9 | D66: 14.9 | E66: 13.55 | F66: 14.4 | G66: 14.3 | H66: 14.1 | I66: 35334 | J66: 505849.95 | K66: 2020-04-03 | L66: 234 | M66: INE385I01010
A67: ALPHAGEO | B67: EQ | C67: 129.85 | D67: 129.85 | E67: 104.95 | F67: 120.3 | G67: 123.85 | H67: 122.6 | I67: 26846 | J67: 3129663.45 | K67: 2020-04-03 | L67: 1190 | M67: INE137C01018
A68: ALPSINDUS | B68: EQ | C68: 0.8 | D68: 0.8 | E68: 0.7 | F68: 0.7 | G68: 0.75 | H68: 0.75 | I68: 14291 | J68: 10586.45 | K68: 2020-04-03 | L68: 52 | M68: INE093B01015
A69: AMARAJABAT | B69: EQ | C69: 477.8 | D69: 480 | E69: 455.65 | F69: 460.2 | G69: 459.8 | H69: 477.8 | I69: 457301 | J69: 212073893.4 | K69: 2020-04-03 | L69: 14527 | M69: INE885A01032
A70: AMBER | B70: EQ | C70: 1268.05 | D70: 1309.8 | E70: 1182 | F70: 1192.5 | G70: 1198.95 | H70: 1267.9 | I70: 54730 | J70: 67029187.7 | K70: 2020-04-03 | L70: 12354 | M70: INE371P01015
A71: AMBIKCO | B71: EQ | C71: 543.95 | D71: 555.95 | E71: 525 | F71: 534.8 | G71: 532 | H71: 527.25 | I71: 2601 | J71: 1396974.45 | K71: 2020-04-03 | L71: 371 | M71: INE540G01014
A72: AMBUJACEM | B72: EQ | C72: 156.6 | D72: 156.65 | E72: 151.55 | F72: 153 | G72: 152.4 | H72: 156.65 | I72: 3738943 | J72: 575038929.1 | K72: 2020-04-03 | L72: 47048 | M72: INE079A01024
A73: AMDIND | B73: EQ | C73: 11 | D73: 11 | E73: 9.2 | F73: 9.65 | G73: 9.5 | H73: 10.25 | I73: 12322 | J73: 120291.6 | K73: 2020-04-03 | L73: 123 | M73: INE005I01014
A74: AMJLAND | B74: EQ | C74: 14.6 | D74: 15.7 | E74: 13.05 | F74: 13.85 | G74: 13.7 | H74: 14.6 | I74: 9182 | J74: 126485.4 | K74: 2020-04-03 | L74: 127 | M74: INE606A01024
A75: AMRUTANJAN | B75: EQ | C75: 330 | D75: 330 | E75: 301 | F75: 312.35 | G75: 311.3 | H75: 321.35 | I75: 27031 | J75: 8464436.6 | K75: 2020-04-03 | L75: 2668 | M75: INE098F01031
A76: ANANTRAJ | B76: EQ | C76: 19 | D76: 19.6 | E76: 18.8 | F76: 19.2 | G76: 19.25 | H76: 19.75 | I76: 68499 | J76: 1314203.2 | K76: 2020-04-03 | L76: 371 | M76: INE242C01024
A77: ANDHRACEMT | B77: EQ | C77: 1.65 | D77: 1.65 | E77: 1.6 | F77: 1.65 | G77: 1.65 | H77: 1.65 | I77: 105733 | J77: 173431.05 | K77: 2020-04-03 | L77: 121 | M77: INE666E01012
A78: ANDHRAPAP | B78: EQ | C78: 137 | D78: 143 | E78: 130.15 | F78: 134.8 | G78: 134.1 | H78: 137 | I78: 9782 | J78: 1315684.9 | K78: 2020-04-03 | L78: 664 | M78: INE435A01028
A79: ANDHRSUGAR | B79: EQ | C79: 195.15 | D79: 195.15 | E79: 180.1 | F79: 194.55 | G79: 195 | H79: 185.9 | I79: 59288 | J79: 11378946.3 | K79: 2020-04-03 | L79: 1930 | M79: INE715B01013
A80: ANIKINDS | B80: EQ | C80: 6.6 | D80: 6.7 | E80: 6.5 | F80: 6.65 | G80: 6.65 | H80: 6.6 | I80: 1187 | J80: 7873.2 | K80: 2020-04-03 | L80: 35 | M80: INE087B01017
A81: ANKITMETAL | B81: EQ | C81: 0.35 | D81: 0.4 | E81: 0.35 | F81: 0.35 | G81: 0.4 | H81: 0.4 | I81: 14524 | J81: 5535.8 | K81: 2020-04-03 | L81: 26 | M81: INE106I01010
A82: ANSALAPI | B82: EQ | C82: 3.55 | D82: 3.75 | E82: 3.5 | F82: 3.55 | G82: 3.5 | H82: 3.6 | I82: 29370 | J82: 106652.75 | K82: 2020-04-03 | L82: 68 | M82: INE436A01026
A83: ANSALHSG | B83: EQ | C83: 2.9 | D83: 3 | E83: 2.8 | F83: 3 | G83: 3 | H83: 2.9 | I83: 19918 | J83: 59560.55 | K83: 2020-04-03 | L83: 59 | M83: INE880B01015
A84: ANUP | B84: EQ | C84: 315 | D84: 319 | E84: 299.15 | F84: 299.15 | G84: 299.15 | H84: 314.85 | I84: 3276 | J84: 982795.6 | K84: 2020-04-03 | L84: 136 | M84: INE294Z01018
A85: APARINDS | B85: EQ | C85: 299.85 | D85: 300 | E85: 286 | F85: 293.1 | G85: 300 | H85: 295.15 | I85: 24279 | J85: 7128948.2 | K85: 2020-04-03 | L85: 567 | M85: INE372A01015
A86: APCL | B86: EQ | C86: 100.85 | D86: 100.9 | E86: 92.65 | F86: 96.1 | G86: 94.3 | H86: 91.45 | I86: 2353 | J86: 226507.95 | K86: 2020-04-03 | L86: 58 | M86: INE071F01012
A87: APCOTEXIND | B87: EQ | C87: 89.5 | D87: 89.5 | E87: 74.05 | F87: 84.65 | G87: 85 | H87: 78.7 | I87: 21806 | J87: 1803610.25 | K87: 2020-04-03 | L87: 576 | M87: INE116A01032
A88: APEX | B88: EQ | C88: 167.2 | D88: 173.6 | E88: 167.2 | F88: 170.4 | G88: 172.25 | H88: 171.9 | I88: 32457 | J88: 5528118.8 | K88: 2020-04-03 | L88: 1182 | M88: INE346W01013
A89: APLAPOLLO | B89: EQ | C89: 1240 | D89: 1240 | E89: 1191.4 | F89: 1197.4 | G89: 1191.4 | H89: 1232.3 | I89: 16852 | J89: 20231648.35 | K89: 2020-04-03 | L89: 1572 | M89: INE702C01019
A90: APLLTD | B90: EQ | C90: 540.3 | D90: 549.8 | E90: 522.35 | F90: 536.05 | G90: 533 | H90: 533.45 | I90: 171739 | J90: 93243354.4 | K90: 2020-04-03 | L90: 10508 | M90: INE901L01018
A91: APOLLO | B91: EQ | C91: 45.6 | D91: 45.95 | E91: 44.5 | F91: 45.15 | G91: 45.5 | H91: 45.65 | I91: 6932 | J91: 312935.4 | K91: 2020-04-03 | L91: 346 | M91: INE713T01010
A92: APOLLOHOSP | B92: EQ | C92: 1094.2 | D92: 1239.45 | E92: 1088.05 | F92: 1189.55 | G92: 1195 | H92: 1088.85 | I92: 2397409 | J92: 2803663709 | K92: 2020-04-03 | L92: 128015 | M92: INE437A01024
A93: APOLLOPIPE | B93: EQ | C93: 243 | D93: 262 | E93: 220 | F93: 259.2 | G93: 248.8 | H93: 238.25 | I93: 9446 | J93: 2338307.3 | K93: 2020-04-03 | L93: 322 | M93: INE126J01016
A94: APOLLOTYRE | B94: EQ | C94: 79.5 | D94: 79.5 | E94: 76.45 | F94: 78.45 | G94: 78.5 | H94: 77.9 | I94: 3754206 | J94: 294369445.2 | K94: 2020-04-03 | L94: 22030 | M94: INE438A01022
A95: APOLSINHOT | B95: EQ | C95: 431.2 | D95: 435 | E95: 415.45 | F95: 418.3 | G95: 416.35 | H95: 430.35 | I95: 463 | J95: 197343.35 | K95: 2020-04-03 | L95: 62 | M95: INE451F01024
A96: APTECHT | B96: EQ | C96: 85 | D96: 85 | E96: 79 | F96: 80 | G96: 80.1 | H96: 82.75 | I96: 57872 | J96: 4722068.3 | K96: 2020-04-03 | L96: 1510 | M96: INE266F01018
A97: ARCHIDPLY | B97: EQ | C97: 15.55 | D97: 17.45 | E97: 14.85 | F97: 15.3 | G97: 15.55 | H97: 16.8 | I97: 16983 | J97: 262227.4 | K97: 2020-04-03 | L97: 160 | M97: INE877I01016
A98: ARCHIES | B98: EQ | C98: 9.45 | D98: 9.45 | E98: 8.75 | F98: 9.05 | G98: 9.05 | H98: 9 | I98: 10861 | J98: 98855.7 | K98: 2020-04-03 | L98: 108 | M98: INE731A01020
A99: ARCOTECH | B99: EQ | C99: 0.95 | D99: 0.95 | E99: 0.85 | F99: 0.9 | G99: 0.9 | H99: 0.9 | I99: 130062 | J99: 111685.15 | K99: 2020-04-03 | L99: 92 | M99: INE574I01035
A100: ARIES | B100: EQ | C100: 41.8 | D100: 41.8 | E100: 39.1 | F100: 39.9 | G100: 39.1 | H100: 39.55 | I100: 8847 | J100: 357691.7 | K100: 2020-04-03 | L100: 359 | M100: INE298I01015
A101: ARIHANT | B101: EQ | C101: 11.55 | D101: 11.9 | E101: 11.1 | F101: 11.75 | G101: 11.75 | H101: 11.55 | I101: 631 | J101: 7112.1 | K101: 2020-04-03 | L101: 9 | M101: INE413D01011
A102: ARIHANTSUP | B102: EQ | C102: 20.95 | D102: 20.95 | E102: 19.6 | F102: 19.65 | G102: 20 | H102: 20.3 | I102: 176 | J102: 3461.85 | K102: 2020-04-03 | L102: 5 | M102: INE643K01018
A103: ARMANFIN | B103: EQ | C103: 394 | D103: 394 | E103: 374.15 | F103: 374.15 | G103: 374.15 | H103: 393.8 | I103: 2763 | J103: 1035556 | K103: 2020-04-03 | L103: 235 | M103: INE109C01017
A104: AROGRANITE | B104: EQ | C104: 19.9 | D104: 20.85 | E104: 19.4 | F104: 20.65 | G104: 20.75 | H104: 19.9 | I104: 4528 | J104: 90710.95 | K104: 2020-04-03 | L104: 31 | M104: INE210C01013
A105: ARROWGREEN | B105: BE | C105: 33.4 | D105: 33.4 | E105: 32 | F105: 33.25 | G105: 33.25 | H105: 31.95 | I105: 1949 | J105: 63690.65 | K105: 2020-04-03 | L105: 27 | M105: INE570D01018
A106: ARSHIYA | B106: EQ | C106: 7.45 | D106: 7.45 | E106: 6.8 | F106: 7.05 | G106: 7 | H106: 7.1 | I106: 57787 | J106: 410113.95 | K106: 2020-04-03 | L106: 167 | M106: INE968D01022
A107: ARSSINFRA | B107: EQ | C107: 9.9 | D107: 10.5 | E107: 9.6 | F107: 10.35 | G107: 10.3 | H107: 10.05 | I107: 6165 | J107: 63112.45 | K107: 2020-04-03 | L107: 56 | M107: INE267I01010
A108: ARTEMISMED | B108: EQ | C108: 135 | D108: 135 | E108: 126.5 | F108: 126.5 | G108: 126.5 | H108: 127.2 | I108: 629 | J108: 82704.4 | K108: 2020-04-03 | L108: 25 | M108: INE025R01013
A109: ARVIND | B109: EQ | C109: 20.1 | D109: 20.4 | E109: 19.7 | F109: 20.2 | G109: 20.25 | H109: 19.7 | I109: 693885 | J109: 13958493.2 | K109: 2020-04-03 | L109: 3482 | M109: INE034A01011
A110: ARVINDFASN | B110: EQ | C110: 136 | D110: 140.5 | E110: 135 | F110: 138.35 | G110: 140.5 | H110: 137.45 | I110: 11006 | J110: 1516998 | K110: 2020-04-03 | L110: 541 | M110: INE955V01021
A111: ARVSMART | B111: EQ | C111: 72 | D111: 72 | E111: 61.3 | F111: 67.65 | G111: 67 | H111: 67.8 | I111: 13580 | J111: 903921.75 | K111: 2020-04-03 | L111: 454 | M111: INE034S01021
A112: ASAHIINDIA | B112: EQ | C112: 150.9 | D112: 153 | E112: 144.25 | F112: 149.5 | G112: 150 | H112: 150.9 | I112: 6347 | J112: 943940.55 | K112: 2020-04-03 | L112: 120 | M112: INE439A01020
A113: ASAHISONG | B113: EQ | C113: 78 | D113: 78 | E113: 72.15 | F113: 73.55 | G113: 74 | H113: 75.7 | I113: 10604 | J113: 789773.45 | K113: 2020-04-03 | L113: 151 | M113: INE228I01012
A114: ASAL | B114: EQ | C114: 12.4 | D114: 13.65 | E114: 12.4 | F114: 13.6 | G114: 13.65 | H114: 13 | I114: 6953 | J114: 94053.65 | K114: 2020-04-03 | L114: 80 | M114: INE900C01027
A115: ASALCBR | B115: EQ | C115: 156.9 | D115: 156.9 | E115: 125.55 | F115: 146.6 | G115: 147.9 | H115: 155.35 | I115: 24117 | J115: 3534062.3 | K115: 2020-04-03 | L115: 949 | M115: INE073G01016
A116: ASHAPURMIN | B116: EQ | C116: 20.85 | D116: 21 | E116: 19.85 | F116: 20.05 | G116: 20.05 | H116: 20.85 | I116: 16286 | J116: 330285.15 | K116: 2020-04-03 | L116: 175 | M116: INE348A01023
A117: ASHIANA | B117: EQ | C117: 50.05 | D117: 53.2 | E117: 49 | F117: 49.85 | G117: 50 | H117: 49.95 | I117: 77088 | J117: 3874992.45 | K117: 2020-04-03 | L117: 966 | M117: INE365D01021
A118: ASHIMASYN | B118: EQ | C118: 3 | D118: 3.3 | E118: 3 | F118: 3.25 | G118: 3.3 | H118: 3.1 | I118: 95003 | J118: 293395.7 | K118: 2020-04-03 | L118: 275 | M118: INE440A01010
A119: ASHOKA | B119: EQ | C119: 41 | D119: 41 | E119: 37.05 | F119: 37.5 | G119: 37.5 | H119: 39.4 | I119: 514587 | J119: 19550666.7 | K119: 2020-04-03 | L119: 6842 | M119: INE442H01029
A120: ASHOKLEY | B120: EQ | C120: 41.1 | D120: 41.15 | E120: 38 | F120: 38.15 | G120: 38.3 | H120: 41.1 | I120: 37556156 | J120: 1449825811 | K120: 2020-04-03 | L120: 158009 | M120: INE208A01029
A121: ASIANHOTNR | B121: EQ | C121: 63.75 | D121: 65.65 | E121: 63.7 | F121: 65 | G121: 65 | H121: 66.4 | I121: 13293 | J121: 864691.05 | K121: 2020-04-03 | L121: 55 | M121: INE363A01022
A122: ASIANPAINT | B122: EQ | C122: 1615.1 | D122: 1616 | E122: 1517.25 | F122: 1520.9 | G122: 1522 | H122: 1603.2 | I122: 2925847 | J122: 4494204301 | K122: 2020-04-03 | L122: 134230 | M122: INE021A01026
A123: ASIANTILES | B123: EQ | C123: 161.65 | D123: 168 | E123: 150 | F123: 155.1 | G123: 155 | H123: 157.45 | I123: 50922 | J123: 8017450.5 | K123: 2020-04-03 | L123: 831 | M123: INE022I01019
A124: ASPINWALL | B124: EQ | C124: 82.05 | D124: 92.35 | E124: 82.05 | F124: 91.8 | G124: 92.3 | H124: 90 | I124: 109 | J124: 9968.4 | K124: 2020-04-03 | L124: 14 | M124: INE991I01015
A125: ASTEC | B125: EQ | C125: 388.25 | D125: 425 | E125: 388.1 | F125: 413.75 | G125: 420 | H125: 393.1 | I125: 6007 | J125: 2451325.9 | K125: 2020-04-03 | L125: 535 | M125: INE563J01010
A126: ASTERDM | B126: EQ | C126: 95.95 | D126: 96.9 | E126: 93.1 | F126: 94 | G126: 94 | H126: 93.75 | I126: 124546 | J126: 11829151 | K126: 2020-04-03 | L126: 2325 | M126: INE914M01019
A127: ASTRAL | B127: EQ | C127: 955.6 | D127: 1020 | E127: 913.95 | F127: 975.4 | G127: 988 | H127: 951.6 | I127: 96423 | J127: 95089042.45 | K127: 2020-04-03 | L127: 9300 | M127: INE006I01046
A128: ASTRAMICRO | B128: EQ | C128: 53.1 | D128: 55.9 | E128: 52.75 | F128: 55 | G128: 55 | H128: 54.95 | I128: 68089 | J128: 3690817.55 | K128: 2020-04-03 | L128: 898 | M128: INE386C01029
A129: ASTRAZEN | B129: EQ | C129: 2400.05 | D129: 2536 | E129: 2374.95 | F129: 2401.05 | G129: 2390 | H129: 2409.2 | I129: 29900 | J129: 73542232.45 | K129: 2020-04-03 | L129: 4769 | M129: INE203A01020
A130: ASTRON | B130: EQ | C130: 26.05 | D130: 26.75 | E130: 25.4 | F130: 26 | G130: 26 | H130: 26.05 | I130: 10974 | J130: 285980.2 | K130: 2020-04-03 | L130: 264 | M130: INE646X01014
A131: ATFL | B131: EQ | C131: 394.55 | D131: 438 | E131: 376.85 | F131: 432.2 | G131: 431 | H131: 389 | I131: 7329 | J131: 3007839.55 | K131: 2020-04-03 | L131: 733 | M131: INE209A01019
A132: ATLANTA | B132: EQ | C132: 2.9 | D132: 2.9 | E132: 2.8 | F132: 2.9 | G132: 2.9 | H132: 2.8 | I132: 45666 | J132: 131707.1 | K132: 2020-04-03 | L132: 88 | M132: INE285H01022
A133: ATLASCYCLE | B133: BE | C133: 30.95 | D133: 32.4 | E133: 29.6 | F133: 31 | G133: 31 | H133: 30.95 | I133: 732 | J133: 22457.4 | K133: 2020-04-03 | L133: 17 | M133: INE446A01025
A134: ATNINTER | B134: BE | C134: 0.1 | D134: 0.15 | E134: 0.1 | F134: 0.15 | G134: 0.15 | H134: 0.1 | I134: 7546 | J134: 1122.15 | K134: 2020-04-03 | L134: 10 | M134: INE803A01027
A135: ATUL | B135: EQ | C135: 3939 | D135: 3940 | E135: 3750 | F135: 3897.85 | G135: 3900 | H135: 3900.1 | I135: 9201 | J135: 35767429.1 | K135: 2020-04-03 | L135: 3505 | M135: INE100A01010
A136: ATULAUTO | B136: EQ | C136: 136.7 | D136: 142 | E136: 132.5 | F136: 139.8 | G136: 142 | H136: 136.7 | I136: 10456 | J136: 1423411.65 | K136: 2020-04-03 | L136: 568 | M136: INE951D01028
A137: AUBANK | B137: EQ | C137: 482 | D137: 482.9 | E137: 458 | F137: 465.45 | G137: 459.35 | H137: 481.35 | I137: 722400 | J137: 337699851.7 | K137: 2020-04-03 | L137: 47072 | M137: INE949L01017
A138: AURIONPRO | B138: EQ | C138: 39.8 | D138: 44.5 | E138: 38.3 | F138: 43.25 | G138: 44.5 | H138: 41.65 | I138: 13828 | J138: 587567.65 | K138: 2020-04-03 | L138: 154 | M138: INE132H01018
A139: AUROPHARMA | B139: EQ | C139: 353.1 | D139: 411.95 | E139: 333.5 | F139: 382.4 | G139: 381 | H139: 392.3 | I139: 17168599 | J139: 6643467189 | K139: 2020-04-03 | L139: 272142 | M139: INE406A01037
A140: AUSOMENT | B140: EQ | C140: 24.8 | D140: 26 | E140: 24.8 | F140: 25.9 | G140: 25.95 | H140: 26 | I140: 2627 | J140: 66351.45 | K140: 2020-04-03 | L140: 13 | M140: INE218C01016
A141: AUTOAXLES | B141: EQ | C141: 369.9 | D141: 377.25 | E141: 360.8 | F141: 365.95 | G141: 364 | H141: 360.8 | I141: 3608 | J141: 1326344.5 | K141: 2020-04-03 | L141: 641 | M141: INE449A01011
A142: AUTOIND | B142: EQ | C142: 10.7 | D142: 10.7 | E142: 10.35 | F142: 10.7 | G142: 10.7 | H142: 10.2 | I142: 3919 | J142: 41751.35 | K142: 2020-04-03 | L142: 51 | M142: INE718H01014
A143: AUTOLITIND | B143: EQ | C143: 13.55 | D143: 13.55 | E143: 12.25 | F143: 13.3 | G143: 13.45 | H143: 12.55 | I143: 6073 | J143: 79982.8 | K143: 2020-04-03 | L143: 132 | M143: INE448A01013
A144: AVADHSUGAR | B144: EQ | C144: 130.25 | D144: 130.25 | E144: 118.15 | F144: 130.25 | G144: 130.25 | H144: 124.05 | I144: 99006 | J144: 12768582.25 | K144: 2020-04-03 | L144: 1613 | M144: INE349W01017
A145: AVANTIFEED | B145: EQ | C145: 284.05 | D145: 289.7 | E145: 280 | F145: 283.85 | G145: 283.5 | H145: 283.65 | I145: 402701 | J145: 114639132.7 | K145: 2020-04-03 | L145: 40633 | M145: INE871C01038
A146: AVTNPL | B146: EQ | C146: 23.8 | D146: 23.9 | E146: 23.2 | F146: 23.8 | G146: 23.9 | H146: 23.8 | I146: 32852 | J146: 776524.6 | K146: 2020-04-03 | L146: 259 | M146: INE488D01021
A147: AXISBANK | B147: EQ | C147: 360.2 | D147: 362.3 | E147: 324 | F147: 325.45 | G147: 326.9 | H147: 358.65 | I147: 41317685 | J147: 1.41761803e+10 | K147: 2020-04-03 | L147: 407312 | M147: INE238A01034
A148: AXISCADES | B148: EQ | C148: 28.95 | D148: 30.2 | E148: 27.55 | F148: 28.85 | G148: 30.1 | H148: 28.95 | I148: 35132 | J148: 1004775.7 | K148: 2020-04-03 | L148: 471 | M148: INE555B01013
A149: AXISGOLD | B149: EQ | C149: 3841 | D149: 3890 | E149: 3837.85 | F149: 3876.1 | G149: 3868 | H149: 3807.85 | I149: 919 | J149: 3555400.25 | K149: 2020-04-03 | L149: 188 | M149: INF846K01347
A150: AXISNIFTY | B150: EQ | C150: 1000 | D150: 1001 | E150: 1000 | F150: 1001 | G150: 1001 | H150: 1010 | I150: 17 | J150: 17010 | K150: 2020-04-03 | L150: 7 | M150: INF846K01ZL0
A151: AYMSYNTEX | B151: EQ | C151: 17.9 | D151: 17.9 | E151: 16.05 | F151: 16.65 | G151: 16.6 | H151: 16.55 | I151: 1442 | J151: 23841.4 | K151: 2020-04-03 | L151: 37 | M151: INE193B01039
A152: BAFNAPH | B152: EQ | C152: 14.6 | D152: 14.6 | E152: 14.6 | F152: 14.6 | G152: 14.6 | H152: 13.95 | I152: 225 | J152: 3285 | K152: 2020-04-03 | L152: 8 | M152: INE878I01022
A153: BAGFILMS | B153: BE | C153: 1.75 | D153: 1.8 | E153: 1.7 | F153: 1.8 | G153: 1.8 | H153: 1.75 | I153: 8841 | J153: 15598.5 | K153: 2020-04-03 | L153: 33 | M153: INE116D01028
A154: BAJAJ-AUTO | B154: EQ | C154: 2051.1 | D154: 2056.3 | E154: 1957.55 | F154: 2033.75 | G154: 2020 | H154: 2051.1 | I154: 692220 | J154: 1392115955 | K154: 2020-04-03 | L154: 82281 | M154: INE917I01010
A155: BAJAJCON | B155: EQ | C155: 134.1 | D155: 137.5 | E155: 131.25 | F155: 133 | G155: 131.5 | H155: 134.05 | I155: 323500 | J155: 43488290.3 | K155: 2020-04-03 | L155: 9763 | M155: INE933K01021
A156: BAJAJELEC | B156: EQ | C156: 275 | D156: 276.05 | E156: 260 | F156: 267.3 | G156: 267.9 | H156: 268.5 | I156: 55758 | J156: 14842990.15 | K156: 2020-04-03 | L156: 5417 | M156: INE193E01025
A157: BAJAJFINSV | B157: EQ | C157: 4560 | D157: 4646 | E157: 4430 | F157: 4510.75 | G157: 4520.05 | H157: 4501.9 | I157: 722316 | J157: 3277305847 | K157: 2020-04-03 | L157: 138917 | M157: INE918I01018
A158: BAJAJHIND | B158: EQ | C158: 2.85 | D158: 2.85 | E158: 2.85 | F158: 2.85 | G158: 2.85 | H158: 2.75 | I158: 167568 | J158: 477568.8 | K158: 2020-04-03 | L158: 146 | M158: INE306A01021
A159: BAJAJHLDNG | B159: EQ | C159: 1780 | D159: 1930 | E159: 1700 | F159: 1924.6 | G159: 1927 | H159: 1754.55 | I159: 47263 | J159: 88140680.75 | K159: 2020-04-03 | L159: 11731 | M159: INE118A01012
A160: BAJFINANCE | B160: EQ | C160: 2268.8 | D160: 2343.7 | E160: 2183.05 | F160: 2207.5 | G160: 2211 | H160: 2219.35 | I160: 6172683 | J160: 1.396772774e+10 | K160: 2020-04-03 | L160: 417221 | M160: INE296A01024
A161: BALAJITELE | B161: EQ | C161: 38.2 | D161: 40 | E161: 36.55 | F161: 39.1 | G161: 39.35 | H161: 36.35 | I161: 77367 | J161: 3008590 | K161: 2020-04-03 | L161: 844 | M161: INE794B01026
A162: BALAMINES | B162: EQ | C162: 250 | D162: 257 | E162: 241.3 | F162: 247.25 | G162: 248 | H162: 252.05 | I162: 39172 | J162: 9679388.5 | K162: 2020-04-03 | L162: 2514 | M162: INE050E01027
A163: BALAXI | B163: BE | C163: 80 | D163: 80 | E163: 73.1 | F163: 77 | G163: 77 | H163: 76.9 | I163: 3165 | J163: 234980.8 | K163: 2020-04-03 | L163: 66 | M163: INE618N01014
A164: BALKRISHNA | B164: EQ | C164: 8 | D164: 8.05 | E164: 7.6 | F164: 8 | G164: 8.05 | H164: 8 | I164: 5968 | J164: 47491.4 | K164: 2020-04-03 | L164: 42 | M164: INE875R01011
A165: BALKRISIND | B165: EQ | C165: 805 | D165: 807 | E165: 769 | F165: 773.3 | G165: 776.65 | H165: 803.05 | I165: 653446 | J165: 508641580.1 | K165: 2020-04-03 | L165: 50964 | M165: INE787D01026
A166: BALLARPUR | B166: EQ | C166: 0.35 | D166: 0.4 | E166: 0.3 | F166: 0.35 | G166: 0.35 | H166: 0.35 | I166: 13339529 | J166: 4858886.8 | K166: 2020-04-03 | L166: 710 | M166: INE294A01037
A167: BALMLAWRIE | B167: EQ | C167: 85 | D167: 87 | E167: 82.95 | F167: 85.3 | G167: 85.4 | H167: 84.5 | I167: 158363 | J167: 13518950.1 | K167: 2020-04-03 | L167: 3002 | M167: INE164A01016
A168: BALPHARMA | B168: EQ | C168: 30.85 | D168: 34.4 | E168: 29.55 | F168: 31.65 | G168: 32.2 | H168: 31.1 | I168: 26402 | J168: 851200.35 | K168: 2020-04-03 | L168: 432 | M168: INE083D01012
A169: BALRAMCHIN | B169: EQ | C169: 114.7 | D169: 114.7 | E169: 104.15 | F169: 114.7 | G169: 114.7 | H169: 109.25 | I169: 1515366 | J169: 169957373.8 | K169: 2020-04-03 | L169: 17991 | M169: INE119A01028
A170: BANARBEADS | B170: EQ | C170: 27.25 | D170: 31.9 | E170: 27.25 | F170: 28.65 | G170: 30 | H170: 32.15 | I170: 4801 | J170: 138537.45 | K170: 2020-04-03 | L170: 61 | M170: INE655B01011
A171: BANARISUG | B171: EQ | C171: 862 | D171: 935 | E171: 858.25 | F171: 890 | G171: 890 | H171: 903.4 | I171: 355 | J171: 313926.2 | K171: 2020-04-03 | L171: 62 | M171: INE459A01010
A172: BANCOINDIA | B172: EQ | C172: 63.55 | D172: 64.3 | E172: 62 | F172: 63.55 | G172: 63 | H172: 63.7 | I172: 40985 | J172: 2598832.35 | K172: 2020-04-03 | L172: 886 | M172: INE213C01025
A173: BANDHANBNK | B173: EQ | C173: 196.2 | D173: 197.05 | E173: 180 | F173: 181.55 | G173: 182.2 | H173: 194.9 | I173: 9147321 | J173: 1689625275 | K173: 2020-04-03 | L173: 144751 | M173: INE545U01014
A174: BANG | B174: EQ | C174: 11.15 | D174: 11.95 | E174: 11.15 | F174: 11.95 | G174: 11.95 | H174: 11.4 | I174: 469 | J174: 5588.1 | K174: 2020-04-03 | L174: 21 | M174: INE863I01016
A175: BANKBARODA | B175: EQ | C175: 51.25 | D175: 51.3 | E175: 48.5 | F175: 48.7 | G175: 48.6 | H175: 51.25 | I175: 20739757 | J175: 1026200403 | K175: 2020-04-03 | L175: 66487 | M175: INE028A01039
A176: BANKBEES | B176: EQ | C176: 187.07 | D176: 190 | E176: 174 | F176: 174.83 | G176: 175.7 | H176: 187.02 | I176: 1073664 | J176: 190073692.1 | K176: 2020-04-03 | L176: 17241 | M176: INF204KB15I9
A177: BANKINDIA | B177: EQ | C177: 32.45 | D177: 32.9 | E177: 31.7 | F177: 32.55 | G177: 32.3 | H177: 32.4 | I177: 713521 | J177: 22997176.05 | K177: 2020-04-03 | L177: 3971 | M177: INE084A01016
A178: BANSWRAS | B178: EQ | C178: 70.2 | D178: 75.45 | E178: 69.15 | F178: 70.6 | G178: 69.2 | H178: 72.5 | I178: 8096 | J178: 577159.15 | K178: 2020-04-03 | L178: 58 | M178: INE629D01012
A179: BASF | B179: EQ | C179: 1097 | D179: 1150 | E179: 1017 | F179: 1101.1 | G179: 1075.75 | H179: 1096.85 | I179: 43029 | J179: 47760738.6 | K179: 2020-04-03 | L179: 3956 | M179: INE373A01013
A180: BASML | B180: EQ | C180: 77.85 | D180: 77.85 | E180: 67 | F180: 72.2 | G180: 70 | H180: 71.05 | I180: 938 | J180: 66543.3 | K180: 2020-04-03 | L180: 78 | M180: INE186H01014
A181: BATAINDIA | B181: EQ | C181: 1201.9 | D181: 1215 | E181: 1146.3 | F181: 1190.75 | G181: 1190 | H181: 1189.7 | I181: 737772 | J181: 874679797 | K181: 2020-04-03 | L181: 46694 | M181: INE176A01028
A182: BAYERCROP | B182: EQ | C182: 3348.7 | D182: 3348.7 | E182: 3151 | F182: 3194.7 | G182: 3151.75 | H182: 3330.8 | I182: 6850 | J182: 22063583.15 | K182: 2020-04-03 | L182: 2351 | M182: INE462A01022
A183: BBL | B183: EQ | C183: 579.95 | D183: 590 | E183: 565 | F183: 585.95 | G183: 583 | H183: 579.75 | I183: 2311 | J183: 1336710.85 | K183: 2020-04-03 | L183: 240 | M183: INE464A01028
A184: BBTC | B184: EQ | C184: 735 | D184: 735.35 | E184: 696.25 | F184: 716.75 | G184: 712 | H184: 726.1 | I184: 35765 | J184: 25561895.95 | K184: 2020-04-03 | L184: 3722 | M184: INE050A01025
A185: BCG | B185: EQ | C185: 3.25 | D185: 3.35 | E185: 3.15 | F185: 3.35 | G185: 3.35 | H185: 3.2 | I185: 293947 | J185: 968538.25 | K185: 2020-04-03 | L185: 204 | M185: INE425B01027
A186: BCP | B186: EQ | C186: 10 | D186: 10 | E186: 9.85 | F186: 9.85 | G186: 9.85 | H186: 10.35 | I186: 2412 | J186: 23759.85 | K186: 2020-04-03 | L186: 17 | M186: INE905P01028
A187: BDL | B187: EQ | C187: 186 | D187: 186.2 | E187: 180.15 | F187: 183.95 | G187: 184 | H187: 184.35 | I187: 12821 | J187: 2357367.45 | K187: 2020-04-03 | L187: 900 | M187: INE171Z01018
A188: BEARDSELL | B188: EQ | C188: 7 | D188: 7.15 | E188: 6.8 | F188: 7.1 | G188: 7.1 | H188: 6.85 | I188: 2442 | J188: 17228.35 | K188: 2020-04-03 | L188: 14 | M188: INE520H01022
A189: BEDMUTHA | B189: EQ | C189: 12.55 | D189: 13.85 | E189: 12.55 | F189: 12.8 | G189: 12.7 | H189: 13.2 | I189: 9276 | J189: 119521.95 | K189: 2020-04-03 | L189: 28 | M189: INE844K01012
A190: BEL | B190: EQ | C190: 71.75 | D190: 71.9 | E190: 68.5 | F190: 69.95 | G190: 69.95 | H190: 69.05 | I190: 9319677 | J190: 651754524.6 | K190: 2020-04-03 | L190: 37203 | M190: INE263A01024
A191: BEML | B191: EQ | C191: 455 | D191: 461 | E191: 435.15 | F191: 439.35 | G191: 436.8 | H191: 443.9 | I191: 157037 | J191: 70131399.35 | K191: 2020-04-03 | L191: 7111 | M191: INE258A01016
A192: BEPL | B192: EQ | C192: 29.7 | D192: 30.5 | E192: 28.3 | F192: 28.8 | G192: 28.7 | H192: 30 | I192: 203586 | J192: 5945353.1 | K192: 2020-04-03 | L192: 3231 | M192: INE922A01025
A193: BERGEPAINT | B193: EQ | C193: 480.1 | D193: 483 | E193: 444.65 | F193: 448.65 | G193: 448.65 | H193: 483.45 | I193: 1430557 | J193: 657246529.1 | K193: 2020-04-03 | L193: 44712 | M193: INE463A01038
A194: BFINVEST | B194: EQ | C194: 249 | D194: 249.9 | E194: 226.15 | F194: 249.45 | G194: 249.8 | H194: 238 | I194: 13333 | J194: 3299642.45 | K194: 2020-04-03 | L194: 651 | M194: INE878K01010
A195: BFUTILITIE | B195: EQ | C195: 147.5 | D195: 148.15 | E195: 140.2 | F195: 143.7 | G195: 143.75 | H195: 147.4 | I195: 66664 | J195: 9516525.15 | K195: 2020-04-03 | L195: 1570 | M195: INE243D01012
A196: BGRENERGY | B196: EQ | C196: 21.1 | D196: 23.5 | E196: 21.1 | F196: 22.4 | G196: 22.35 | H196: 21.4 | I196: 107898 | J196: 2448840.15 | K196: 2020-04-03 | L196: 771 | M196: INE661I01014
A197: BHAGERIA | B197: EQ | C197: 79.6 | D197: 81.4 | E197: 77.05 | F197: 77.75 | G197: 77.65 | H197: 79.25 | I197: 10353 | J197: 819046.45 | K197: 2020-04-03 | L197: 418 | M197: INE354C01027
A198: BHAGYANGR | B198: EQ | C198: 14.1 | D198: 14.9 | E198: 14.1 | F198: 14.25 | G198: 14.5 | H198: 14.25 | I198: 4915 | J198: 69693.6 | K198: 2020-04-03 | L198: 41 | M198: INE458B01036
A199: BHAGYAPROP | B199: EQ | C199: 19.75 | D199: 21.65 | E199: 19.75 | F199: 21 | G199: 21.65 | H199: 20.7 | I199: 1768 | J199: 36601.4 | K199: 2020-04-03 | L199: 9 | M199: INE363W01018
A200: BHANDARI | B200: EQ | C200: 0.7 | D200: 0.75 | E200: 0.7 | F200: 0.75 | G200: 0.75 | H200: 0.75 | I200: 49872 | J200: 36356.95 | K200: 2020-04-03 | L200: 61 | M200: INE474E01029
... 1470 more rows

Sheet Sheet1 (hidden)

Sheet Sheet3 (hidden)

Sheet Sheet4 (hidden)

Sheet Sheet5 (hidden)
